{"text_format":"1","workbook":"xlsx","n_sheets":8,"sheets":["Students -Pre-Post","Students - Rubric","Students - Mentoring","Volunteers - Nov","Volunteers - Feb","Volunteers - May","Volunteers - Final","Sheet3"],"not_rendered":{"charts":0,"images":0,"macros":0,"external_links":0,"defined_names":14,"comments":0,"pivot_tables":0},"unopened":[],"bounds":{"document_bytes":16777216,"sheet_cells":100000,"rows_first":2000,"rows_last":500,"rows_between":2000,"halvings":0,"cell_chars":16384,"cell_head_chars":4096},"cells_cut":0,"cells_raw":0,"read":"whole","date_system":"1900"}

{"sheet":"Students -Pre-Post","index":0,"n_rows":157,"n_cols":15,"rows_kept":157,"cut":false,"hidden":false,"merged":[[3,11,3,12],[3,13,3,14],[0,0,3,0],[2,11,2,12],[2,13,2,14],[3,2,4,2],[3,3,4,3],[3,10,4,10],[2,2,2,10],[0,11,1,14],[1,7,1,10],[1,2,1,5]]}
["Keystone SMILES AmeriCorps","Expanded Learning Students Roster - Pre/Post Tests",null,null,null,null,null,null,null,null,null,"Rosters are due via Email on November 15th, Feburary 15th, May 15th, and at the end of the Member's term.  This Roster, plus the reporting form, great story and photographs, together, comprise the member's complete Quarterly Report.  "]
[null,"Member Name:",null,null,null,null,"Host Site:"]
[null,"Definitions","Economically Disadvadvantaged:  Eligible for free (at or below 130% of poverty) or reduced (between 130% to 185% of poverty) lunch; may or may not actually be accessing free/reduced lunch    Special or exceptional needs:  Children who are developmentally disabled, such as those who are autistic, have cerebral palsy or epilepsy, are visually impaired, speech impaired, hearing impaired, orthopedically impaired, are emotionally disturbed or have a language disorder, specific learning disability, have multiple disabilities, other significant health impairment or have literacy needs. Children who are abused or neglected; in need of foster care; adjudicated youth; homeless youth; teenage parents; and children in need of protective intervention in their homes.  Majority School:  A District who has provided documentation to Keystone SMILES AmeriCorps that they enroll “a majority of economically disadvantaged students and/or a majority of children with special or exceptional needs.”"]
[null,"Student Name or ID","Added to Caseload for what report -  Nov, Feb, May or Final","Economically Disadvantaged (ED), Special Needs (SN), or School Majority (SM)",null,null,null,null,null,null,"Pre / Post Test Difference","Does pre/post difference indicate a year's work of growth?",null,"Did this student receive at least 35 hours of instruction?"]
[null,null,null,null,"Date of Pre Test","Type of Pre Test - DIBELS, STAR, 4Sight, AimsWeb, Study Island, CDT, etc.","Pretest Subject Area - Math or Literacy","Pre Test Score","Date of Post test","Pre Test Score",null,"Yes","No","Yes","No"]
["TOTALS:",{"$f":"COUNTA(B8:B157)","v":0},{"$f":"COUNTA(C8:C157)","v":0},{"$f":"COUNTA(D8:D157)","v":0},null,null,null,null,null,null,0,0,0,0,0]
["For Example","Charlie Brown","November","SM","2014-09-09","DIBELS","Literacy",44,"2015-05-01",77,33,"x",null,"x"]
[1]
[2]
[3]
[4]
[5]
[6]
[7]
[8]
[9]
[10]
[11]
[12]
[13]
[14]
[15]
[16]
[17]
[18]
[19]
[20]
[21]
[22]
[23]
[24]
[25]
[26]
[27]
[28]
[29]
[30]
[31]
[32]
[33]
[34]
[35]
[36]
[37]
[38]
[39]
[40]
[41]
[42]
[43]
[44]
[45]
[46]
[47]
[48]
[49]
[50]
[51]
[52]
[53]
[54]
[55]
[56]
[57]
[58]
[59]
[60]
[61]
[62]
[63]
[64]
[65]
[66]
[67]
[68]
[69]
[70]
[71]
[72]
[73]
[74]
[75]
[76]
[77]
[78]
[79]
[80]
[81]
[82]
[83]
[84]
[85]
[86]
[87]
[88]
[89]
[90]
[91]
[92]
[93]
[94]
[95]
[96]
[97]
[98]
[99]
[100]
[101]
[102]
[103]
[104]
[105]
[106]
[107]
[108]
[109]
[110]
[111]
[112]
[113]
[114]
[115]
[116]
[117]
[118]
[119]
[120]
[121]
[122]
[123]
[124]
[125]
[126]
[127]
[128]
[129]
[130]
[131]
[132]
[133]
[134]
[135]
[136]
[137]
[138]
[139]
[140]
[141]
[142]
[143]
[144]
[145]
[146]
[147]
[148]
[149]
[150]

{"sheet":"Students - Rubric","index":1,"n_rows":157,"n_cols":29,"rows_kept":157,"cut":false,"hidden":false,"merged":[[3,27,3,28],[0,0,3,0],[0,12,1,28],[2,2,2,11],[2,24,2,25],[2,27,2,28],[3,2,4,2],[3,4,4,4],[3,11,4,11],[3,24,3,25],[3,3,4,3],[1,2,1,4],[1,6,1,11]]}
["Keystone SMILES AmeriCorps","Expanded Learning Students Roster - Rubric",null,null,null,null,null,null,null,null,null,null,"Rosters are due via Email on November 15th, Feburary 15th, May 15th, and at the end of the Member's term.  This Roster, plus the reporting form, great story and photographs, together, comprise the member's complete Quarterly Report.  "]
[null,"Member Name:",null,null,null,"Host Site:"]
[null,"Definitions","Economically Disadvadvantaged:  Eligible for free (at or below 130% of poverty) or reduced (between 130% to 185% of poverty) lunch; may or may not actually be accessing free/reduced lunch    Special or exceptional needs:  Children who are developmentally disabled, such as those who are autistic, have cerebral palsy or epilepsy, are visually impaired, speech impaired, hearing impaired, orthopedically impaired, are emotionally disturbed or have a language disorder, specific learning disability, have multiple disabilities, other significant health impairment or have literacy needs. Children who are abused or neglected; in need of foster care; adjudicated youth; homeless youth; teenage parents; and children in need of protective intervention in their homes.  Majority School:  A District who has provided documentation to Keystone SMILES AmeriCorps that they enroll “a majority of economically disadvantaged students and/or a majority of children with special or exceptional needs.”",null,null,null,null,null,null,null,null,null,null,null,null,null,null,null,null,null,null,null,null,null,"Did the student receive at least 35 hours of instruction?",null,"In how many areas did the student improve by at least 2 levels?","Did student gain at least 2 levels in 1 of 6 areas?"]
[null,"Student Name or ID","Added to Caseload for what report -  Nov, Feb, May or Final","Economically Disadvantaged (ED), Special Needs (SN), or School Majority (SM)","Date Baseline Conducted:",null,null,null,null,null,null,"Date Final Evaluation conducted:",null,null,null,null,null,null,null,null,null,null,null,null,"Use Question [4] of the Academic Engagement Rubric Scoring Summary",null,"Use Question [6] of the Academic Engagement Rubric Scoring Summary","Use Question [7] of the Academic Engagement Rubric Scoring Summary"]
[null,null,null,null,null,"Baseline Motivation:","Baseline Leadership:","Baseline Attitude","Baseline Organization:","Baseline Behavior","Baseline Academics:",null,"Final Motivation:","Final Leadership:","Final Attitude","Final Organization:","Final Behavior","Final Academics:","Difference Motivation:","Difference Leadership:","Difference Attitude","Difference Organization:","Difference Behavior","Difference Academics:","Yes","No",null,"Yes","No"]
["TOTALS:",{"$f":"COUNTA(B8:B157)","v":0},{"$f":"COUNTA(C8:C157)","v":0},null,{"$f":"COUNTA(E8:E157)","v":0},null,null,null,null,null,null,0,null,null,null,null,null,null,null,null,null,null,null,null,0,0,{"$f":"COUNTIF(Table37[[#This Row],[Column28]:[Column23]], \">1\")","v":0},0,0]
["For Example","Charlie Brown","November",null,"2013-09-10",4,3,2,3,2,2,"2014-05-25",4,3,5,5,2,4,{"$f":"Table37[[#This Row],[Column22]]-Table37[[#This Row],[Column9]]","v":0},{"$f":"Table37[[#This Row],[Column21]]-Table37[[#This Row],[Column12]]","v":0},{"$f":"Table37[[#This Row],[Column20]]-Table37[[#This Row],[Column13]]","v":3},{"$f":"Table37[[#This Row],[Column19]]-Table37[[#This Row],[Column14]]","v":2},{"$f":"Table37[[#This Row],[Column18]]-Table37[[#This Row],[Column15]]","v":0},{"$f":"Table37[[#This Row],[Column17]]-Table37[[#This Row],[Column16]]","v":2},"x",null,{"$f":"COUNTIF(Table37[[#This Row],[Column28]:[Column23]], \">1\")","v":3},"x"]
[1,null,null,null,null,null,null,null,null,null,null,null,null,null,null,null,null,null,{"$f":"Table37[[#This Row],[Column22]]-Table37[[#This Row],[Column9]]","v":0},{"$f":"Table37[[#This Row],[Column21]]-Table37[[#This Row],[Column12]]","v":0},{"$f":"Table37[[#This Row],[Column20]]-Table37[[#This Row],[Column13]]","v":0},{"$f":"Table37[[#This Row],[Column19]]-Table37[[#This Row],[Column14]]","v":0},{"$f":"Table37[[#This Row],[Column18]]-Table37[[#This Row],[Column15]]","v":0},{"$f":"Table37[[#This Row],[Column17]]-Table37[[#This Row],[Column16]]","v":0},null,null,{"$f":"COUNTIF(Table37[[#This Row],[Column28]:[Column23]], \">1\")","v":0}]
[2,null,null,null,null,null,null,null,null,null,null,null,null,null,null,null,null,null,{"$f":"Table37[[#This Row],[Column22]]-Table37[[#This Row],[Column9]]","v":0},{"$f":"Table37[[#This Row],[Column21]]-Table37[[#This Row],[Column12]]","v":0},{"$f":"Table37[[#This Row],[Column20]]-Table37[[#This Row],[Column13]]","v":0},{"$f":"Table37[[#This Row],[Column19]]-Table37[[#This Row],[Column14]]","v":0},{"$f":"Table37[[#This Row],[Column18]]-Table37[[#This Row],[Column15]]","v":0},{"$f":"Table37[[#This Row],[Column17]]-Table37[[#This Row],[Column16]]","v":0},null,null,{"$f":"COUNTIF(Table37[[#This Row],[Column28]:[Column23]], \">1\")","v":0}]
[3,null,null,null,null,null,null,null,null,null,null,null,null,null,null,null,null,null,{"$f":"Table37[[#This Row],[Column22]]-Table37[[#This Row],[Column9]]","v":0},{"$f":"Table37[[#This Row],[Column21]]-Table37[[#This Row],[Column12]]","v":0},{"$f":"Table37[[#This Row],[Column20]]-Table37[[#This Row],[Column13]]","v":0},{"$f":"Table37[[#This Row],[Column19]]-Table37[[#This Row],[Column14]]","v":0},{"$f":"Table37[[#This Row],[Column18]]-Table37[[#This Row],[Column15]]","v":0},{"$f":"Table37[[#This Row],[Column17]]-Table37[[#This Row],[Column16]]","v":0},null,null,{"$f":"COUNTIF(Table37[[#This Row],[Column28]:[Column23]], \">1\")","v":0}]
[4,null,null,null,null,null,null,null,null,null,null,null,null,null,null,null,null,null,{"$f":"Table37[[#This Row],[Column22]]-Table37[[#This Row],[Column9]]","v":0},{"$f":"Table37[[#This Row],[Column21]]-Table37[[#This Row],[Column12]]","v":0},{"$f":"Table37[[#This Row],[Column20]]-Table37[[#This Row],[Column13]]","v":0},{"$f":"Table37[[#This Row],[Column19]]-Table37[[#This Row],[Column14]]","v":0},{"$f":"Table37[[#This Row],[Column18]]-Table37[[#This Row],[Column15]]","v":0},{"$f":"Table37[[#This Row],[Column17]]-Table37[[#This Row],[Column16]]","v":0},null,null,{"$f":"COUNTIF(Table37[[#This Row],[Column28]:[Column23]], \">1\")","v":0}]
[5,null,null,null,null,null,null,null,null,null,null,null,null,null,null,null,null,null,{"$f":"Table37[[#This Row],[Column22]]-Table37[[#This Row],[Column9]]","v":0},{"$f":"Table37[[#This Row],[Column21]]-Table37[[#This Row],[Column12]]","v":0},{"$f":"Table37[[#This Row],[Column20]]-Table37[[#This Row],[Column13]]","v":0},{"$f":"Table37[[#This Row],[Column19]]-Table37[[#This Row],[Column14]]","v":0},{"$f":"Table37[[#This Row],[Column18]]-Table37[[#This Row],[Column15]]","v":0},{"$f":"Table37[[#This Row],[Column17]]-Table37[[#This Row],[Column16]]","v":0},null,null,{"$f":"COUNTIF(Table37[[#This Row],[Column28]:[Column23]], \">1\")","v":0}]
[6,null,null,null,null,null,null,null,null,null,null,null,null,null,null,null,null,null,{"$f":"Table37[[#This Row],[Column22]]-Table37[[#This Row],[Column9]]","v":0},{"$f":"Table37[[#This Row],[Column21]]-Table37[[#This Row],[Column12]]","v":0},{"$f":"Table37[[#This Row],[Column20]]-Table37[[#This Row],[Column13]]","v":0},{"$f":"Table37[[#This Row],[Column19]]-Table37[[#This Row],[Column14]]","v":0},{"$f":"Table37[[#This Row],[Column18]]-Table37[[#This Row],[Column15]]","v":0},{"$f":"Table37[[#This Row],[Column17]]-Table37[[#This Row],[Column16]]","v":0},null,null,{"$f":"COUNTIF(Table37[[#This Row],[Column28]:[Column23]], \">1\")","v":0}]
[7,null,null,null,null,null,null,null,null,null,null,null,null,null,null,null,null,null,{"$f":"Table37[[#This Row],[Column22]]-Table37[[#This Row],[Column9]]","v":0},{"$f":"Table37[[#This Row],[Column21]]-Table37[[#This Row],[Column12]]","v":0},{"$f":"Table37[[#This Row],[Column20]]-Table37[[#This Row],[Column13]]","v":0},{"$f":"Table37[[#This Row],[Column19]]-Table37[[#This Row],[Column14]]","v":0},{"$f":"Table37[[#This Row],[Column18]]-Table37[[#This Row],[Column15]]","v":0},{"$f":"Table37[[#This Row],[Column17]]-Table37[[#This Row],[Column16]]","v":0},null,null,{"$f":"COUNTIF(Table37[[#This Row],[Column28]:[Column23]], \">1\")","v":0}]
[8,null,null,null,null,null,null,null,null,null,null,null,null,null,null,null,null,null,{"$f":"Table37[[#This Row],[Column22]]-Table37[[#This Row],[Column9]]","v":0},{"$f":"Table37[[#This Row],[Column21]]-Table37[[#This Row],[Column12]]","v":0},{"$f":"Table37[[#This Row],[Column20]]-Table37[[#This Row],[Column13]]","v":0},{"$f":"Table37[[#This Row],[Column19]]-Table37[[#This Row],[Column14]]","v":0},{"$f":"Table37[[#This Row],[Column18]]-Table37[[#This Row],[Column15]]","v":0},{"$f":"Table37[[#This Row],[Column17]]-Table37[[#This Row],[Column16]]","v":0},null,null,{"$f":"COUNTIF(Table37[[#This Row],[Column28]:[Column23]], \">1\")","v":0}]
[9,null,null,null,null,null,null,null,null,null,null,null,null,null,null,null,null,null,{"$f":"Table37[[#This Row],[Column22]]-Table37[[#This Row],[Column9]]","v":0},{"$f":"Table37[[#This Row],[Column21]]-Table37[[#This Row],[Column12]]","v":0},{"$f":"Table37[[#This Row],[Column20]]-Table37[[#This Row],[Column13]]","v":0},{"$f":"Table37[[#This Row],[Column19]]-Table37[[#This Row],[Column14]]","v":0},{"$f":"Table37[[#This Row],[Column18]]-Table37[[#This Row],[Column15]]","v":0},{"$f":"Table37[[#This Row],[Column17]]-Table37[[#This Row],[Column16]]","v":0},null,null,{"$f":"COUNTIF(Table37[[#This Row],[Column28]:[Column23]], \">1\")","v":0}]
[10,null,null,null,null,null,null,null,null,null,null,null,null,null,null,null,null,null,{"$f":"Table37[[#This Row],[Column22]]-Table37[[#This Row],[Column9]]","v":0},{"$f":"Table37[[#This Row],[Column21]]-Table37[[#This Row],[Column12]]","v":0},{"$f":"Table37[[#This Row],[Column20]]-Table37[[#This Row],[Column13]]","v":0},{"$f":"Table37[[#This Row],[Column19]]-Table37[[#This Row],[Column14]]","v":0},{"$f":"Table37[[#This Row],[Column18]]-Table37[[#This Row],[Column15]]","v":0},{"$f":"Table37[[#This Row],[Column17]]-Table37[[#This Row],[Column16]]","v":0},null,null,{"$f":"COUNTIF(Table37[[#This Row],[Column28]:[Column23]], \">1\")","v":0}]
[11,null,null,null,null,null,null,null,null,null,null,null,null,null,null,null,null,null,{"$f":"Table37[[#This Row],[Column22]]-Table37[[#This Row],[Column9]]","v":0},{"$f":"Table37[[#This Row],[Column21]]-Table37[[#This Row],[Column12]]","v":0},{"$f":"Table37[[#This Row],[Column20]]-Table37[[#This Row],[Column13]]","v":0},{"$f":"Table37[[#This Row],[Column19]]-Table37[[#This Row],[Column14]]","v":0},{"$f":"Table37[[#This Row],[Column18]]-Table37[[#This Row],[Column15]]","v":0},{"$f":"Table37[[#This Row],[Column17]]-Table37[[#This Row],[Column16]]","v":0},null,null,{"$f":"COUNTIF(Table37[[#This Row],[Column28]:[Column23]], \">1\")","v":0}]
[12,null,null,null,null,null,null,null,null,null,null,null,null,null,null,null,null,null,{"$f":"Table37[[#This Row],[Column22]]-Table37[[#This Row],[Column9]]","v":0},{"$f":"Table37[[#This Row],[Column21]]-Table37[[#This Row],[Column12]]","v":0},{"$f":"Table37[[#This Row],[Column20]]-Table37[[#This Row],[Column13]]","v":0},{"$f":"Table37[[#This Row],[Column19]]-Table37[[#This Row],[Column14]]","v":0},{"$f":"Table37[[#This Row],[Column18]]-Table37[[#This Row],[Column15]]","v":0},{"$f":"Table37[[#This Row],[Column17]]-Table37[[#This Row],[Column16]]","v":0},null,null,{"$f":"COUNTIF(Table37[[#This Row],[Column28]:[Column23]], \">1\")","v":0}]
[13,null,null,null,null,null,null,null,null,null,null,null,null,null,null,null,null,null,{"$f":"Table37[[#This Row],[Column22]]-Table37[[#This Row],[Column9]]","v":0},{"$f":"Table37[[#This Row],[Column21]]-Table37[[#This Row],[Column12]]","v":0},{"$f":"Table37[[#This Row],[Column20]]-Table37[[#This Row],[Column13]]","v":0},{"$f":"Table37[[#This Row],[Column19]]-Table37[[#This Row],[Column14]]","v":0},{"$f":"Table37[[#This Row],[Column18]]-Table37[[#This Row],[Column15]]","v":0},{"$f":"Table37[[#This Row],[Column17]]-Table37[[#This Row],[Column16]]","v":0},null,null,{"$f":"COUNTIF(Table37[[#This Row],[Column28]:[Column23]], \">1\")","v":0}]
[14,null,null,null,null,null,null,null,null,null,null,null,null,null,null,null,null,null,{"$f":"Table37[[#This Row],[Column22]]-Table37[[#This Row],[Column9]]","v":0},{"$f":"Table37[[#This Row],[Column21]]-Table37[[#This Row],[Column12]]","v":0},{"$f":"Table37[[#This Row],[Column20]]-Table37[[#This Row],[Column13]]","v":0},{"$f":"Table37[[#This Row],[Column19]]-Table37[[#This Row],[Column14]]","v":0},{"$f":"Table37[[#This Row],[Column18]]-Table37[[#This Row],[Column15]]","v":0},{"$f":"Table37[[#This Row],[Column17]]-Table37[[#This Row],[Column16]]","v":0},null,null,{"$f":"COUNTIF(Table37[[#This Row],[Column28]:[Column23]], \">1\")","v":0}]
[15,null,null,null,null,null,null,null,null,null,null,null,null,null,null,null,null,null,{"$f":"Table37[[#This Row],[Column22]]-Table37[[#This Row],[Column9]]","v":0},{"$f":"Table37[[#This Row],[Column21]]-Table37[[#This Row],[Column12]]","v":0},{"$f":"Table37[[#This Row],[Column20]]-Table37[[#This Row],[Column13]]","v":0},{"$f":"Table37[[#This Row],[Column19]]-Table37[[#This Row],[Column14]]","v":0},{"$f":"Table37[[#This Row],[Column18]]-Table37[[#This Row],[Column15]]","v":0},{"$f":"Table37[[#This Row],[Column17]]-Table37[[#This Row],[Column16]]","v":0},null,null,{"$f":"COUNTIF(Table37[[#This Row],[Column28]:[Column23]], \">1\")","v":0}]
[16,null,null,null,null,null,null,null,null,null,null,null,null,null,null,null,null,null,{"$f":"Table37[[#This Row],[Column22]]-Table37[[#This Row],[Column9]]","v":0},{"$f":"Table37[[#This Row],[Column21]]-Table37[[#This Row],[Column12]]","v":0},{"$f":"Table37[[#This Row],[Column20]]-Table37[[#This Row],[Column13]]","v":0},{"$f":"Table37[[#This Row],[Column19]]-Table37[[#This Row],[Column14]]","v":0},{"$f":"Table37[[#This Row],[Column18]]-Table37[[#This Row],[Column15]]","v":0},{"$f":"Table37[[#This Row],[Column17]]-Table37[[#This Row],[Column16]]","v":0},null,null,{"$f":"COUNTIF(Table37[[#This Row],[Column28]:[Column23]], \">1\")","v":0}]
[17,null,null,null,null,null,null,null,null,null,null,null,null,null,null,null,null,null,{"$f":"Table37[[#This Row],[Column22]]-Table37[[#This Row],[Column9]]","v":0},{"$f":"Table37[[#This Row],[Column21]]-Table37[[#This Row],[Column12]]","v":0},{"$f":"Table37[[#This Row],[Column20]]-Table37[[#This Row],[Column13]]","v":0},{"$f":"Table37[[#This Row],[Column19]]-Table37[[#This Row],[Column14]]","v":0},{"$f":"Table37[[#This Row],[Column18]]-Table37[[#This Row],[Column15]]","v":0},{"$f":"Table37[[#This Row],[Column17]]-Table37[[#This Row],[Column16]]","v":0},null,null,{"$f":"COUNTIF(Table37[[#This Row],[Column28]:[Column23]], \">1\")","v":0}]
[18,null,null,null,null,null,null,null,null,null,null,null,null,null,null,null,null,null,{"$f":"Table37[[#This Row],[Column22]]-Table37[[#This Row],[Column9]]","v":0},{"$f":"Table37[[#This Row],[Column21]]-Table37[[#This Row],[Column12]]","v":0},{"$f":"Table37[[#This Row],[Column20]]-Table37[[#This Row],[Column13]]","v":0},{"$f":"Table37[[#This Row],[Column19]]-Table37[[#This Row],[Column14]]","v":0},{"$f":"Table37[[#This Row],[Column18]]-Table37[[#This Row],[Column15]]","v":0},{"$f":"Table37[[#This Row],[Column17]]-Table37[[#This Row],[Column16]]","v":0},null,null,{"$f":"COUNTIF(Table37[[#This Row],[Column28]:[Column23]], \">1\")","v":0}]
[19,null,null,null,null,null,null,null,null,null,null,null,null,null,null,null,null,null,{"$f":"Table37[[#This Row],[Column22]]-Table37[[#This Row],[Column9]]","v":0},{"$f":"Table37[[#This Row],[Column21]]-Table37[[#This Row],[Column12]]","v":0},{"$f":"Table37[[#This Row],[Column20]]-Table37[[#This Row],[Column13]]","v":0},{"$f":"Table37[[#This Row],[Column19]]-Table37[[#This Row],[Column14]]","v":0},{"$f":"Table37[[#This Row],[Column18]]-Table37[[#This Row],[Column15]]","v":0},{"$f":"Table37[[#This Row],[Column17]]-Table37[[#This Row],[Column16]]","v":0},null,null,{"$f":"COUNTIF(Table37[[#This Row],[Column28]:[Column23]], \">1\")","v":0}]
[20,null,null,null,null,null,null,null,null,null,null,null,null,null,null,null,null,null,{"$f":"Table37[[#This Row],[Column22]]-Table37[[#This Row],[Column9]]","v":0},{"$f":"Table37[[#This Row],[Column21]]-Table37[[#This Row],[Column12]]","v":0},{"$f":"Table37[[#This Row],[Column20]]-Table37[[#This Row],[Column13]]","v":0},{"$f":"Table37[[#This Row],[Column19]]-Table37[[#This Row],[Column14]]","v":0},{"$f":"Table37[[#This Row],[Column18]]-Table37[[#This Row],[Column15]]","v":0},{"$f":"Table37[[#This Row],[Column17]]-Table37[[#This Row],[Column16]]","v":0},null,null,{"$f":"COUNTIF(Table37[[#This Row],[Column28]:[Column23]], \">1\")","v":0}]
[21,null,null,null,null,null,null,null,null,null,null,null,null,null,null,null,null,null,{"$f":"Table37[[#This Row],[Column22]]-Table37[[#This Row],[Column9]]","v":0},{"$f":"Table37[[#This Row],[Column21]]-Table37[[#This Row],[Column12]]","v":0},{"$f":"Table37[[#This Row],[Column20]]-Table37[[#This Row],[Column13]]","v":0},{"$f":"Table37[[#This Row],[Column19]]-Table37[[#This Row],[Column14]]","v":0},{"$f":"Table37[[#This Row],[Column18]]-Table37[[#This Row],[Column15]]","v":0},{"$f":"Table37[[#This Row],[Column17]]-Table37[[#This Row],[Column16]]","v":0},null,null,{"$f":"COUNTIF(Table37[[#This Row],[Column28]:[Column23]], \">1\")","v":0}]
[22,null,null,null,null,null,null,null,null,null,null,null,null,null,null,null,null,null,{"$f":"Table37[[#This Row],[Column22]]-Table37[[#This Row],[Column9]]","v":0},{"$f":"Table37[[#This Row],[Column21]]-Table37[[#This Row],[Column12]]","v":0},{"$f":"Table37[[#This Row],[Column20]]-Table37[[#This Row],[Column13]]","v":0},{"$f":"Table37[[#This Row],[Column19]]-Table37[[#This Row],[Column14]]","v":0},{"$f":"Table37[[#This Row],[Column18]]-Table37[[#This Row],[Column15]]","v":0},{"$f":"Table37[[#This Row],[Column17]]-Table37[[#This Row],[Column16]]","v":0},null,null,{"$f":"COUNTIF(Table37[[#This Row],[Column28]:[Column23]], \">1\")","v":0}]
[23,null,null,null,null,null,null,null,null,null,null,null,null,null,null,null,null,null,{"$f":"Table37[[#This Row],[Column22]]-Table37[[#This Row],[Column9]]","v":0},{"$f":"Table37[[#This Row],[Column21]]-Table37[[#This Row],[Column12]]","v":0},{"$f":"Table37[[#This Row],[Column20]]-Table37[[#This Row],[Column13]]","v":0},{"$f":"Table37[[#This Row],[Column19]]-Table37[[#This Row],[Column14]]","v":0},{"$f":"Table37[[#This Row],[Column18]]-Table37[[#This Row],[Column15]]","v":0},{"$f":"Table37[[#This Row],[Column17]]-Table37[[#This Row],[Column16]]","v":0},null,null,{"$f":"COUNTIF(Table37[[#This Row],[Column28]:[Column23]], \">1\")","v":0}]
[24,null,null,null,null,null,null,null,null,null,null,null,null,null,null,null,null,null,{"$f":"Table37[[#This Row],[Column22]]-Table37[[#This Row],[Column9]]","v":0},{"$f":"Table37[[#This Row],[Column21]]-Table37[[#This Row],[Column12]]","v":0},{"$f":"Table37[[#This Row],[Column20]]-Table37[[#This Row],[Column13]]","v":0},{"$f":"Table37[[#This Row],[Column19]]-Table37[[#This Row],[Column14]]","v":0},{"$f":"Table37[[#This Row],[Column18]]-Table37[[#This Row],[Column15]]","v":0},{"$f":"Table37[[#This Row],[Column17]]-Table37[[#This Row],[Column16]]","v":0},null,null,{"$f":"COUNTIF(Table37[[#This Row],[Column28]:[Column23]], \">1\")","v":0}]
[25,null,null,null,null,null,null,null,null,null,null,null,null,null,null,null,null,null,{"$f":"Table37[[#This Row],[Column22]]-Table37[[#This Row],[Column9]]","v":0},{"$f":"Table37[[#This Row],[Column21]]-Table37[[#This Row],[Column12]]","v":0},{"$f":"Table37[[#This Row],[Column20]]-Table37[[#This Row],[Column13]]","v":0},{"$f":"Table37[[#This Row],[Column19]]-Table37[[#This Row],[Column14]]","v":0},{"$f":"Table37[[#This Row],[Column18]]-Table37[[#This Row],[Column15]]","v":0},{"$f":"Table37[[#This Row],[Column17]]-Table37[[#This Row],[Column16]]","v":0},null,null,{"$f":"COUNTIF(Table37[[#This Row],[Column28]:[Column23]], \">1\")","v":0}]
[26,null,null,null,null,null,null,null,null,null,null,null,null,null,null,null,null,null,{"$f":"Table37[[#This Row],[Column22]]-Table37[[#This Row],[Column9]]","v":0},{"$f":"Table37[[#This Row],[Column21]]-Table37[[#This Row],[Column12]]","v":0},{"$f":"Table37[[#This Row],[Column20]]-Table37[[#This Row],[Column13]]","v":0},{"$f":"Table37[[#This Row],[Column19]]-Table37[[#This Row],[Column14]]","v":0},{"$f":"Table37[[#This Row],[Column18]]-Table37[[#This Row],[Column15]]","v":0},{"$f":"Table37[[#This Row],[Column17]]-Table37[[#This Row],[Column16]]","v":0},null,null,{"$f":"COUNTIF(Table37[[#This Row],[Column28]:[Column23]], \">1\")","v":0}]
[27,null,null,null,null,null,null,null,null,null,null,null,null,null,null,null,null,null,{"$f":"Table37[[#This Row],[Column22]]-Table37[[#This Row],[Column9]]","v":0},{"$f":"Table37[[#This Row],[Column21]]-Table37[[#This Row],[Column12]]","v":0},{"$f":"Table37[[#This Row],[Column20]]-Table37[[#This Row],[Column13]]","v":0},{"$f":"Table37[[#This Row],[Column19]]-Table37[[#This Row],[Column14]]","v":0},{"$f":"Table37[[#This Row],[Column18]]-Table37[[#This Row],[Column15]]","v":0},{"$f":"Table37[[#This Row],[Column17]]-Table37[[#This Row],[Column16]]","v":0},null,null,{"$f":"COUNTIF(Table37[[#This Row],[Column28]:[Column23]], \">1\")","v":0}]
[28,null,null,null,null,null,null,null,null,null,null,null,null,null,null,null,null,null,{"$f":"Table37[[#This Row],[Column22]]-Table37[[#This Row],[Column9]]","v":0},{"$f":"Table37[[#This Row],[Column21]]-Table37[[#This Row],[Column12]]","v":0},{"$f":"Table37[[#This Row],[Column20]]-Table37[[#This Row],[Column13]]","v":0},{"$f":"Table37[[#This Row],[Column19]]-Table37[[#This Row],[Column14]]","v":0},{"$f":"Table37[[#This Row],[Column18]]-Table37[[#This Row],[Column15]]","v":0},{"$f":"Table37[[#This Row],[Column17]]-Table37[[#This Row],[Column16]]","v":0},null,null,{"$f":"COUNTIF(Table37[[#This Row],[Column28]:[Column23]], \">1\")","v":0}]
[29,null,null,null,null,null,null,null,null,null,null,null,null,null,null,null,null,null,{"$f":"Table37[[#This Row],[Column22]]-Table37[[#This Row],[Column9]]","v":0},{"$f":"Table37[[#This Row],[Column21]]-Table37[[#This Row],[Column12]]","v":0},{"$f":"Table37[[#This Row],[Column20]]-Table37[[#This Row],[Column13]]","v":0},{"$f":"Table37[[#This Row],[Column19]]-Table37[[#This Row],[Column14]]","v":0},{"$f":"Table37[[#This Row],[Column18]]-Table37[[#This Row],[Column15]]","v":0},{"$f":"Table37[[#This Row],[Column17]]-Table37[[#This Row],[Column16]]","v":0},null,null,{"$f":"COUNTIF(Table37[[#This Row],[Column28]:[Column23]], \">1\")","v":0}]
[30,null,null,null,null,null,null,null,null,null,null,null,null,null,null,null,null,null,{"$f":"Table37[[#This Row],[Column22]]-Table37[[#This Row],[Column9]]","v":0},{"$f":"Table37[[#This Row],[Column21]]-Table37[[#This Row],[Column12]]","v":0},{"$f":"Table37[[#This Row],[Column20]]-Table37[[#This Row],[Column13]]","v":0},{"$f":"Table37[[#This Row],[Column19]]-Table37[[#This Row],[Column14]]","v":0},{"$f":"Table37[[#This Row],[Column18]]-Table37[[#This Row],[Column15]]","v":0},{"$f":"Table37[[#This Row],[Column17]]-Table37[[#This Row],[Column16]]","v":0},null,null,{"$f":"COUNTIF(Table37[[#This Row],[Column28]:[Column23]], \">1\")","v":0}]
[31,null,null,null,null,null,null,null,null,null,null,null,null,null,null,null,null,null,{"$f":"Table37[[#This Row],[Column22]]-Table37[[#This Row],[Column9]]","v":0},{"$f":"Table37[[#This Row],[Column21]]-Table37[[#This Row],[Column12]]","v":0},{"$f":"Table37[[#This Row],[Column20]]-Table37[[#This Row],[Column13]]","v":0},{"$f":"Table37[[#This Row],[Column19]]-Table37[[#This Row],[Column14]]","v":0},{"$f":"Table37[[#This Row],[Column18]]-Table37[[#This Row],[Column15]]","v":0},{"$f":"Table37[[#This Row],[Column17]]-Table37[[#This Row],[Column16]]","v":0},null,null,{"$f":"COUNTIF(Table37[[#This Row],[Column28]:[Column23]], \">1\")","v":0}]
[32,null,null,null,null,null,null,null,null,null,null,null,null,null,null,null,null,null,{"$f":"Table37[[#This Row],[Column22]]-Table37[[#This Row],[Column9]]","v":0},{"$f":"Table37[[#This Row],[Column21]]-Table37[[#This Row],[Column12]]","v":0},{"$f":"Table37[[#This Row],[Column20]]-Table37[[#This Row],[Column13]]","v":0},{"$f":"Table37[[#This Row],[Column19]]-Table37[[#This Row],[Column14]]","v":0},{"$f":"Table37[[#This Row],[Column18]]-Table37[[#This Row],[Column15]]","v":0},{"$f":"Table37[[#This Row],[Column17]]-Table37[[#This Row],[Column16]]","v":0},null,null,{"$f":"COUNTIF(Table37[[#This Row],[Column28]:[Column23]], \">1\")","v":0}]
[33,null,null,null,null,null,null,null,null,null,null,null,null,null,null,null,null,null,{"$f":"Table37[[#This Row],[Column22]]-Table37[[#This Row],[Column9]]","v":0},{"$f":"Table37[[#This Row],[Column21]]-Table37[[#This Row],[Column12]]","v":0},{"$f":"Table37[[#This Row],[Column20]]-Table37[[#This Row],[Column13]]","v":0},{"$f":"Table37[[#This Row],[Column19]]-Table37[[#This Row],[Column14]]","v":0},{"$f":"Table37[[#This Row],[Column18]]-Table37[[#This Row],[Column15]]","v":0},{"$f":"Table37[[#This Row],[Column17]]-Table37[[#This Row],[Column16]]","v":0},null,null,{"$f":"COUNTIF(Table37[[#This Row],[Column28]:[Column23]], \">1\")","v":0}]
[34,null,null,null,null,null,null,null,null,null,null,null,null,null,null,null,null,null,{"$f":"Table37[[#This Row],[Column22]]-Table37[[#This Row],[Column9]]","v":0},{"$f":"Table37[[#This Row],[Column21]]-Table37[[#This Row],[Column12]]","v":0},{"$f":"Table37[[#This Row],[Column20]]-Table37[[#This Row],[Column13]]","v":0},{"$f":"Table37[[#This Row],[Column19]]-Table37[[#This Row],[Column14]]","v":0},{"$f":"Table37[[#This Row],[Column18]]-Table37[[#This Row],[Column15]]","v":0},{"$f":"Table37[[#This Row],[Column17]]-Table37[[#This Row],[Column16]]","v":0},null,null,{"$f":"COUNTIF(Table37[[#This Row],[Column28]:[Column23]], \">1\")","v":0}]
[35,null,null,null,null,null,null,null,null,null,null,null,null,null,null,null,null,null,{"$f":"Table37[[#This Row],[Column22]]-Table37[[#This Row],[Column9]]","v":0},{"$f":"Table37[[#This Row],[Column21]]-Table37[[#This Row],[Column12]]","v":0},{"$f":"Table37[[#This Row],[Column20]]-Table37[[#This Row],[Column13]]","v":0},{"$f":"Table37[[#This Row],[Column19]]-Table37[[#This Row],[Column14]]","v":0},{"$f":"Table37[[#This Row],[Column18]]-Table37[[#This Row],[Column15]]","v":0},{"$f":"Table37[[#This Row],[Column17]]-Table37[[#This Row],[Column16]]","v":0},null,null,{"$f":"COUNTIF(Table37[[#This Row],[Column28]:[Column23]], \">1\")","v":0}]
[36,null,null,null,null,null,null,null,null,null,null,null,null,null,null,null,null,null,{"$f":"Table37[[#This Row],[Column22]]-Table37[[#This Row],[Column9]]","v":0},{"$f":"Table37[[#This Row],[Column21]]-Table37[[#This Row],[Column12]]","v":0},{"$f":"Table37[[#This Row],[Column20]]-Table37[[#This Row],[Column13]]","v":0},{"$f":"Table37[[#This Row],[Column19]]-Table37[[#This Row],[Column14]]","v":0},{"$f":"Table37[[#This Row],[Column18]]-Table37[[#This Row],[Column15]]","v":0},{"$f":"Table37[[#This Row],[Column17]]-Table37[[#This Row],[Column16]]","v":0},null,null,{"$f":"COUNTIF(Table37[[#This Row],[Column28]:[Column23]], \">1\")","v":0}]
[37,null,null,null,null,null,null,null,null,null,null,null,null,null,null,null,null,null,{"$f":"Table37[[#This Row],[Column22]]-Table37[[#This Row],[Column9]]","v":0},{"$f":"Table37[[#This Row],[Column21]]-Table37[[#This Row],[Column12]]","v":0},{"$f":"Table37[[#This Row],[Column20]]-Table37[[#This Row],[Column13]]","v":0},{"$f":"Table37[[#This Row],[Column19]]-Table37[[#This Row],[Column14]]","v":0},{"$f":"Table37[[#This Row],[Column18]]-Table37[[#This Row],[Column15]]","v":0},{"$f":"Table37[[#This Row],[Column17]]-Table37[[#This Row],[Column16]]","v":0},null,null,{"$f":"COUNTIF(Table37[[#This Row],[Column28]:[Column23]], \">1\")","v":0}]
[38,null,null,null,null,null,null,null,null,null,null,null,null,null,null,null,null,null,{"$f":"Table37[[#This Row],[Column22]]-Table37[[#This Row],[Column9]]","v":0},{"$f":"Table37[[#This Row],[Column21]]-Table37[[#This Row],[Column12]]","v":0},{"$f":"Table37[[#This Row],[Column20]]-Table37[[#This Row],[Column13]]","v":0},{"$f":"Table37[[#This Row],[Column19]]-Table37[[#This Row],[Column14]]","v":0},{"$f":"Table37[[#This Row],[Column18]]-Table37[[#This Row],[Column15]]","v":0},{"$f":"Table37[[#This Row],[Column17]]-Table37[[#This Row],[Column16]]","v":0},null,null,{"$f":"COUNTIF(Table37[[#This Row],[Column28]:[Column23]], \">1\")","v":0}]
[39,null,null,null,null,null,null,null,null,null,null,null,null,null,null,null,null,null,{"$f":"Table37[[#This Row],[Column22]]-Table37[[#This Row],[Column9]]","v":0},{"$f":"Table37[[#This Row],[Column21]]-Table37[[#This Row],[Column12]]","v":0},{"$f":"Table37[[#This Row],[Column20]]-Table37[[#This Row],[Column13]]","v":0},{"$f":"Table37[[#This Row],[Column19]]-Table37[[#This Row],[Column14]]","v":0},{"$f":"Table37[[#This Row],[Column18]]-Table37[[#This Row],[Column15]]","v":0},{"$f":"Table37[[#This Row],[Column17]]-Table37[[#This Row],[Column16]]","v":0},null,null,{"$f":"COUNTIF(Table37[[#This Row],[Column28]:[Column23]], \">1\")","v":0}]
[40,null,null,null,null,null,null,null,null,null,null,null,null,null,null,null,null,null,{"$f":"Table37[[#This Row],[Column22]]-Table37[[#This Row],[Column9]]","v":0},{"$f":"Table37[[#This Row],[Column21]]-Table37[[#This Row],[Column12]]","v":0},{"$f":"Table37[[#This Row],[Column20]]-Table37[[#This Row],[Column13]]","v":0},{"$f":"Table37[[#This Row],[Column19]]-Table37[[#This Row],[Column14]]","v":0},{"$f":"Table37[[#This Row],[Column18]]-Table37[[#This Row],[Column15]]","v":0},{"$f":"Table37[[#This Row],[Column17]]-Table37[[#This Row],[Column16]]","v":0},null,null,{"$f":"COUNTIF(Table37[[#This Row],[Column28]:[Column23]], \">1\")","v":0}]
[41,null,null,null,null,null,null,null,null,null,null,null,null,null,null,null,null,null,{"$f":"Table37[[#This Row],[Column22]]-Table37[[#This Row],[Column9]]","v":0},{"$f":"Table37[[#This Row],[Column21]]-Table37[[#This Row],[Column12]]","v":0},{"$f":"Table37[[#This Row],[Column20]]-Table37[[#This Row],[Column13]]","v":0},{"$f":"Table37[[#This Row],[Column19]]-Table37[[#This Row],[Column14]]","v":0},{"$f":"Table37[[#This Row],[Column18]]-Table37[[#This Row],[Column15]]","v":0},{"$f":"Table37[[#This Row],[Column17]]-Table37[[#This Row],[Column16]]","v":0},null,null,{"$f":"COUNTIF(Table37[[#This Row],[Column28]:[Column23]], \">1\")","v":0}]
[42,null,null,null,null,null,null,null,null,null,null,null,null,null,null,null,null,null,{"$f":"Table37[[#This Row],[Column22]]-Table37[[#This Row],[Column9]]","v":0},{"$f":"Table37[[#This Row],[Column21]]-Table37[[#This Row],[Column12]]","v":0},{"$f":"Table37[[#This Row],[Column20]]-Table37[[#This Row],[Column13]]","v":0},{"$f":"Table37[[#This Row],[Column19]]-Table37[[#This Row],[Column14]]","v":0},{"$f":"Table37[[#This Row],[Column18]]-Table37[[#This Row],[Column15]]","v":0},{"$f":"Table37[[#This Row],[Column17]]-Table37[[#This Row],[Column16]]","v":0},null,null,{"$f":"COUNTIF(Table37[[#This Row],[Column28]:[Column23]], \">1\")","v":0}]
[43,null,null,null,null,null,null,null,null,null,null,null,null,null,null,null,null,null,{"$f":"Table37[[#This Row],[Column22]]-Table37[[#This Row],[Column9]]","v":0},{"$f":"Table37[[#This Row],[Column21]]-Table37[[#This Row],[Column12]]","v":0},{"$f":"Table37[[#This Row],[Column20]]-Table37[[#This Row],[Column13]]","v":0},{"$f":"Table37[[#This Row],[Column19]]-Table37[[#This Row],[Column14]]","v":0},{"$f":"Table37[[#This Row],[Column18]]-Table37[[#This Row],[Column15]]","v":0},{"$f":"Table37[[#This Row],[Column17]]-Table37[[#This Row],[Column16]]","v":0},null,null,{"$f":"COUNTIF(Table37[[#This Row],[Column28]:[Column23]], \">1\")","v":0}]
[44,null,null,null,null,null,null,null,null,null,null,null,null,null,null,null,null,null,{"$f":"Table37[[#This Row],[Column22]]-Table37[[#This Row],[Column9]]","v":0},{"$f":"Table37[[#This Row],[Column21]]-Table37[[#This Row],[Column12]]","v":0},{"$f":"Table37[[#This Row],[Column20]]-Table37[[#This Row],[Column13]]","v":0},{"$f":"Table37[[#This Row],[Column19]]-Table37[[#This Row],[Column14]]","v":0},{"$f":"Table37[[#This Row],[Column18]]-Table37[[#This Row],[Column15]]","v":0},{"$f":"Table37[[#This Row],[Column17]]-Table37[[#This Row],[Column16]]","v":0},null,null,{"$f":"COUNTIF(Table37[[#This Row],[Column28]:[Column23]], \">1\")","v":0}]
[45,null,null,null,null,null,null,null,null,null,null,null,null,null,null,null,null,null,{"$f":"Table37[[#This Row],[Column22]]-Table37[[#This Row],[Column9]]","v":0},{"$f":"Table37[[#This Row],[Column21]]-Table37[[#This Row],[Column12]]","v":0},{"$f":"Table37[[#This Row],[Column20]]-Table37[[#This Row],[Column13]]","v":0},{"$f":"Table37[[#This Row],[Column19]]-Table37[[#This Row],[Column14]]","v":0},{"$f":"Table37[[#This Row],[Column18]]-Table37[[#This Row],[Column15]]","v":0},{"$f":"Table37[[#This Row],[Column17]]-Table37[[#This Row],[Column16]]","v":0},null,null,{"$f":"COUNTIF(Table37[[#This Row],[Column28]:[Column23]], \">1\")","v":0}]
[46,null,null,null,null,null,null,null,null,null,null,null,null,null,null,null,null,null,{"$f":"Table37[[#This Row],[Column22]]-Table37[[#This Row],[Column9]]","v":0},{"$f":"Table37[[#This Row],[Column21]]-Table37[[#This Row],[Column12]]","v":0},{"$f":"Table37[[#This Row],[Column20]]-Table37[[#This Row],[Column13]]","v":0},{"$f":"Table37[[#This Row],[Column19]]-Table37[[#This Row],[Column14]]","v":0},{"$f":"Table37[[#This Row],[Column18]]-Table37[[#This Row],[Column15]]","v":0},{"$f":"Table37[[#This Row],[Column17]]-Table37[[#This Row],[Column16]]","v":0},null,null,{"$f":"COUNTIF(Table37[[#This Row],[Column28]:[Column23]], \">1\")","v":0}]
[47,null,null,null,null,null,null,null,null,null,null,null,null,null,null,null,null,null,{"$f":"Table37[[#This Row],[Column22]]-Table37[[#This Row],[Column9]]","v":0},{"$f":"Table37[[#This Row],[Column21]]-Table37[[#This Row],[Column12]]","v":0},{"$f":"Table37[[#This Row],[Column20]]-Table37[[#This Row],[Column13]]","v":0},{"$f":"Table37[[#This Row],[Column19]]-Table37[[#This Row],[Column14]]","v":0},{"$f":"Table37[[#This Row],[Column18]]-Table37[[#This Row],[Column15]]","v":0},{"$f":"Table37[[#This Row],[Column17]]-Table37[[#This Row],[Column16]]","v":0},null,null,{"$f":"COUNTIF(Table37[[#This Row],[Column28]:[Column23]], \">1\")","v":0}]
[48,null,null,null,null,null,null,null,null,null,null,null,null,null,null,null,null,null,{"$f":"Table37[[#This Row],[Column22]]-Table37[[#This Row],[Column9]]","v":0},{"$f":"Table37[[#This Row],[Column21]]-Table37[[#This Row],[Column12]]","v":0},{"$f":"Table37[[#This Row],[Column20]]-Table37[[#This Row],[Column13]]","v":0},{"$f":"Table37[[#This Row],[Column19]]-Table37[[#This Row],[Column14]]","v":0},{"$f":"Table37[[#This Row],[Column18]]-Table37[[#This Row],[Column15]]","v":0},{"$f":"Table37[[#This Row],[Column17]]-Table37[[#This Row],[Column16]]","v":0},null,null,{"$f":"COUNTIF(Table37[[#This Row],[Column28]:[Column23]], \">1\")","v":0}]
[49,null,null,null,null,null,null,null,null,null,null,null,null,null,null,null,null,null,{"$f":"Table37[[#This Row],[Column22]]-Table37[[#This Row],[Column9]]","v":0},{"$f":"Table37[[#This Row],[Column21]]-Table37[[#This Row],[Column12]]","v":0},{"$f":"Table37[[#This Row],[Column20]]-Table37[[#This Row],[Column13]]","v":0},{"$f":"Table37[[#This Row],[Column19]]-Table37[[#This Row],[Column14]]","v":0},{"$f":"Table37[[#This Row],[Column18]]-Table37[[#This Row],[Column15]]","v":0},{"$f":"Table37[[#This Row],[Column17]]-Table37[[#This Row],[Column16]]","v":0},null,null,{"$f":"COUNTIF(Table37[[#This Row],[Column28]:[Column23]], \">1\")","v":0}]
[50,null,null,null,null,null,null,null,null,null,null,null,null,null,null,null,null,null,{"$f":"Table37[[#This Row],[Column22]]-Table37[[#This Row],[Column9]]","v":0},{"$f":"Table37[[#This Row],[Column21]]-Table37[[#This Row],[Column12]]","v":0},{"$f":"Table37[[#This Row],[Column20]]-Table37[[#This Row],[Column13]]","v":0},{"$f":"Table37[[#This Row],[Column19]]-Table37[[#This Row],[Column14]]","v":0},{"$f":"Table37[[#This Row],[Column18]]-Table37[[#This Row],[Column15]]","v":0},{"$f":"Table37[[#This Row],[Column17]]-Table37[[#This Row],[Column16]]","v":0},null,null,{"$f":"COUNTIF(Table37[[#This Row],[Column28]:[Column23]], \">1\")","v":0}]
[51,null,null,null,null,null,null,null,null,null,null,null,null,null,null,null,null,null,{"$f":"Table37[[#This Row],[Column22]]-Table37[[#This Row],[Column9]]","v":0},{"$f":"Table37[[#This Row],[Column21]]-Table37[[#This Row],[Column12]]","v":0},{"$f":"Table37[[#This Row],[Column20]]-Table37[[#This Row],[Column13]]","v":0},{"$f":"Table37[[#This Row],[Column19]]-Table37[[#This Row],[Column14]]","v":0},{"$f":"Table37[[#This Row],[Column18]]-Table37[[#This Row],[Column15]]","v":0},{"$f":"Table37[[#This Row],[Column17]]-Table37[[#This Row],[Column16]]","v":0},null,null,{"$f":"COUNTIF(Table37[[#This Row],[Column28]:[Column23]], \">1\")","v":0}]
[52,null,null,null,null,null,null,null,null,null,null,null,null,null,null,null,null,null,{"$f":"Table37[[#This Row],[Column22]]-Table37[[#This Row],[Column9]]","v":0},{"$f":"Table37[[#This Row],[Column21]]-Table37[[#This Row],[Column12]]","v":0},{"$f":"Table37[[#This Row],[Column20]]-Table37[[#This Row],[Column13]]","v":0},{"$f":"Table37[[#This Row],[Column19]]-Table37[[#This Row],[Column14]]","v":0},{"$f":"Table37[[#This Row],[Column18]]-Table37[[#This Row],[Column15]]","v":0},{"$f":"Table37[[#This Row],[Column17]]-Table37[[#This Row],[Column16]]","v":0},null,null,{"$f":"COUNTIF(Table37[[#This Row],[Column28]:[Column23]], \">1\")","v":0}]
[53,null,null,null,null,null,null,null,null,null,null,null,null,null,null,null,null,null,{"$f":"Table37[[#This Row],[Column22]]-Table37[[#This Row],[Column9]]","v":0},{"$f":"Table37[[#This Row],[Column21]]-Table37[[#This Row],[Column12]]","v":0},{"$f":"Table37[[#This Row],[Column20]]-Table37[[#This Row],[Column13]]","v":0},{"$f":"Table37[[#This Row],[Column19]]-Table37[[#This Row],[Column14]]","v":0},{"$f":"Table37[[#This Row],[Column18]]-Table37[[#This Row],[Column15]]","v":0},{"$f":"Table37[[#This Row],[Column17]]-Table37[[#This Row],[Column16]]","v":0},null,null,{"$f":"COUNTIF(Table37[[#This Row],[Column28]:[Column23]], \">1\")","v":0}]
[54,null,null,null,null,null,null,null,null,null,null,null,null,null,null,null,null,null,{"$f":"Table37[[#This Row],[Column22]]-Table37[[#This Row],[Column9]]","v":0},{"$f":"Table37[[#This Row],[Column21]]-Table37[[#This Row],[Column12]]","v":0},{"$f":"Table37[[#This Row],[Column20]]-Table37[[#This Row],[Column13]]","v":0},{"$f":"Table37[[#This Row],[Column19]]-Table37[[#This Row],[Column14]]","v":0},{"$f":"Table37[[#This Row],[Column18]]-Table37[[#This Row],[Column15]]","v":0},{"$f":"Table37[[#This Row],[Column17]]-Table37[[#This Row],[Column16]]","v":0},null,null,{"$f":"COUNTIF(Table37[[#This Row],[Column28]:[Column23]], \">1\")","v":0}]
[55,null,null,null,null,null,null,null,null,null,null,null,null,null,null,null,null,null,{"$f":"Table37[[#This Row],[Column22]]-Table37[[#This Row],[Column9]]","v":0},{"$f":"Table37[[#This Row],[Column21]]-Table37[[#This Row],[Column12]]","v":0},{"$f":"Table37[[#This Row],[Column20]]-Table37[[#This Row],[Column13]]","v":0},{"$f":"Table37[[#This Row],[Column19]]-Table37[[#This Row],[Column14]]","v":0},{"$f":"Table37[[#This Row],[Column18]]-Table37[[#This Row],[Column15]]","v":0},{"$f":"Table37[[#This Row],[Column17]]-Table37[[#This Row],[Column16]]","v":0},null,null,{"$f":"COUNTIF(Table37[[#This Row],[Column28]:[Column23]], \">1\")","v":0}]
[56,null,null,null,null,null,null,null,null,null,null,null,null,null,null,null,null,null,{"$f":"Table37[[#This Row],[Column22]]-Table37[[#This Row],[Column9]]","v":0},{"$f":"Table37[[#This Row],[Column21]]-Table37[[#This Row],[Column12]]","v":0},{"$f":"Table37[[#This Row],[Column20]]-Table37[[#This Row],[Column13]]","v":0},{"$f":"Table37[[#This Row],[Column19]]-Table37[[#This Row],[Column14]]","v":0},{"$f":"Table37[[#This Row],[Column18]]-Table37[[#This Row],[Column15]]","v":0},{"$f":"Table37[[#This Row],[Column17]]-Table37[[#This Row],[Column16]]","v":0},null,null,{"$f":"COUNTIF(Table37[[#This Row],[Column28]:[Column23]], \">1\")","v":0}]
[57,null,null,null,null,null,null,null,null,null,null,null,null,null,null,null,null,null,{"$f":"Table37[[#This Row],[Column22]]-Table37[[#This Row],[Column9]]","v":0},{"$f":"Table37[[#This Row],[Column21]]-Table37[[#This Row],[Column12]]","v":0},{"$f":"Table37[[#This Row],[Column20]]-Table37[[#This Row],[Column13]]","v":0},{"$f":"Table37[[#This Row],[Column19]]-Table37[[#This Row],[Column14]]","v":0},{"$f":"Table37[[#This Row],[Column18]]-Table37[[#This Row],[Column15]]","v":0},{"$f":"Table37[[#This Row],[Column17]]-Table37[[#This Row],[Column16]]","v":0},null,null,{"$f":"COUNTIF(Table37[[#This Row],[Column28]:[Column23]], \">1\")","v":0}]
[58,null,null,null,null,null,null,null,null,null,null,null,null,null,null,null,null,null,{"$f":"Table37[[#This Row],[Column22]]-Table37[[#This Row],[Column9]]","v":0},{"$f":"Table37[[#This Row],[Column21]]-Table37[[#This Row],[Column12]]","v":0},{"$f":"Table37[[#This Row],[Column20]]-Table37[[#This Row],[Column13]]","v":0},{"$f":"Table37[[#This Row],[Column19]]-Table37[[#This Row],[Column14]]","v":0},{"$f":"Table37[[#This Row],[Column18]]-Table37[[#This Row],[Column15]]","v":0},{"$f":"Table37[[#This Row],[Column17]]-Table37[[#This Row],[Column16]]","v":0},null,null,{"$f":"COUNTIF(Table37[[#This Row],[Column28]:[Column23]], \">1\")","v":0}]
[59,null,null,null,null,null,null,null,null,null,null,null,null,null,null,null,null,null,{"$f":"Table37[[#This Row],[Column22]]-Table37[[#This Row],[Column9]]","v":0},{"$f":"Table37[[#This Row],[Column21]]-Table37[[#This Row],[Column12]]","v":0},{"$f":"Table37[[#This Row],[Column20]]-Table37[[#This Row],[Column13]]","v":0},{"$f":"Table37[[#This Row],[Column19]]-Table37[[#This Row],[Column14]]","v":0},{"$f":"Table37[[#This Row],[Column18]]-Table37[[#This Row],[Column15]]","v":0},{"$f":"Table37[[#This Row],[Column17]]-Table37[[#This Row],[Column16]]","v":0},null,null,{"$f":"COUNTIF(Table37[[#This Row],[Column28]:[Column23]], \">1\")","v":0}]
[60,null,null,null,null,null,null,null,null,null,null,null,null,null,null,null,null,null,{"$f":"Table37[[#This Row],[Column22]]-Table37[[#This Row],[Column9]]","v":0},{"$f":"Table37[[#This Row],[Column21]]-Table37[[#This Row],[Column12]]","v":0},{"$f":"Table37[[#This Row],[Column20]]-Table37[[#This Row],[Column13]]","v":0},{"$f":"Table37[[#This Row],[Column19]]-Table37[[#This Row],[Column14]]","v":0},{"$f":"Table37[[#This Row],[Column18]]-Table37[[#This Row],[Column15]]","v":0},{"$f":"Table37[[#This Row],[Column17]]-Table37[[#This Row],[Column16]]","v":0},null,null,{"$f":"COUNTIF(Table37[[#This Row],[Column28]:[Column23]], \">1\")","v":0}]
[61,null,null,null,null,null,null,null,null,null,null,null,null,null,null,null,null,null,{"$f":"Table37[[#This Row],[Column22]]-Table37[[#This Row],[Column9]]","v":0},{"$f":"Table37[[#This Row],[Column21]]-Table37[[#This Row],[Column12]]","v":0},{"$f":"Table37[[#This Row],[Column20]]-Table37[[#This Row],[Column13]]","v":0},{"$f":"Table37[[#This Row],[Column19]]-Table37[[#This Row],[Column14]]","v":0},{"$f":"Table37[[#This Row],[Column18]]-Table37[[#This Row],[Column15]]","v":0},{"$f":"Table37[[#This Row],[Column17]]-Table37[[#This Row],[Column16]]","v":0},null,null,{"$f":"COUNTIF(Table37[[#This Row],[Column28]:[Column23]], \">1\")","v":0}]
[62,null,null,null,null,null,null,null,null,null,null,null,null,null,null,null,null,null,{"$f":"Table37[[#This Row],[Column22]]-Table37[[#This Row],[Column9]]","v":0},{"$f":"Table37[[#This Row],[Column21]]-Table37[[#This Row],[Column12]]","v":0},{"$f":"Table37[[#This Row],[Column20]]-Table37[[#This Row],[Column13]]","v":0},{"$f":"Table37[[#This Row],[Column19]]-Table37[[#This Row],[Column14]]","v":0},{"$f":"Table37[[#This Row],[Column18]]-Table37[[#This Row],[Column15]]","v":0},{"$f":"Table37[[#This Row],[Column17]]-Table37[[#This Row],[Column16]]","v":0},null,null,{"$f":"COUNTIF(Table37[[#This Row],[Column28]:[Column23]], \">1\")","v":0}]
[63,null,null,null,null,null,null,null,null,null,null,null,null,null,null,null,null,null,{"$f":"Table37[[#This Row],[Column22]]-Table37[[#This Row],[Column9]]","v":0},{"$f":"Table37[[#This Row],[Column21]]-Table37[[#This Row],[Column12]]","v":0},{"$f":"Table37[[#This Row],[Column20]]-Table37[[#This Row],[Column13]]","v":0},{"$f":"Table37[[#This Row],[Column19]]-Table37[[#This Row],[Column14]]","v":0},{"$f":"Table37[[#This Row],[Column18]]-Table37[[#This Row],[Column15]]","v":0},{"$f":"Table37[[#This Row],[Column17]]-Table37[[#This Row],[Column16]]","v":0},null,null,{"$f":"COUNTIF(Table37[[#This Row],[Column28]:[Column23]], \">1\")","v":0}]
[64,null,null,null,null,null,null,null,null,null,null,null,null,null,null,null,null,null,{"$f":"Table37[[#This Row],[Column22]]-Table37[[#This Row],[Column9]]","v":0},{"$f":"Table37[[#This Row],[Column21]]-Table37[[#This Row],[Column12]]","v":0},{"$f":"Table37[[#This Row],[Column20]]-Table37[[#This Row],[Column13]]","v":0},{"$f":"Table37[[#This Row],[Column19]]-Table37[[#This Row],[Column14]]","v":0},{"$f":"Table37[[#This Row],[Column18]]-Table37[[#This Row],[Column15]]","v":0},{"$f":"Table37[[#This Row],[Column17]]-Table37[[#This Row],[Column16]]","v":0},null,null,{"$f":"COUNTIF(Table37[[#This Row],[Column28]:[Column23]], \">1\")","v":0}]
[65,null,null,null,null,null,null,null,null,null,null,null,null,null,null,null,null,null,{"$f":"Table37[[#This Row],[Column22]]-Table37[[#This Row],[Column9]]","v":0},{"$f":"Table37[[#This Row],[Column21]]-Table37[[#This Row],[Column12]]","v":0},{"$f":"Table37[[#This Row],[Column20]]-Table37[[#This Row],[Column13]]","v":0},{"$f":"Table37[[#This Row],[Column19]]-Table37[[#This Row],[Column14]]","v":0},{"$f":"Table37[[#This Row],[Column18]]-Table37[[#This Row],[Column15]]","v":0},{"$f":"Table37[[#This Row],[Column17]]-Table37[[#This Row],[Column16]]","v":0},null,null,{"$f":"COUNTIF(Table37[[#This Row],[Column28]:[Column23]], \">1\")","v":0}]
[66,null,null,null,null,null,null,null,null,null,null,null,null,null,null,null,null,null,{"$f":"Table37[[#This Row],[Column22]]-Table37[[#This Row],[Column9]]","v":0},{"$f":"Table37[[#This Row],[Column21]]-Table37[[#This Row],[Column12]]","v":0},{"$f":"Table37[[#This Row],[Column20]]-Table37[[#This Row],[Column13]]","v":0},{"$f":"Table37[[#This Row],[Column19]]-Table37[[#This Row],[Column14]]","v":0},{"$f":"Table37[[#This Row],[Column18]]-Table37[[#This Row],[Column15]]","v":0},{"$f":"Table37[[#This Row],[Column17]]-Table37[[#This Row],[Column16]]","v":0},null,null,{"$f":"COUNTIF(Table37[[#This Row],[Column28]:[Column23]], \">1\")","v":0}]
[67,null,null,null,null,null,null,null,null,null,null,null,null,null,null,null,null,null,{"$f":"Table37[[#This Row],[Column22]]-Table37[[#This Row],[Column9]]","v":0},{"$f":"Table37[[#This Row],[Column21]]-Table37[[#This Row],[Column12]]","v":0},{"$f":"Table37[[#This Row],[Column20]]-Table37[[#This Row],[Column13]]","v":0},{"$f":"Table37[[#This Row],[Column19]]-Table37[[#This Row],[Column14]]","v":0},{"$f":"Table37[[#This Row],[Column18]]-Table37[[#This Row],[Column15]]","v":0},{"$f":"Table37[[#This Row],[Column17]]-Table37[[#This Row],[Column16]]","v":0},null,null,{"$f":"COUNTIF(Table37[[#This Row],[Column28]:[Column23]], \">1\")","v":0}]
[68,null,null,null,null,null,null,null,null,null,null,null,null,null,null,null,null,null,{"$f":"Table37[[#This Row],[Column22]]-Table37[[#This Row],[Column9]]","v":0},{"$f":"Table37[[#This Row],[Column21]]-Table37[[#This Row],[Column12]]","v":0},{"$f":"Table37[[#This Row],[Column20]]-Table37[[#This Row],[Column13]]","v":0},{"$f":"Table37[[#This Row],[Column19]]-Table37[[#This Row],[Column14]]","v":0},{"$f":"Table37[[#This Row],[Column18]]-Table37[[#This Row],[Column15]]","v":0},{"$f":"Table37[[#This Row],[Column17]]-Table37[[#This Row],[Column16]]","v":0},null,null,{"$f":"COUNTIF(Table37[[#This Row],[Column28]:[Column23]], \">1\")","v":0}]
[69,null,null,null,null,null,null,null,null,null,null,null,null,null,null,null,null,null,{"$f":"Table37[[#This Row],[Column22]]-Table37[[#This Row],[Column9]]","v":0},{"$f":"Table37[[#This Row],[Column21]]-Table37[[#This Row],[Column12]]","v":0},{"$f":"Table37[[#This Row],[Column20]]-Table37[[#This Row],[Column13]]","v":0},{"$f":"Table37[[#This Row],[Column19]]-Table37[[#This Row],[Column14]]","v":0},{"$f":"Table37[[#This Row],[Column18]]-Table37[[#This Row],[Column15]]","v":0},{"$f":"Table37[[#This Row],[Column17]]-Table37[[#This Row],[Column16]]","v":0},null,null,{"$f":"COUNTIF(Table37[[#This Row],[Column28]:[Column23]], \">1\")","v":0}]
[70,null,null,null,null,null,null,null,null,null,null,null,null,null,null,null,null,null,{"$f":"Table37[[#This Row],[Column22]]-Table37[[#This Row],[Column9]]","v":0},{"$f":"Table37[[#This Row],[Column21]]-Table37[[#This Row],[Column12]]","v":0},{"$f":"Table37[[#This Row],[Column20]]-Table37[[#This Row],[Column13]]","v":0},{"$f":"Table37[[#This Row],[Column19]]-Table37[[#This Row],[Column14]]","v":0},{"$f":"Table37[[#This Row],[Column18]]-Table37[[#This Row],[Column15]]","v":0},{"$f":"Table37[[#This Row],[Column17]]-Table37[[#This Row],[Column16]]","v":0},null,null,{"$f":"COUNTIF(Table37[[#This Row],[Column28]:[Column23]], \">1\")","v":0}]
[71,null,null,null,null,null,null,null,null,null,null,null,null,null,null,null,null,null,{"$f":"Table37[[#This Row],[Column22]]-Table37[[#This Row],[Column9]]","v":0},{"$f":"Table37[[#This Row],[Column21]]-Table37[[#This Row],[Column12]]","v":0},{"$f":"Table37[[#This Row],[Column20]]-Table37[[#This Row],[Column13]]","v":0},{"$f":"Table37[[#This Row],[Column19]]-Table37[[#This Row],[Column14]]","v":0},{"$f":"Table37[[#This Row],[Column18]]-Table37[[#This Row],[Column15]]","v":0},{"$f":"Table37[[#This Row],[Column17]]-Table37[[#This Row],[Column16]]","v":0},null,null,{"$f":"COUNTIF(Table37[[#This Row],[Column28]:[Column23]], \">1\")","v":0}]
[72,null,null,null,null,null,null,null,null,null,null,null,null,null,null,null,null,null,{"$f":"Table37[[#This Row],[Column22]]-Table37[[#This Row],[Column9]]","v":0},{"$f":"Table37[[#This Row],[Column21]]-Table37[[#This Row],[Column12]]","v":0},{"$f":"Table37[[#This Row],[Column20]]-Table37[[#This Row],[Column13]]","v":0},{"$f":"Table37[[#This Row],[Column19]]-Table37[[#This Row],[Column14]]","v":0},{"$f":"Table37[[#This Row],[Column18]]-Table37[[#This Row],[Column15]]","v":0},{"$f":"Table37[[#This Row],[Column17]]-Table37[[#This Row],[Column16]]","v":0},null,null,{"$f":"COUNTIF(Table37[[#This Row],[Column28]:[Column23]], \">1\")","v":0}]
[73,null,null,null,null,null,null,null,null,null,null,null,null,null,null,null,null,null,{"$f":"Table37[[#This Row],[Column22]]-Table37[[#This Row],[Column9]]","v":0},{"$f":"Table37[[#This Row],[Column21]]-Table37[[#This Row],[Column12]]","v":0},{"$f":"Table37[[#This Row],[Column20]]-Table37[[#This Row],[Column13]]","v":0},{"$f":"Table37[[#This Row],[Column19]]-Table37[[#This Row],[Column14]]","v":0},{"$f":"Table37[[#This Row],[Column18]]-Table37[[#This Row],[Column15]]","v":0},{"$f":"Table37[[#This Row],[Column17]]-Table37[[#This Row],[Column16]]","v":0},null,null,{"$f":"COUNTIF(Table37[[#This Row],[Column28]:[Column23]], \">1\")","v":0}]
[74,null,null,null,null,null,null,null,null,null,null,null,null,null,null,null,null,null,{"$f":"Table37[[#This Row],[Column22]]-Table37[[#This Row],[Column9]]","v":0},{"$f":"Table37[[#This Row],[Column21]]-Table37[[#This Row],[Column12]]","v":0},{"$f":"Table37[[#This Row],[Column20]]-Table37[[#This Row],[Column13]]","v":0},{"$f":"Table37[[#This Row],[Column19]]-Table37[[#This Row],[Column14]]","v":0},{"$f":"Table37[[#This Row],[Column18]]-Table37[[#This Row],[Column15]]","v":0},{"$f":"Table37[[#This Row],[Column17]]-Table37[[#This Row],[Column16]]","v":0},null,null,{"$f":"COUNTIF(Table37[[#This Row],[Column28]:[Column23]], \">1\")","v":0}]
[75,null,null,null,null,null,null,null,null,null,null,null,null,null,null,null,null,null,{"$f":"Table37[[#This Row],[Column22]]-Table37[[#This Row],[Column9]]","v":0},{"$f":"Table37[[#This Row],[Column21]]-Table37[[#This Row],[Column12]]","v":0},{"$f":"Table37[[#This Row],[Column20]]-Table37[[#This Row],[Column13]]","v":0},{"$f":"Table37[[#This Row],[Column19]]-Table37[[#This Row],[Column14]]","v":0},{"$f":"Table37[[#This Row],[Column18]]-Table37[[#This Row],[Column15]]","v":0},{"$f":"Table37[[#This Row],[Column17]]-Table37[[#This Row],[Column16]]","v":0},null,null,{"$f":"COUNTIF(Table37[[#This Row],[Column28]:[Column23]], \">1\")","v":0}]
[76,null,null,null,null,null,null,null,null,null,null,null,null,null,null,null,null,null,{"$f":"Table37[[#This Row],[Column22]]-Table37[[#This Row],[Column9]]","v":0},{"$f":"Table37[[#This Row],[Column21]]-Table37[[#This Row],[Column12]]","v":0},{"$f":"Table37[[#This Row],[Column20]]-Table37[[#This Row],[Column13]]","v":0},{"$f":"Table37[[#This Row],[Column19]]-Table37[[#This Row],[Column14]]","v":0},{"$f":"Table37[[#This Row],[Column18]]-Table37[[#This Row],[Column15]]","v":0},{"$f":"Table37[[#This Row],[Column17]]-Table37[[#This Row],[Column16]]","v":0},null,null,{"$f":"COUNTIF(Table37[[#This Row],[Column28]:[Column23]], \">1\")","v":0}]
[77,null,null,null,null,null,null,null,null,null,null,null,null,null,null,null,null,null,{"$f":"Table37[[#This Row],[Column22]]-Table37[[#This Row],[Column9]]","v":0},{"$f":"Table37[[#This Row],[Column21]]-Table37[[#This Row],[Column12]]","v":0},{"$f":"Table37[[#This Row],[Column20]]-Table37[[#This Row],[Column13]]","v":0},{"$f":"Table37[[#This Row],[Column19]]-Table37[[#This Row],[Column14]]","v":0},{"$f":"Table37[[#This Row],[Column18]]-Table37[[#This Row],[Column15]]","v":0},{"$f":"Table37[[#This Row],[Column17]]-Table37[[#This Row],[Column16]]","v":0},null,null,{"$f":"COUNTIF(Table37[[#This Row],[Column28]:[Column23]], \">1\")","v":0}]
[78,null,null,null,null,null,null,null,null,null,null,null,null,null,null,null,null,null,{"$f":"Table37[[#This Row],[Column22]]-Table37[[#This Row],[Column9]]","v":0},{"$f":"Table37[[#This Row],[Column21]]-Table37[[#This Row],[Column12]]","v":0},{"$f":"Table37[[#This Row],[Column20]]-Table37[[#This Row],[Column13]]","v":0},{"$f":"Table37[[#This Row],[Column19]]-Table37[[#This Row],[Column14]]","v":0},{"$f":"Table37[[#This Row],[Column18]]-Table37[[#This Row],[Column15]]","v":0},{"$f":"Table37[[#This Row],[Column17]]-Table37[[#This Row],[Column16]]","v":0},null,null,{"$f":"COUNTIF(Table37[[#This Row],[Column28]:[Column23]], \">1\")","v":0}]
[79,null,null,null,null,null,null,null,null,null,null,null,null,null,null,null,null,null,{"$f":"Table37[[#This Row],[Column22]]-Table37[[#This Row],[Column9]]","v":0},{"$f":"Table37[[#This Row],[Column21]]-Table37[[#This Row],[Column12]]","v":0},{"$f":"Table37[[#This Row],[Column20]]-Table37[[#This Row],[Column13]]","v":0},{"$f":"Table37[[#This Row],[Column19]]-Table37[[#This Row],[Column14]]","v":0},{"$f":"Table37[[#This Row],[Column18]]-Table37[[#This Row],[Column15]]","v":0},{"$f":"Table37[[#This Row],[Column17]]-Table37[[#This Row],[Column16]]","v":0},null,null,{"$f":"COUNTIF(Table37[[#This Row],[Column28]:[Column23]], \">1\")","v":0}]
[80,null,null,null,null,null,null,null,null,null,null,null,null,null,null,null,null,null,{"$f":"Table37[[#This Row],[Column22]]-Table37[[#This Row],[Column9]]","v":0},{"$f":"Table37[[#This Row],[Column21]]-Table37[[#This Row],[Column12]]","v":0},{"$f":"Table37[[#This Row],[Column20]]-Table37[[#This Row],[Column13]]","v":0},{"$f":"Table37[[#This Row],[Column19]]-Table37[[#This Row],[Column14]]","v":0},{"$f":"Table37[[#This Row],[Column18]]-Table37[[#This Row],[Column15]]","v":0},{"$f":"Table37[[#This Row],[Column17]]-Table37[[#This Row],[Column16]]","v":0},null,null,{"$f":"COUNTIF(Table37[[#This Row],[Column28]:[Column23]], \">1\")","v":0}]
[81,null,null,null,null,null,null,null,null,null,null,null,null,null,null,null,null,null,{"$f":"Table37[[#This Row],[Column22]]-Table37[[#This Row],[Column9]]","v":0},{"$f":"Table37[[#This Row],[Column21]]-Table37[[#This Row],[Column12]]","v":0},{"$f":"Table37[[#This Row],[Column20]]-Table37[[#This Row],[Column13]]","v":0},{"$f":"Table37[[#This Row],[Column19]]-Table37[[#This Row],[Column14]]","v":0},{"$f":"Table37[[#This Row],[Column18]]-Table37[[#This Row],[Column15]]","v":0},{"$f":"Table37[[#This Row],[Column17]]-Table37[[#This Row],[Column16]]","v":0},null,null,{"$f":"COUNTIF(Table37[[#This Row],[Column28]:[Column23]], \">1\")","v":0}]
[82,null,null,null,null,null,null,null,null,null,null,null,null,null,null,null,null,null,{"$f":"Table37[[#This Row],[Column22]]-Table37[[#This Row],[Column9]]","v":0},{"$f":"Table37[[#This Row],[Column21]]-Table37[[#This Row],[Column12]]","v":0},{"$f":"Table37[[#This Row],[Column20]]-Table37[[#This Row],[Column13]]","v":0},{"$f":"Table37[[#This Row],[Column19]]-Table37[[#This Row],[Column14]]","v":0},{"$f":"Table37[[#This Row],[Column18]]-Table37[[#This Row],[Column15]]","v":0},{"$f":"Table37[[#This Row],[Column17]]-Table37[[#This Row],[Column16]]","v":0},null,null,{"$f":"COUNTIF(Table37[[#This Row],[Column28]:[Column23]], \">1\")","v":0}]
[83,null,null,null,null,null,null,null,null,null,null,null,null,null,null,null,null,null,{"$f":"Table37[[#This Row],[Column22]]-Table37[[#This Row],[Column9]]","v":0},{"$f":"Table37[[#This Row],[Column21]]-Table37[[#This Row],[Column12]]","v":0},{"$f":"Table37[[#This Row],[Column20]]-Table37[[#This Row],[Column13]]","v":0},{"$f":"Table37[[#This Row],[Column19]]-Table37[[#This Row],[Column14]]","v":0},{"$f":"Table37[[#This Row],[Column18]]-Table37[[#This Row],[Column15]]","v":0},{"$f":"Table37[[#This Row],[Column17]]-Table37[[#This Row],[Column16]]","v":0},null,null,{"$f":"COUNTIF(Table37[[#This Row],[Column28]:[Column23]], \">1\")","v":0}]
[84,null,null,null,null,null,null,null,null,null,null,null,null,null,null,null,null,null,{"$f":"Table37[[#This Row],[Column22]]-Table37[[#This Row],[Column9]]","v":0},{"$f":"Table37[[#This Row],[Column21]]-Table37[[#This Row],[Column12]]","v":0},{"$f":"Table37[[#This Row],[Column20]]-Table37[[#This Row],[Column13]]","v":0},{"$f":"Table37[[#This Row],[Column19]]-Table37[[#This Row],[Column14]]","v":0},{"$f":"Table37[[#This Row],[Column18]]-Table37[[#This Row],[Column15]]","v":0},{"$f":"Table37[[#This Row],[Column17]]-Table37[[#This Row],[Column16]]","v":0},null,null,{"$f":"COUNTIF(Table37[[#This Row],[Column28]:[Column23]], \">1\")","v":0}]
[85,null,null,null,null,null,null,null,null,null,null,null,null,null,null,null,null,null,{"$f":"Table37[[#This Row],[Column22]]-Table37[[#This Row],[Column9]]","v":0},{"$f":"Table37[[#This Row],[Column21]]-Table37[[#This Row],[Column12]]","v":0},{"$f":"Table37[[#This Row],[Column20]]-Table37[[#This Row],[Column13]]","v":0},{"$f":"Table37[[#This Row],[Column19]]-Table37[[#This Row],[Column14]]","v":0},{"$f":"Table37[[#This Row],[Column18]]-Table37[[#This Row],[Column15]]","v":0},{"$f":"Table37[[#This Row],[Column17]]-Table37[[#This Row],[Column16]]","v":0},null,null,{"$f":"COUNTIF(Table37[[#This Row],[Column28]:[Column23]], \">1\")","v":0}]
[86,null,null,null,null,null,null,null,null,null,null,null,null,null,null,null,null,null,{"$f":"Table37[[#This Row],[Column22]]-Table37[[#This Row],[Column9]]","v":0},{"$f":"Table37[[#This Row],[Column21]]-Table37[[#This Row],[Column12]]","v":0},{"$f":"Table37[[#This Row],[Column20]]-Table37[[#This Row],[Column13]]","v":0},{"$f":"Table37[[#This Row],[Column19]]-Table37[[#This Row],[Column14]]","v":0},{"$f":"Table37[[#This Row],[Column18]]-Table37[[#This Row],[Column15]]","v":0},{"$f":"Table37[[#This Row],[Column17]]-Table37[[#This Row],[Column16]]","v":0},null,null,{"$f":"COUNTIF(Table37[[#This Row],[Column28]:[Column23]], \">1\")","v":0}]
[87,null,null,null,null,null,null,null,null,null,null,null,null,null,null,null,null,null,{"$f":"Table37[[#This Row],[Column22]]-Table37[[#This Row],[Column9]]","v":0},{"$f":"Table37[[#This Row],[Column21]]-Table37[[#This Row],[Column12]]","v":0},{"$f":"Table37[[#This Row],[Column20]]-Table37[[#This Row],[Column13]]","v":0},{"$f":"Table37[[#This Row],[Column19]]-Table37[[#This Row],[Column14]]","v":0},{"$f":"Table37[[#This Row],[Column18]]-Table37[[#This Row],[Column15]]","v":0},{"$f":"Table37[[#This Row],[Column17]]-Table37[[#This Row],[Column16]]","v":0},null,null,{"$f":"COUNTIF(Table37[[#This Row],[Column28]:[Column23]], \">1\")","v":0}]
[88,null,null,null,null,null,null,null,null,null,null,null,null,null,null,null,null,null,{"$f":"Table37[[#This Row],[Column22]]-Table37[[#This Row],[Column9]]","v":0},{"$f":"Table37[[#This Row],[Column21]]-Table37[[#This Row],[Column12]]","v":0},{"$f":"Table37[[#This Row],[Column20]]-Table37[[#This Row],[Column13]]","v":0},{"$f":"Table37[[#This Row],[Column19]]-Table37[[#This Row],[Column14]]","v":0},{"$f":"Table37[[#This Row],[Column18]]-Table37[[#This Row],[Column15]]","v":0},{"$f":"Table37[[#This Row],[Column17]]-Table37[[#This Row],[Column16]]","v":0},null,null,{"$f":"COUNTIF(Table37[[#This Row],[Column28]:[Column23]], \">1\")","v":0}]
[89,null,null,null,null,null,null,null,null,null,null,null,null,null,null,null,null,null,{"$f":"Table37[[#This Row],[Column22]]-Table37[[#This Row],[Column9]]","v":0},{"$f":"Table37[[#This Row],[Column21]]-Table37[[#This Row],[Column12]]","v":0},{"$f":"Table37[[#This Row],[Column20]]-Table37[[#This Row],[Column13]]","v":0},{"$f":"Table37[[#This Row],[Column19]]-Table37[[#This Row],[Column14]]","v":0},{"$f":"Table37[[#This Row],[Column18]]-Table37[[#This Row],[Column15]]","v":0},{"$f":"Table37[[#This Row],[Column17]]-Table37[[#This Row],[Column16]]","v":0},null,null,{"$f":"COUNTIF(Table37[[#This Row],[Column28]:[Column23]], \">1\")","v":0}]
[90,null,null,null,null,null,null,null,null,null,null,null,null,null,null,null,null,null,{"$f":"Table37[[#This Row],[Column22]]-Table37[[#This Row],[Column9]]","v":0},{"$f":"Table37[[#This Row],[Column21]]-Table37[[#This Row],[Column12]]","v":0},{"$f":"Table37[[#This Row],[Column20]]-Table37[[#This Row],[Column13]]","v":0},{"$f":"Table37[[#This Row],[Column19]]-Table37[[#This Row],[Column14]]","v":0},{"$f":"Table37[[#This Row],[Column18]]-Table37[[#This Row],[Column15]]","v":0},{"$f":"Table37[[#This Row],[Column17]]-Table37[[#This Row],[Column16]]","v":0},null,null,{"$f":"COUNTIF(Table37[[#This Row],[Column28]:[Column23]], \">1\")","v":0}]
[91,null,null,null,null,null,null,null,null,null,null,null,null,null,null,null,null,null,{"$f":"Table37[[#This Row],[Column22]]-Table37[[#This Row],[Column9]]","v":0},{"$f":"Table37[[#This Row],[Column21]]-Table37[[#This Row],[Column12]]","v":0},{"$f":"Table37[[#This Row],[Column20]]-Table37[[#This Row],[Column13]]","v":0},{"$f":"Table37[[#This Row],[Column19]]-Table37[[#This Row],[Column14]]","v":0},{"$f":"Table37[[#This Row],[Column18]]-Table37[[#This Row],[Column15]]","v":0},{"$f":"Table37[[#This Row],[Column17]]-Table37[[#This Row],[Column16]]","v":0},null,null,{"$f":"COUNTIF(Table37[[#This Row],[Column28]:[Column23]], \">1\")","v":0}]
[92,null,null,null,null,null,null,null,null,null,null,null,null,null,null,null,null,null,{"$f":"Table37[[#This Row],[Column22]]-Table37[[#This Row],[Column9]]","v":0},{"$f":"Table37[[#This Row],[Column21]]-Table37[[#This Row],[Column12]]","v":0},{"$f":"Table37[[#This Row],[Column20]]-Table37[[#This Row],[Column13]]","v":0},{"$f":"Table37[[#This Row],[Column19]]-Table37[[#This Row],[Column14]]","v":0},{"$f":"Table37[[#This Row],[Column18]]-Table37[[#This Row],[Column15]]","v":0},{"$f":"Table37[[#This Row],[Column17]]-Table37[[#This Row],[Column16]]","v":0},null,null,{"$f":"COUNTIF(Table37[[#This Row],[Column28]:[Column23]], \">1\")","v":0}]
[93,null,null,null,null,null,null,null,null,null,null,null,null,null,null,null,null,null,{"$f":"Table37[[#This Row],[Column22]]-Table37[[#This Row],[Column9]]","v":0},{"$f":"Table37[[#This Row],[Column21]]-Table37[[#This Row],[Column12]]","v":0},{"$f":"Table37[[#This Row],[Column20]]-Table37[[#This Row],[Column13]]","v":0},{"$f":"Table37[[#This Row],[Column19]]-Table37[[#This Row],[Column14]]","v":0},{"$f":"Table37[[#This Row],[Column18]]-Table37[[#This Row],[Column15]]","v":0},{"$f":"Table37[[#This Row],[Column17]]-Table37[[#This Row],[Column16]]","v":0},null,null,{"$f":"COUNTIF(Table37[[#This Row],[Column28]:[Column23]], \">1\")","v":0}]
[94,null,null,null,null,null,null,null,null,null,null,null,null,null,null,null,null,null,{"$f":"Table37[[#This Row],[Column22]]-Table37[[#This Row],[Column9]]","v":0},{"$f":"Table37[[#This Row],[Column21]]-Table37[[#This Row],[Column12]]","v":0},{"$f":"Table37[[#This Row],[Column20]]-Table37[[#This Row],[Column13]]","v":0},{"$f":"Table37[[#This Row],[Column19]]-Table37[[#This Row],[Column14]]","v":0},{"$f":"Table37[[#This Row],[Column18]]-Table37[[#This Row],[Column15]]","v":0},{"$f":"Table37[[#This Row],[Column17]]-Table37[[#This Row],[Column16]]","v":0},null,null,{"$f":"COUNTIF(Table37[[#This Row],[Column28]:[Column23]], \">1\")","v":0}]
[95,null,null,null,null,null,null,null,null,null,null,null,null,null,null,null,null,null,{"$f":"Table37[[#This Row],[Column22]]-Table37[[#This Row],[Column9]]","v":0},{"$f":"Table37[[#This Row],[Column21]]-Table37[[#This Row],[Column12]]","v":0},{"$f":"Table37[[#This Row],[Column20]]-Table37[[#This Row],[Column13]]","v":0},{"$f":"Table37[[#This Row],[Column19]]-Table37[[#This Row],[Column14]]","v":0},{"$f":"Table37[[#This Row],[Column18]]-Table37[[#This Row],[Column15]]","v":0},{"$f":"Table37[[#This Row],[Column17]]-Table37[[#This Row],[Column16]]","v":0},null,null,{"$f":"COUNTIF(Table37[[#This Row],[Column28]:[Column23]], \">1\")","v":0}]
[96,null,null,null,null,null,null,null,null,null,null,null,null,null,null,null,null,null,{"$f":"Table37[[#This Row],[Column22]]-Table37[[#This Row],[Column9]]","v":0},{"$f":"Table37[[#This Row],[Column21]]-Table37[[#This Row],[Column12]]","v":0},{"$f":"Table37[[#This Row],[Column20]]-Table37[[#This Row],[Column13]]","v":0},{"$f":"Table37[[#This Row],[Column19]]-Table37[[#This Row],[Column14]]","v":0},{"$f":"Table37[[#This Row],[Column18]]-Table37[[#This Row],[Column15]]","v":0},{"$f":"Table37[[#This Row],[Column17]]-Table37[[#This Row],[Column16]]","v":0},null,null,{"$f":"COUNTIF(Table37[[#This Row],[Column28]:[Column23]], \">1\")","v":0}]
[97,null,null,null,null,null,null,null,null,null,null,null,null,null,null,null,null,null,{"$f":"Table37[[#This Row],[Column22]]-Table37[[#This Row],[Column9]]","v":0},{"$f":"Table37[[#This Row],[Column21]]-Table37[[#This Row],[Column12]]","v":0},{"$f":"Table37[[#This Row],[Column20]]-Table37[[#This Row],[Column13]]","v":0},{"$f":"Table37[[#This Row],[Column19]]-Table37[[#This Row],[Column14]]","v":0},{"$f":"Table37[[#This Row],[Column18]]-Table37[[#This Row],[Column15]]","v":0},{"$f":"Table37[[#This Row],[Column17]]-Table37[[#This Row],[Column16]]","v":0},null,null,{"$f":"COUNTIF(Table37[[#This Row],[Column28]:[Column23]], \">1\")","v":0}]
[98,null,null,null,null,null,null,null,null,null,null,null,null,null,null,null,null,null,{"$f":"Table37[[#This Row],[Column22]]-Table37[[#This Row],[Column9]]","v":0},{"$f":"Table37[[#This Row],[Column21]]-Table37[[#This Row],[Column12]]","v":0},{"$f":"Table37[[#This Row],[Column20]]-Table37[[#This Row],[Column13]]","v":0},{"$f":"Table37[[#This Row],[Column19]]-Table37[[#This Row],[Column14]]","v":0},{"$f":"Table37[[#This Row],[Column18]]-Table37[[#This Row],[Column15]]","v":0},{"$f":"Table37[[#This Row],[Column17]]-Table37[[#This Row],[Column16]]","v":0},null,null,{"$f":"COUNTIF(Table37[[#This Row],[Column28]:[Column23]], \">1\")","v":0}]
[99,null,null,null,null,null,null,null,null,null,null,null,null,null,null,null,null,null,{"$f":"Table37[[#This Row],[Column22]]-Table37[[#This Row],[Column9]]","v":0},{"$f":"Table37[[#This Row],[Column21]]-Table37[[#This Row],[Column12]]","v":0},{"$f":"Table37[[#This Row],[Column20]]-Table37[[#This Row],[Column13]]","v":0},{"$f":"Table37[[#This Row],[Column19]]-Table37[[#This Row],[Column14]]","v":0},{"$f":"Table37[[#This Row],[Column18]]-Table37[[#This Row],[Column15]]","v":0},{"$f":"Table37[[#This Row],[Column17]]-Table37[[#This Row],[Column16]]","v":0},null,null,{"$f":"COUNTIF(Table37[[#This Row],[Column28]:[Column23]], \">1\")","v":0}]
[100,null,null,null,null,null,null,null,null,null,null,null,null,null,null,null,null,null,{"$f":"Table37[[#This Row],[Column22]]-Table37[[#This Row],[Column9]]","v":0},{"$f":"Table37[[#This Row],[Column21]]-Table37[[#This Row],[Column12]]","v":0},{"$f":"Table37[[#This Row],[Column20]]-Table37[[#This Row],[Column13]]","v":0},{"$f":"Table37[[#This Row],[Column19]]-Table37[[#This Row],[Column14]]","v":0},{"$f":"Table37[[#This Row],[Column18]]-Table37[[#This Row],[Column15]]","v":0},{"$f":"Table37[[#This Row],[Column17]]-Table37[[#This Row],[Column16]]","v":0},null,null,{"$f":"COUNTIF(Table37[[#This Row],[Column28]:[Column23]], \">1\")","v":0}]
[101,null,null,null,null,null,null,null,null,null,null,null,null,null,null,null,null,null,{"$f":"Table37[[#This Row],[Column22]]-Table37[[#This Row],[Column9]]","v":0},{"$f":"Table37[[#This Row],[Column21]]-Table37[[#This Row],[Column12]]","v":0},{"$f":"Table37[[#This Row],[Column20]]-Table37[[#This Row],[Column13]]","v":0},{"$f":"Table37[[#This Row],[Column19]]-Table37[[#This Row],[Column14]]","v":0},{"$f":"Table37[[#This Row],[Column18]]-Table37[[#This Row],[Column15]]","v":0},{"$f":"Table37[[#This Row],[Column17]]-Table37[[#This Row],[Column16]]","v":0},null,null,{"$f":"COUNTIF(Table37[[#This Row],[Column28]:[Column23]], \">1\")","v":0}]
[102,null,null,null,null,null,null,null,null,null,null,null,null,null,null,null,null,null,{"$f":"Table37[[#This Row],[Column22]]-Table37[[#This Row],[Column9]]","v":0},{"$f":"Table37[[#This Row],[Column21]]-Table37[[#This Row],[Column12]]","v":0},{"$f":"Table37[[#This Row],[Column20]]-Table37[[#This Row],[Column13]]","v":0},{"$f":"Table37[[#This Row],[Column19]]-Table37[[#This Row],[Column14]]","v":0},{"$f":"Table37[[#This Row],[Column18]]-Table37[[#This Row],[Column15]]","v":0},{"$f":"Table37[[#This Row],[Column17]]-Table37[[#This Row],[Column16]]","v":0},null,null,{"$f":"COUNTIF(Table37[[#This Row],[Column28]:[Column23]], \">1\")","v":0}]
[103,null,null,null,null,null,null,null,null,null,null,null,null,null,null,null,null,null,{"$f":"Table37[[#This Row],[Column22]]-Table37[[#This Row],[Column9]]","v":0},{"$f":"Table37[[#This Row],[Column21]]-Table37[[#This Row],[Column12]]","v":0},{"$f":"Table37[[#This Row],[Column20]]-Table37[[#This Row],[Column13]]","v":0},{"$f":"Table37[[#This Row],[Column19]]-Table37[[#This Row],[Column14]]","v":0},{"$f":"Table37[[#This Row],[Column18]]-Table37[[#This Row],[Column15]]","v":0},{"$f":"Table37[[#This Row],[Column17]]-Table37[[#This Row],[Column16]]","v":0},null,null,{"$f":"COUNTIF(Table37[[#This Row],[Column28]:[Column23]], \">1\")","v":0}]
[104,null,null,null,null,null,null,null,null,null,null,null,null,null,null,null,null,null,{"$f":"Table37[[#This Row],[Column22]]-Table37[[#This Row],[Column9]]","v":0},{"$f":"Table37[[#This Row],[Column21]]-Table37[[#This Row],[Column12]]","v":0},{"$f":"Table37[[#This Row],[Column20]]-Table37[[#This Row],[Column13]]","v":0},{"$f":"Table37[[#This Row],[Column19]]-Table37[[#This Row],[Column14]]","v":0},{"$f":"Table37[[#This Row],[Column18]]-Table37[[#This Row],[Column15]]","v":0},{"$f":"Table37[[#This Row],[Column17]]-Table37[[#This Row],[Column16]]","v":0},null,null,{"$f":"COUNTIF(Table37[[#This Row],[Column28]:[Column23]], \">1\")","v":0}]
[105,null,null,null,null,null,null,null,null,null,null,null,null,null,null,null,null,null,{"$f":"Table37[[#This Row],[Column22]]-Table37[[#This Row],[Column9]]","v":0},{"$f":"Table37[[#This Row],[Column21]]-Table37[[#This Row],[Column12]]","v":0},{"$f":"Table37[[#This Row],[Column20]]-Table37[[#This Row],[Column13]]","v":0},{"$f":"Table37[[#This Row],[Column19]]-Table37[[#This Row],[Column14]]","v":0},{"$f":"Table37[[#This Row],[Column18]]-Table37[[#This Row],[Column15]]","v":0},{"$f":"Table37[[#This Row],[Column17]]-Table37[[#This Row],[Column16]]","v":0},null,null,{"$f":"COUNTIF(Table37[[#This Row],[Column28]:[Column23]], \">1\")","v":0}]
[106,null,null,null,null,null,null,null,null,null,null,null,null,null,null,null,null,null,{"$f":"Table37[[#This Row],[Column22]]-Table37[[#This Row],[Column9]]","v":0},{"$f":"Table37[[#This Row],[Column21]]-Table37[[#This Row],[Column12]]","v":0},{"$f":"Table37[[#This Row],[Column20]]-Table37[[#This Row],[Column13]]","v":0},{"$f":"Table37[[#This Row],[Column19]]-Table37[[#This Row],[Column14]]","v":0},{"$f":"Table37[[#This Row],[Column18]]-Table37[[#This Row],[Column15]]","v":0},{"$f":"Table37[[#This Row],[Column17]]-Table37[[#This Row],[Column16]]","v":0},null,null,{"$f":"COUNTIF(Table37[[#This Row],[Column28]:[Column23]], \">1\")","v":0}]
[107,null,null,null,null,null,null,null,null,null,null,null,null,null,null,null,null,null,{"$f":"Table37[[#This Row],[Column22]]-Table37[[#This Row],[Column9]]","v":0},{"$f":"Table37[[#This Row],[Column21]]-Table37[[#This Row],[Column12]]","v":0},{"$f":"Table37[[#This Row],[Column20]]-Table37[[#This Row],[Column13]]","v":0},{"$f":"Table37[[#This Row],[Column19]]-Table37[[#This Row],[Column14]]","v":0},{"$f":"Table37[[#This Row],[Column18]]-Table37[[#This Row],[Column15]]","v":0},{"$f":"Table37[[#This Row],[Column17]]-Table37[[#This Row],[Column16]]","v":0},null,null,{"$f":"COUNTIF(Table37[[#This Row],[Column28]:[Column23]], \">1\")","v":0}]
[108,null,null,null,null,null,null,null,null,null,null,null,null,null,null,null,null,null,{"$f":"Table37[[#This Row],[Column22]]-Table37[[#This Row],[Column9]]","v":0},{"$f":"Table37[[#This Row],[Column21]]-Table37[[#This Row],[Column12]]","v":0},{"$f":"Table37[[#This Row],[Column20]]-Table37[[#This Row],[Column13]]","v":0},{"$f":"Table37[[#This Row],[Column19]]-Table37[[#This Row],[Column14]]","v":0},{"$f":"Table37[[#This Row],[Column18]]-Table37[[#This Row],[Column15]]","v":0},{"$f":"Table37[[#This Row],[Column17]]-Table37[[#This Row],[Column16]]","v":0},null,null,{"$f":"COUNTIF(Table37[[#This Row],[Column28]:[Column23]], \">1\")","v":0}]
[109,null,null,null,null,null,null,null,null,null,null,null,null,null,null,null,null,null,{"$f":"Table37[[#This Row],[Column22]]-Table37[[#This Row],[Column9]]","v":0},{"$f":"Table37[[#This Row],[Column21]]-Table37[[#This Row],[Column12]]","v":0},{"$f":"Table37[[#This Row],[Column20]]-Table37[[#This Row],[Column13]]","v":0},{"$f":"Table37[[#This Row],[Column19]]-Table37[[#This Row],[Column14]]","v":0},{"$f":"Table37[[#This Row],[Column18]]-Table37[[#This Row],[Column15]]","v":0},{"$f":"Table37[[#This Row],[Column17]]-Table37[[#This Row],[Column16]]","v":0},null,null,{"$f":"COUNTIF(Table37[[#This Row],[Column28]:[Column23]], \">1\")","v":0}]
[110,null,null,null,null,null,null,null,null,null,null,null,null,null,null,null,null,null,{"$f":"Table37[[#This Row],[Column22]]-Table37[[#This Row],[Column9]]","v":0},{"$f":"Table37[[#This Row],[Column21]]-Table37[[#This Row],[Column12]]","v":0},{"$f":"Table37[[#This Row],[Column20]]-Table37[[#This Row],[Column13]]","v":0},{"$f":"Table37[[#This Row],[Column19]]-Table37[[#This Row],[Column14]]","v":0},{"$f":"Table37[[#This Row],[Column18]]-Table37[[#This Row],[Column15]]","v":0},{"$f":"Table37[[#This Row],[Column17]]-Table37[[#This Row],[Column16]]","v":0},null,null,{"$f":"COUNTIF(Table37[[#This Row],[Column28]:[Column23]], \">1\")","v":0}]
[111,null,null,null,null,null,null,null,null,null,null,null,null,null,null,null,null,null,{"$f":"Table37[[#This Row],[Column22]]-Table37[[#This Row],[Column9]]","v":0},{"$f":"Table37[[#This Row],[Column21]]-Table37[[#This Row],[Column12]]","v":0},{"$f":"Table37[[#This Row],[Column20]]-Table37[[#This Row],[Column13]]","v":0},{"$f":"Table37[[#This Row],[Column19]]-Table37[[#This Row],[Column14]]","v":0},{"$f":"Table37[[#This Row],[Column18]]-Table37[[#This Row],[Column15]]","v":0},{"$f":"Table37[[#This Row],[Column17]]-Table37[[#This Row],[Column16]]","v":0},null,null,{"$f":"COUNTIF(Table37[[#This Row],[Column28]:[Column23]], \">1\")","v":0}]
[112,null,null,null,null,null,null,null,null,null,null,null,null,null,null,null,null,null,{"$f":"Table37[[#This Row],[Column22]]-Table37[[#This Row],[Column9]]","v":0},{"$f":"Table37[[#This Row],[Column21]]-Table37[[#This Row],[Column12]]","v":0},{"$f":"Table37[[#This Row],[Column20]]-Table37[[#This Row],[Column13]]","v":0},{"$f":"Table37[[#This Row],[Column19]]-Table37[[#This Row],[Column14]]","v":0},{"$f":"Table37[[#This Row],[Column18]]-Table37[[#This Row],[Column15]]","v":0},{"$f":"Table37[[#This Row],[Column17]]-Table37[[#This Row],[Column16]]","v":0},null,null,{"$f":"COUNTIF(Table37[[#This Row],[Column28]:[Column23]], \">1\")","v":0}]
[113,null,null,null,null,null,null,null,null,null,null,null,null,null,null,null,null,null,{"$f":"Table37[[#This Row],[Column22]]-Table37[[#This Row],[Column9]]","v":0},{"$f":"Table37[[#This Row],[Column21]]-Table37[[#This Row],[Column12]]","v":0},{"$f":"Table37[[#This Row],[Column20]]-Table37[[#This Row],[Column13]]","v":0},{"$f":"Table37[[#This Row],[Column19]]-Table37[[#This Row],[Column14]]","v":0},{"$f":"Table37[[#This Row],[Column18]]-Table37[[#This Row],[Column15]]","v":0},{"$f":"Table37[[#This Row],[Column17]]-Table37[[#This Row],[Column16]]","v":0},null,null,{"$f":"COUNTIF(Table37[[#This Row],[Column28]:[Column23]], \">1\")","v":0}]
[114,null,null,null,null,null,null,null,null,null,null,null,null,null,null,null,null,null,{"$f":"Table37[[#This Row],[Column22]]-Table37[[#This Row],[Column9]]","v":0},{"$f":"Table37[[#This Row],[Column21]]-Table37[[#This Row],[Column12]]","v":0},{"$f":"Table37[[#This Row],[Column20]]-Table37[[#This Row],[Column13]]","v":0},{"$f":"Table37[[#This Row],[Column19]]-Table37[[#This Row],[Column14]]","v":0},{"$f":"Table37[[#This Row],[Column18]]-Table37[[#This Row],[Column15]]","v":0},{"$f":"Table37[[#This Row],[Column17]]-Table37[[#This Row],[Column16]]","v":0},null,null,{"$f":"COUNTIF(Table37[[#This Row],[Column28]:[Column23]], \">1\")","v":0}]
[115,null,null,null,null,null,null,null,null,null,null,null,null,null,null,null,null,null,{"$f":"Table37[[#This Row],[Column22]]-Table37[[#This Row],[Column9]]","v":0},{"$f":"Table37[[#This Row],[Column21]]-Table37[[#This Row],[Column12]]","v":0},{"$f":"Table37[[#This Row],[Column20]]-Table37[[#This Row],[Column13]]","v":0},{"$f":"Table37[[#This Row],[Column19]]-Table37[[#This Row],[Column14]]","v":0},{"$f":"Table37[[#This Row],[Column18]]-Table37[[#This Row],[Column15]]","v":0},{"$f":"Table37[[#This Row],[Column17]]-Table37[[#This Row],[Column16]]","v":0},null,null,{"$f":"COUNTIF(Table37[[#This Row],[Column28]:[Column23]], \">1\")","v":0}]
[116,null,null,null,null,null,null,null,null,null,null,null,null,null,null,null,null,null,{"$f":"Table37[[#This Row],[Column22]]-Table37[[#This Row],[Column9]]","v":0},{"$f":"Table37[[#This Row],[Column21]]-Table37[[#This Row],[Column12]]","v":0},{"$f":"Table37[[#This Row],[Column20]]-Table37[[#This Row],[Column13]]","v":0},{"$f":"Table37[[#This Row],[Column19]]-Table37[[#This Row],[Column14]]","v":0},{"$f":"Table37[[#This Row],[Column18]]-Table37[[#This Row],[Column15]]","v":0},{"$f":"Table37[[#This Row],[Column17]]-Table37[[#This Row],[Column16]]","v":0},null,null,{"$f":"COUNTIF(Table37[[#This Row],[Column28]:[Column23]], \">1\")","v":0}]
[117,null,null,null,null,null,null,null,null,null,null,null,null,null,null,null,null,null,{"$f":"Table37[[#This Row],[Column22]]-Table37[[#This Row],[Column9]]","v":0},{"$f":"Table37[[#This Row],[Column21]]-Table37[[#This Row],[Column12]]","v":0},{"$f":"Table37[[#This Row],[Column20]]-Table37[[#This Row],[Column13]]","v":0},{"$f":"Table37[[#This Row],[Column19]]-Table37[[#This Row],[Column14]]","v":0},{"$f":"Table37[[#This Row],[Column18]]-Table37[[#This Row],[Column15]]","v":0},{"$f":"Table37[[#This Row],[Column17]]-Table37[[#This Row],[Column16]]","v":0},null,null,{"$f":"COUNTIF(Table37[[#This Row],[Column28]:[Column23]], \">1\")","v":0}]
[118,null,null,null,null,null,null,null,null,null,null,null,null,null,null,null,null,null,{"$f":"Table37[[#This Row],[Column22]]-Table37[[#This Row],[Column9]]","v":0},{"$f":"Table37[[#This Row],[Column21]]-Table37[[#This Row],[Column12]]","v":0},{"$f":"Table37[[#This Row],[Column20]]-Table37[[#This Row],[Column13]]","v":0},{"$f":"Table37[[#This Row],[Column19]]-Table37[[#This Row],[Column14]]","v":0},{"$f":"Table37[[#This Row],[Column18]]-Table37[[#This Row],[Column15]]","v":0},{"$f":"Table37[[#This Row],[Column17]]-Table37[[#This Row],[Column16]]","v":0},null,null,{"$f":"COUNTIF(Table37[[#This Row],[Column28]:[Column23]], \">1\")","v":0}]
[119,null,null,null,null,null,null,null,null,null,null,null,null,null,null,null,null,null,{"$f":"Table37[[#This Row],[Column22]]-Table37[[#This Row],[Column9]]","v":0},{"$f":"Table37[[#This Row],[Column21]]-Table37[[#This Row],[Column12]]","v":0},{"$f":"Table37[[#This Row],[Column20]]-Table37[[#This Row],[Column13]]","v":0},{"$f":"Table37[[#This Row],[Column19]]-Table37[[#This Row],[Column14]]","v":0},{"$f":"Table37[[#This Row],[Column18]]-Table37[[#This Row],[Column15]]","v":0},{"$f":"Table37[[#This Row],[Column17]]-Table37[[#This Row],[Column16]]","v":0},null,null,{"$f":"COUNTIF(Table37[[#This Row],[Column28]:[Column23]], \">1\")","v":0}]
[120,null,null,null,null,null,null,null,null,null,null,null,null,null,null,null,null,null,{"$f":"Table37[[#This Row],[Column22]]-Table37[[#This Row],[Column9]]","v":0},{"$f":"Table37[[#This Row],[Column21]]-Table37[[#This Row],[Column12]]","v":0},{"$f":"Table37[[#This Row],[Column20]]-Table37[[#This Row],[Column13]]","v":0},{"$f":"Table37[[#This Row],[Column19]]-Table37[[#This Row],[Column14]]","v":0},{"$f":"Table37[[#This Row],[Column18]]-Table37[[#This Row],[Column15]]","v":0},{"$f":"Table37[[#This Row],[Column17]]-Table37[[#This Row],[Column16]]","v":0},null,null,{"$f":"COUNTIF(Table37[[#This Row],[Column28]:[Column23]], \">1\")","v":0}]
[121,null,null,null,null,null,null,null,null,null,null,null,null,null,null,null,null,null,{"$f":"Table37[[#This Row],[Column22]]-Table37[[#This Row],[Column9]]","v":0},{"$f":"Table37[[#This Row],[Column21]]-Table37[[#This Row],[Column12]]","v":0},{"$f":"Table37[[#This Row],[Column20]]-Table37[[#This Row],[Column13]]","v":0},{"$f":"Table37[[#This Row],[Column19]]-Table37[[#This Row],[Column14]]","v":0},{"$f":"Table37[[#This Row],[Column18]]-Table37[[#This Row],[Column15]]","v":0},{"$f":"Table37[[#This Row],[Column17]]-Table37[[#This Row],[Column16]]","v":0},null,null,{"$f":"COUNTIF(Table37[[#This Row],[Column28]:[Column23]], \">1\")","v":0}]
[122,null,null,null,null,null,null,null,null,null,null,null,null,null,null,null,null,null,{"$f":"Table37[[#This Row],[Column22]]-Table37[[#This Row],[Column9]]","v":0},{"$f":"Table37[[#This Row],[Column21]]-Table37[[#This Row],[Column12]]","v":0},{"$f":"Table37[[#This Row],[Column20]]-Table37[[#This Row],[Column13]]","v":0},{"$f":"Table37[[#This Row],[Column19]]-Table37[[#This Row],[Column14]]","v":0},{"$f":"Table37[[#This Row],[Column18]]-Table37[[#This Row],[Column15]]","v":0},{"$f":"Table37[[#This Row],[Column17]]-Table37[[#This Row],[Column16]]","v":0},null,null,{"$f":"COUNTIF(Table37[[#This Row],[Column28]:[Column23]], \">1\")","v":0}]
[123,null,null,null,null,null,null,null,null,null,null,null,null,null,null,null,null,null,{"$f":"Table37[[#This Row],[Column22]]-Table37[[#This Row],[Column9]]","v":0},{"$f":"Table37[[#This Row],[Column21]]-Table37[[#This Row],[Column12]]","v":0},{"$f":"Table37[[#This Row],[Column20]]-Table37[[#This Row],[Column13]]","v":0},{"$f":"Table37[[#This Row],[Column19]]-Table37[[#This Row],[Column14]]","v":0},{"$f":"Table37[[#This Row],[Column18]]-Table37[[#This Row],[Column15]]","v":0},{"$f":"Table37[[#This Row],[Column17]]-Table37[[#This Row],[Column16]]","v":0},null,null,{"$f":"COUNTIF(Table37[[#This Row],[Column28]:[Column23]], \">1\")","v":0}]
[124,null,null,null,null,null,null,null,null,null,null,null,null,null,null,null,null,null,{"$f":"Table37[[#This Row],[Column22]]-Table37[[#This Row],[Column9]]","v":0},{"$f":"Table37[[#This Row],[Column21]]-Table37[[#This Row],[Column12]]","v":0},{"$f":"Table37[[#This Row],[Column20]]-Table37[[#This Row],[Column13]]","v":0},{"$f":"Table37[[#This Row],[Column19]]-Table37[[#This Row],[Column14]]","v":0},{"$f":"Table37[[#This Row],[Column18]]-Table37[[#This Row],[Column15]]","v":0},{"$f":"Table37[[#This Row],[Column17]]-Table37[[#This Row],[Column16]]","v":0},null,null,{"$f":"COUNTIF(Table37[[#This Row],[Column28]:[Column23]], \">1\")","v":0}]
[125,null,null,null,null,null,null,null,null,null,null,null,null,null,null,null,null,null,{"$f":"Table37[[#This Row],[Column22]]-Table37[[#This Row],[Column9]]","v":0},{"$f":"Table37[[#This Row],[Column21]]-Table37[[#This Row],[Column12]]","v":0},{"$f":"Table37[[#This Row],[Column20]]-Table37[[#This Row],[Column13]]","v":0},{"$f":"Table37[[#This Row],[Column19]]-Table37[[#This Row],[Column14]]","v":0},{"$f":"Table37[[#This Row],[Column18]]-Table37[[#This Row],[Column15]]","v":0},{"$f":"Table37[[#This Row],[Column17]]-Table37[[#This Row],[Column16]]","v":0},null,null,{"$f":"COUNTIF(Table37[[#This Row],[Column28]:[Column23]], \">1\")","v":0}]
[126,null,null,null,null,null,null,null,null,null,null,null,null,null,null,null,null,null,{"$f":"Table37[[#This Row],[Column22]]-Table37[[#This Row],[Column9]]","v":0},{"$f":"Table37[[#This Row],[Column21]]-Table37[[#This Row],[Column12]]","v":0},{"$f":"Table37[[#This Row],[Column20]]-Table37[[#This Row],[Column13]]","v":0},{"$f":"Table37[[#This Row],[Column19]]-Table37[[#This Row],[Column14]]","v":0},{"$f":"Table37[[#This Row],[Column18]]-Table37[[#This Row],[Column15]]","v":0},{"$f":"Table37[[#This Row],[Column17]]-Table37[[#This Row],[Column16]]","v":0},null,null,{"$f":"COUNTIF(Table37[[#This Row],[Column28]:[Column23]], \">1\")","v":0}]
[127,null,null,null,null,null,null,null,null,null,null,null,null,null,null,null,null,null,{"$f":"Table37[[#This Row],[Column22]]-Table37[[#This Row],[Column9]]","v":0},{"$f":"Table37[[#This Row],[Column21]]-Table37[[#This Row],[Column12]]","v":0},{"$f":"Table37[[#This Row],[Column20]]-Table37[[#This Row],[Column13]]","v":0},{"$f":"Table37[[#This Row],[Column19]]-Table37[[#This Row],[Column14]]","v":0},{"$f":"Table37[[#This Row],[Column18]]-Table37[[#This Row],[Column15]]","v":0},{"$f":"Table37[[#This Row],[Column17]]-Table37[[#This Row],[Column16]]","v":0},null,null,{"$f":"COUNTIF(Table37[[#This Row],[Column28]:[Column23]], \">1\")","v":0}]
[128,null,null,null,null,null,null,null,null,null,null,null,null,null,null,null,null,null,{"$f":"Table37[[#This Row],[Column22]]-Table37[[#This Row],[Column9]]","v":0},{"$f":"Table37[[#This Row],[Column21]]-Table37[[#This Row],[Column12]]","v":0},{"$f":"Table37[[#This Row],[Column20]]-Table37[[#This Row],[Column13]]","v":0},{"$f":"Table37[[#This Row],[Column19]]-Table37[[#This Row],[Column14]]","v":0},{"$f":"Table37[[#This Row],[Column18]]-Table37[[#This Row],[Column15]]","v":0},{"$f":"Table37[[#This Row],[Column17]]-Table37[[#This Row],[Column16]]","v":0},null,null,{"$f":"COUNTIF(Table37[[#This Row],[Column28]:[Column23]], \">1\")","v":0}]
[129,null,null,null,null,null,null,null,null,null,null,null,null,null,null,null,null,null,{"$f":"Table37[[#This Row],[Column22]]-Table37[[#This Row],[Column9]]","v":0},{"$f":"Table37[[#This Row],[Column21]]-Table37[[#This Row],[Column12]]","v":0},{"$f":"Table37[[#This Row],[Column20]]-Table37[[#This Row],[Column13]]","v":0},{"$f":"Table37[[#This Row],[Column19]]-Table37[[#This Row],[Column14]]","v":0},{"$f":"Table37[[#This Row],[Column18]]-Table37[[#This Row],[Column15]]","v":0},{"$f":"Table37[[#This Row],[Column17]]-Table37[[#This Row],[Column16]]","v":0},null,null,{"$f":"COUNTIF(Table37[[#This Row],[Column28]:[Column23]], \">1\")","v":0}]
[130,null,null,null,null,null,null,null,null,null,null,null,null,null,null,null,null,null,{"$f":"Table37[[#This Row],[Column22]]-Table37[[#This Row],[Column9]]","v":0},{"$f":"Table37[[#This Row],[Column21]]-Table37[[#This Row],[Column12]]","v":0},{"$f":"Table37[[#This Row],[Column20]]-Table37[[#This Row],[Column13]]","v":0},{"$f":"Table37[[#This Row],[Column19]]-Table37[[#This Row],[Column14]]","v":0},{"$f":"Table37[[#This Row],[Column18]]-Table37[[#This Row],[Column15]]","v":0},{"$f":"Table37[[#This Row],[Column17]]-Table37[[#This Row],[Column16]]","v":0},null,null,{"$f":"COUNTIF(Table37[[#This Row],[Column28]:[Column23]], \">1\")","v":0}]
[131,null,null,null,null,null,null,null,null,null,null,null,null,null,null,null,null,null,{"$f":"Table37[[#This Row],[Column22]]-Table37[[#This Row],[Column9]]","v":0},{"$f":"Table37[[#This Row],[Column21]]-Table37[[#This Row],[Column12]]","v":0},{"$f":"Table37[[#This Row],[Column20]]-Table37[[#This Row],[Column13]]","v":0},{"$f":"Table37[[#This Row],[Column19]]-Table37[[#This Row],[Column14]]","v":0},{"$f":"Table37[[#This Row],[Column18]]-Table37[[#This Row],[Column15]]","v":0},{"$f":"Table37[[#This Row],[Column17]]-Table37[[#This Row],[Column16]]","v":0},null,null,{"$f":"COUNTIF(Table37[[#This Row],[Column28]:[Column23]], \">1\")","v":0}]
[132,null,null,null,null,null,null,null,null,null,null,null,null,null,null,null,null,null,{"$f":"Table37[[#This Row],[Column22]]-Table37[[#This Row],[Column9]]","v":0},{"$f":"Table37[[#This Row],[Column21]]-Table37[[#This Row],[Column12]]","v":0},{"$f":"Table37[[#This Row],[Column20]]-Table37[[#This Row],[Column13]]","v":0},{"$f":"Table37[[#This Row],[Column19]]-Table37[[#This Row],[Column14]]","v":0},{"$f":"Table37[[#This Row],[Column18]]-Table37[[#This Row],[Column15]]","v":0},{"$f":"Table37[[#This Row],[Column17]]-Table37[[#This Row],[Column16]]","v":0},null,null,{"$f":"COUNTIF(Table37[[#This Row],[Column28]:[Column23]], \">1\")","v":0}]
[133,null,null,null,null,null,null,null,null,null,null,null,null,null,null,null,null,null,{"$f":"Table37[[#This Row],[Column22]]-Table37[[#This Row],[Column9]]","v":0},{"$f":"Table37[[#This Row],[Column21]]-Table37[[#This Row],[Column12]]","v":0},{"$f":"Table37[[#This Row],[Column20]]-Table37[[#This Row],[Column13]]","v":0},{"$f":"Table37[[#This Row],[Column19]]-Table37[[#This Row],[Column14]]","v":0},{"$f":"Table37[[#This Row],[Column18]]-Table37[[#This Row],[Column15]]","v":0},{"$f":"Table37[[#This Row],[Column17]]-Table37[[#This Row],[Column16]]","v":0},null,null,{"$f":"COUNTIF(Table37[[#This Row],[Column28]:[Column23]], \">1\")","v":0}]
[134,null,null,null,null,null,null,null,null,null,null,null,null,null,null,null,null,null,{"$f":"Table37[[#This Row],[Column22]]-Table37[[#This Row],[Column9]]","v":0},{"$f":"Table37[[#This Row],[Column21]]-Table37[[#This Row],[Column12]]","v":0},{"$f":"Table37[[#This Row],[Column20]]-Table37[[#This Row],[Column13]]","v":0},{"$f":"Table37[[#This Row],[Column19]]-Table37[[#This Row],[Column14]]","v":0},{"$f":"Table37[[#This Row],[Column18]]-Table37[[#This Row],[Column15]]","v":0},{"$f":"Table37[[#This Row],[Column17]]-Table37[[#This Row],[Column16]]","v":0},null,null,{"$f":"COUNTIF(Table37[[#This Row],[Column28]:[Column23]], \">1\")","v":0}]
[135,null,null,null,null,null,null,null,null,null,null,null,null,null,null,null,null,null,{"$f":"Table37[[#This Row],[Column22]]-Table37[[#This Row],[Column9]]","v":0},{"$f":"Table37[[#This Row],[Column21]]-Table37[[#This Row],[Column12]]","v":0},{"$f":"Table37[[#This Row],[Column20]]-Table37[[#This Row],[Column13]]","v":0},{"$f":"Table37[[#This Row],[Column19]]-Table37[[#This Row],[Column14]]","v":0},{"$f":"Table37[[#This Row],[Column18]]-Table37[[#This Row],[Column15]]","v":0},{"$f":"Table37[[#This Row],[Column17]]-Table37[[#This Row],[Column16]]","v":0},null,null,{"$f":"COUNTIF(Table37[[#This Row],[Column28]:[Column23]], \">1\")","v":0}]
[136,null,null,null,null,null,null,null,null,null,null,null,null,null,null,null,null,null,{"$f":"Table37[[#This Row],[Column22]]-Table37[[#This Row],[Column9]]","v":0},{"$f":"Table37[[#This Row],[Column21]]-Table37[[#This Row],[Column12]]","v":0},{"$f":"Table37[[#This Row],[Column20]]-Table37[[#This Row],[Column13]]","v":0},{"$f":"Table37[[#This Row],[Column19]]-Table37[[#This Row],[Column14]]","v":0},{"$f":"Table37[[#This Row],[Column18]]-Table37[[#This Row],[Column15]]","v":0},{"$f":"Table37[[#This Row],[Column17]]-Table37[[#This Row],[Column16]]","v":0},null,null,{"$f":"COUNTIF(Table37[[#This Row],[Column28]:[Column23]], \">1\")","v":0}]
[137,null,null,null,null,null,null,null,null,null,null,null,null,null,null,null,null,null,{"$f":"Table37[[#This Row],[Column22]]-Table37[[#This Row],[Column9]]","v":0},{"$f":"Table37[[#This Row],[Column21]]-Table37[[#This Row],[Column12]]","v":0},{"$f":"Table37[[#This Row],[Column20]]-Table37[[#This Row],[Column13]]","v":0},{"$f":"Table37[[#This Row],[Column19]]-Table37[[#This Row],[Column14]]","v":0},{"$f":"Table37[[#This Row],[Column18]]-Table37[[#This Row],[Column15]]","v":0},{"$f":"Table37[[#This Row],[Column17]]-Table37[[#This Row],[Column16]]","v":0},null,null,{"$f":"COUNTIF(Table37[[#This Row],[Column28]:[Column23]], \">1\")","v":0}]
[138,null,null,null,null,null,null,null,null,null,null,null,null,null,null,null,null,null,{"$f":"Table37[[#This Row],[Column22]]-Table37[[#This Row],[Column9]]","v":0},{"$f":"Table37[[#This Row],[Column21]]-Table37[[#This Row],[Column12]]","v":0},{"$f":"Table37[[#This Row],[Column20]]-Table37[[#This Row],[Column13]]","v":0},{"$f":"Table37[[#This Row],[Column19]]-Table37[[#This Row],[Column14]]","v":0},{"$f":"Table37[[#This Row],[Column18]]-Table37[[#This Row],[Column15]]","v":0},{"$f":"Table37[[#This Row],[Column17]]-Table37[[#This Row],[Column16]]","v":0},null,null,{"$f":"COUNTIF(Table37[[#This Row],[Column28]:[Column23]], \">1\")","v":0}]
[139,null,null,null,null,null,null,null,null,null,null,null,null,null,null,null,null,null,{"$f":"Table37[[#This Row],[Column22]]-Table37[[#This Row],[Column9]]","v":0},{"$f":"Table37[[#This Row],[Column21]]-Table37[[#This Row],[Column12]]","v":0},{"$f":"Table37[[#This Row],[Column20]]-Table37[[#This Row],[Column13]]","v":0},{"$f":"Table37[[#This Row],[Column19]]-Table37[[#This Row],[Column14]]","v":0},{"$f":"Table37[[#This Row],[Column18]]-Table37[[#This Row],[Column15]]","v":0},{"$f":"Table37[[#This Row],[Column17]]-Table37[[#This Row],[Column16]]","v":0},null,null,{"$f":"COUNTIF(Table37[[#This Row],[Column28]:[Column23]], \">1\")","v":0}]
[140,null,null,null,null,null,null,null,null,null,null,null,null,null,null,null,null,null,{"$f":"Table37[[#This Row],[Column22]]-Table37[[#This Row],[Column9]]","v":0},{"$f":"Table37[[#This Row],[Column21]]-Table37[[#This Row],[Column12]]","v":0},{"$f":"Table37[[#This Row],[Column20]]-Table37[[#This Row],[Column13]]","v":0},{"$f":"Table37[[#This Row],[Column19]]-Table37[[#This Row],[Column14]]","v":0},{"$f":"Table37[[#This Row],[Column18]]-Table37[[#This Row],[Column15]]","v":0},{"$f":"Table37[[#This Row],[Column17]]-Table37[[#This Row],[Column16]]","v":0},null,null,{"$f":"COUNTIF(Table37[[#This Row],[Column28]:[Column23]], \">1\")","v":0}]
[141,null,null,null,null,null,null,null,null,null,null,null,null,null,null,null,null,null,{"$f":"Table37[[#This Row],[Column22]]-Table37[[#This Row],[Column9]]","v":0},{"$f":"Table37[[#This Row],[Column21]]-Table37[[#This Row],[Column12]]","v":0},{"$f":"Table37[[#This Row],[Column20]]-Table37[[#This Row],[Column13]]","v":0},{"$f":"Table37[[#This Row],[Column19]]-Table37[[#This Row],[Column14]]","v":0},{"$f":"Table37[[#This Row],[Column18]]-Table37[[#This Row],[Column15]]","v":0},{"$f":"Table37[[#This Row],[Column17]]-Table37[[#This Row],[Column16]]","v":0},null,null,{"$f":"COUNTIF(Table37[[#This Row],[Column28]:[Column23]], \">1\")","v":0}]
[142,null,null,null,null,null,null,null,null,null,null,null,null,null,null,null,null,null,{"$f":"Table37[[#This Row],[Column22]]-Table37[[#This Row],[Column9]]","v":0},{"$f":"Table37[[#This Row],[Column21]]-Table37[[#This Row],[Column12]]","v":0},{"$f":"Table37[[#This Row],[Column20]]-Table37[[#This Row],[Column13]]","v":0},{"$f":"Table37[[#This Row],[Column19]]-Table37[[#This Row],[Column14]]","v":0},{"$f":"Table37[[#This Row],[Column18]]-Table37[[#This Row],[Column15]]","v":0},{"$f":"Table37[[#This Row],[Column17]]-Table37[[#This Row],[Column16]]","v":0},null,null,{"$f":"COUNTIF(Table37[[#This Row],[Column28]:[Column23]], \">1\")","v":0}]
[143,null,null,null,null,null,null,null,null,null,null,null,null,null,null,null,null,null,{"$f":"Table37[[#This Row],[Column22]]-Table37[[#This Row],[Column9]]","v":0},{"$f":"Table37[[#This Row],[Column21]]-Table37[[#This Row],[Column12]]","v":0},{"$f":"Table37[[#This Row],[Column20]]-Table37[[#This Row],[Column13]]","v":0},{"$f":"Table37[[#This Row],[Column19]]-Table37[[#This Row],[Column14]]","v":0},{"$f":"Table37[[#This Row],[Column18]]-Table37[[#This Row],[Column15]]","v":0},{"$f":"Table37[[#This Row],[Column17]]-Table37[[#This Row],[Column16]]","v":0},null,null,{"$f":"COUNTIF(Table37[[#This Row],[Column28]:[Column23]], \">1\")","v":0}]
[144,null,null,null,null,null,null,null,null,null,null,null,null,null,null,null,null,null,{"$f":"Table37[[#This Row],[Column22]]-Table37[[#This Row],[Column9]]","v":0},{"$f":"Table37[[#This Row],[Column21]]-Table37[[#This Row],[Column12]]","v":0},{"$f":"Table37[[#This Row],[Column20]]-Table37[[#This Row],[Column13]]","v":0},{"$f":"Table37[[#This Row],[Column19]]-Table37[[#This Row],[Column14]]","v":0},{"$f":"Table37[[#This Row],[Column18]]-Table37[[#This Row],[Column15]]","v":0},{"$f":"Table37[[#This Row],[Column17]]-Table37[[#This Row],[Column16]]","v":0},null,null,{"$f":"COUNTIF(Table37[[#This Row],[Column28]:[Column23]], \">1\")","v":0}]
[145,null,null,null,null,null,null,null,null,null,null,null,null,null,null,null,null,null,{"$f":"Table37[[#This Row],[Column22]]-Table37[[#This Row],[Column9]]","v":0},{"$f":"Table37[[#This Row],[Column21]]-Table37[[#This Row],[Column12]]","v":0},{"$f":"Table37[[#This Row],[Column20]]-Table37[[#This Row],[Column13]]","v":0},{"$f":"Table37[[#This Row],[Column19]]-Table37[[#This Row],[Column14]]","v":0},{"$f":"Table37[[#This Row],[Column18]]-Table37[[#This Row],[Column15]]","v":0},{"$f":"Table37[[#This Row],[Column17]]-Table37[[#This Row],[Column16]]","v":0},null,null,{"$f":"COUNTIF(Table37[[#This Row],[Column28]:[Column23]], \">1\")","v":0}]
[146,null,null,null,null,null,null,null,null,null,null,null,null,null,null,null,null,null,{"$f":"Table37[[#This Row],[Column22]]-Table37[[#This Row],[Column9]]","v":0},{"$f":"Table37[[#This Row],[Column21]]-Table37[[#This Row],[Column12]]","v":0},{"$f":"Table37[[#This Row],[Column20]]-Table37[[#This Row],[Column13]]","v":0},{"$f":"Table37[[#This Row],[Column19]]-Table37[[#This Row],[Column14]]","v":0},{"$f":"Table37[[#This Row],[Column18]]-Table37[[#This Row],[Column15]]","v":0},{"$f":"Table37[[#This Row],[Column17]]-Table37[[#This Row],[Column16]]","v":0},null,null,{"$f":"COUNTIF(Table37[[#This Row],[Column28]:[Column23]], \">1\")","v":0}]
[147,null,null,null,null,null,null,null,null,null,null,null,null,null,null,null,null,null,{"$f":"Table37[[#This Row],[Column22]]-Table37[[#This Row],[Column9]]","v":0},{"$f":"Table37[[#This Row],[Column21]]-Table37[[#This Row],[Column12]]","v":0},{"$f":"Table37[[#This Row],[Column20]]-Table37[[#This Row],[Column13]]","v":0},{"$f":"Table37[[#This Row],[Column19]]-Table37[[#This Row],[Column14]]","v":0},{"$f":"Table37[[#This Row],[Column18]]-Table37[[#This Row],[Column15]]","v":0},{"$f":"Table37[[#This Row],[Column17]]-Table37[[#This Row],[Column16]]","v":0},null,null,{"$f":"COUNTIF(Table37[[#This Row],[Column28]:[Column23]], \">1\")","v":0}]
[148,null,null,null,null,null,null,null,null,null,null,null,null,null,null,null,null,null,{"$f":"Table37[[#This Row],[Column22]]-Table37[[#This Row],[Column9]]","v":0},{"$f":"Table37[[#This Row],[Column21]]-Table37[[#This Row],[Column12]]","v":0},{"$f":"Table37[[#This Row],[Column20]]-Table37[[#This Row],[Column13]]","v":0},{"$f":"Table37[[#This Row],[Column19]]-Table37[[#This Row],[Column14]]","v":0},{"$f":"Table37[[#This Row],[Column18]]-Table37[[#This Row],[Column15]]","v":0},{"$f":"Table37[[#This Row],[Column17]]-Table37[[#This Row],[Column16]]","v":0},null,null,{"$f":"COUNTIF(Table37[[#This Row],[Column28]:[Column23]], \">1\")","v":0}]
[149,null,null,null,null,null,null,null,null,null,null,null,null,null,null,null,null,null,{"$f":"Table37[[#This Row],[Column22]]-Table37[[#This Row],[Column9]]","v":0},{"$f":"Table37[[#This Row],[Column21]]-Table37[[#This Row],[Column12]]","v":0},{"$f":"Table37[[#This Row],[Column20]]-Table37[[#This Row],[Column13]]","v":0},{"$f":"Table37[[#This Row],[Column19]]-Table37[[#This Row],[Column14]]","v":0},{"$f":"Table37[[#This Row],[Column18]]-Table37[[#This Row],[Column15]]","v":0},{"$f":"Table37[[#This Row],[Column17]]-Table37[[#This Row],[Column16]]","v":0},null,null,{"$f":"COUNTIF(Table37[[#This Row],[Column28]:[Column23]], \">1\")","v":0}]
[150,null,null,null,null,null,null,null,null,null,null,null,null,null,null,null,null,null,{"$f":"Table37[[#This Row],[Column22]]-Table37[[#This Row],[Column9]]","v":0},{"$f":"Table37[[#This Row],[Column21]]-Table37[[#This Row],[Column12]]","v":0},{"$f":"Table37[[#This Row],[Column20]]-Table37[[#This Row],[Column13]]","v":0},{"$f":"Table37[[#This Row],[Column19]]-Table37[[#This Row],[Column14]]","v":0},{"$f":"Table37[[#This Row],[Column18]]-Table37[[#This Row],[Column15]]","v":0},{"$f":"Table37[[#This Row],[Column17]]-Table37[[#This Row],[Column16]]","v":0},null,null,{"$f":"COUNTIF(Table37[[#This Row],[Column28]:[Column23]], \">1\")","v":0}]

{"sheet":"Students - Mentoring","index":2,"n_rows":157,"n_cols":29,"rows_kept":157,"cut":false,"hidden":false,"merged":[[3,11,4,11],[3,24,3,25],[3,27,3,28],[0,0,3,0],[0,12,1,28],[1,2,1,4],[1,6,1,11],[2,2,2,11],[2,24,2,25],[2,27,2,28],[3,2,4,2],[3,3,4,3],[3,4,4,4]]}
["Keystone SMILES AmeriCorps","Mentoring Students Roster - Rubric",null,null,null,null,null,null,null,null,null,null,"Rosters are due via Email on November 15th, Feburary 15th, May 15th, and at the end of the Member's term.  This Roster, plus the reporting form, great story and photographs, together, comprise the member's complete Quarterly Report.  "]
[null,"Member Name:",null,null,null,"Host Site:"]
[null,"Definitions","Economically Disadvadvantaged:  Eligible for free (at or below 130% of poverty) or reduced (between 130% to 185% of poverty) lunch; may or may not actually be accessing free/reduced lunch    Special or exceptional needs:  Children who are developmentally disabled, such as those who are autistic, have cerebral palsy or epilepsy, are visually impaired, speech impaired, hearing impaired, orthopedically impaired, are emotionally disturbed or have a language disorder, specific learning disability, have multiple disabilities, other significant health impairment or have literacy needs. Children who are abused or neglected; in need of foster care; adjudicated youth; homeless youth; teenage parents; and children in need of protective intervention in their homes.  Majority School:  A District who has provided documentation to Keystone SMILES AmeriCorps that they enroll “a majority of economically disadvantaged students and/or a majority of children with special or exceptional needs.”",null,null,null,null,null,null,null,null,null,null,null,null,null,null,null,null,null,null,null,null,null,"Did the student receive at least 35 hours of instruction?",null,"In how many areas did the student improve by at least 2 levels?","Did student gain at least 2 levels in 1 of 6 areas?"]
[null,"Student Name or ID","Added to Caseload for what report -  Nov, Feb, May or Final","Economically Disadvantaged (ED), Special Needs (SN), or School Majority (SM)","Date Baseline Conducted:",null,null,null,null,null,null,"Date Final Evaluation conducted:",null,null,null,null,null,null,null,null,null,null,null,null,"Use Question [4] of the Academic Engagement Rubric Scoring Summary",null,"Use Question [6] of the Academic Engagement Rubric Scoring Summary","Use Question [7] of the Academic Engagement Rubric Scoring Summary"]
[null,null,null,null,null,"Baseline Motivation:","Baseline Leadership:","Baseline Attitude","Baseline Organization:","Baseline Behavior","Baseline Academics:",null,"Final Motivation:","Final Leadership:","Final Attitude","Final Organization:","Final Behavior","Final Academics:","Difference Motivation:","Difference Leadership:","Difference Attitude","Difference Organization:","Difference Behavior","Difference Academics:","Yes","No",null,"Yes","No"]
["TOTALS:",{"$f":"COUNTA(B8:B157)","v":0},{"$f":"COUNTA(C8:C157)","v":0},null,{"$f":"COUNTA(E8:E157)","v":0},null,null,null,null,null,null,0,null,null,null,null,null,null,null,null,null,null,null,null,0,0,{"$f":"COUNTIF(Table375[[#This Row],[Column28]:[Column23]], \">1\")","v":0},0,0]
["For Example","Charlie Brown","November",null,"2013-09-10",4,3,2,3,2,2,"2014-05-25",4,3,5,5,2,4,{"$f":"Table375[[#This Row],[Column22]]-Table375[[#This Row],[Column9]]","v":0},{"$f":"Table375[[#This Row],[Column21]]-Table375[[#This Row],[Column12]]","v":0},{"$f":"Table375[[#This Row],[Column20]]-Table375[[#This Row],[Column13]]","v":3},{"$f":"Table375[[#This Row],[Column19]]-Table375[[#This Row],[Column14]]","v":2},{"$f":"Table375[[#This Row],[Column18]]-Table375[[#This Row],[Column15]]","v":0},{"$f":"Table375[[#This Row],[Column17]]-Table375[[#This Row],[Column16]]","v":2},"x",null,{"$f":"COUNTIF(Table375[[#This Row],[Column28]:[Column23]], \">1\")","v":3},"x"]
[1,null,null,null,null,null,null,null,null,null,null,null,null,null,null,null,null,null,{"$f":"Table375[[#This Row],[Column22]]-Table375[[#This Row],[Column9]]","v":0},{"$f":"Table375[[#This Row],[Column21]]-Table375[[#This Row],[Column12]]","v":0},{"$f":"Table375[[#This Row],[Column20]]-Table375[[#This Row],[Column13]]","v":0},{"$f":"Table375[[#This Row],[Column19]]-Table375[[#This Row],[Column14]]","v":0},{"$f":"Table375[[#This Row],[Column18]]-Table375[[#This Row],[Column15]]","v":0},{"$f":"Table375[[#This Row],[Column17]]-Table375[[#This Row],[Column16]]","v":0},null,null,{"$f":"COUNTIF(Table375[[#This Row],[Column28]:[Column23]], \">1\")","v":0}]
[2,null,null,null,null,null,null,null,null,null,null,null,null,null,null,null,null,null,{"$f":"Table375[[#This Row],[Column22]]-Table375[[#This Row],[Column9]]","v":0},{"$f":"Table375[[#This Row],[Column21]]-Table375[[#This Row],[Column12]]","v":0},{"$f":"Table375[[#This Row],[Column20]]-Table375[[#This Row],[Column13]]","v":0},{"$f":"Table375[[#This Row],[Column19]]-Table375[[#This Row],[Column14]]","v":0},{"$f":"Table375[[#This Row],[Column18]]-Table375[[#This Row],[Column15]]","v":0},{"$f":"Table375[[#This Row],[Column17]]-Table375[[#This Row],[Column16]]","v":0},null,null,{"$f":"COUNTIF(Table375[[#This Row],[Column28]:[Column23]], \">1\")","v":0}]
[3,null,null,null,null,null,null,null,null,null,null,null,null,null,null,null,null,null,{"$f":"Table375[[#This Row],[Column22]]-Table375[[#This Row],[Column9]]","v":0},{"$f":"Table375[[#This Row],[Column21]]-Table375[[#This Row],[Column12]]","v":0},{"$f":"Table375[[#This Row],[Column20]]-Table375[[#This Row],[Column13]]","v":0},{"$f":"Table375[[#This Row],[Column19]]-Table375[[#This Row],[Column14]]","v":0},{"$f":"Table375[[#This Row],[Column18]]-Table375[[#This Row],[Column15]]","v":0},{"$f":"Table375[[#This Row],[Column17]]-Table375[[#This Row],[Column16]]","v":0},null,null,{"$f":"COUNTIF(Table375[[#This Row],[Column28]:[Column23]], \">1\")","v":0}]
[4,null,null,null,null,null,null,null,null,null,null,null,null,null,null,null,null,null,{"$f":"Table375[[#This Row],[Column22]]-Table375[[#This Row],[Column9]]","v":0},{"$f":"Table375[[#This Row],[Column21]]-Table375[[#This Row],[Column12]]","v":0},{"$f":"Table375[[#This Row],[Column20]]-Table375[[#This Row],[Column13]]","v":0},{"$f":"Table375[[#This Row],[Column19]]-Table375[[#This Row],[Column14]]","v":0},{"$f":"Table375[[#This Row],[Column18]]-Table375[[#This Row],[Column15]]","v":0},{"$f":"Table375[[#This Row],[Column17]]-Table375[[#This Row],[Column16]]","v":0},null,null,{"$f":"COUNTIF(Table375[[#This Row],[Column28]:[Column23]], \">1\")","v":0}]
[5,null,null,null,null,null,null,null,null,null,null,null,null,null,null,null,null,null,{"$f":"Table375[[#This Row],[Column22]]-Table375[[#This Row],[Column9]]","v":0},{"$f":"Table375[[#This Row],[Column21]]-Table375[[#This Row],[Column12]]","v":0},{"$f":"Table375[[#This Row],[Column20]]-Table375[[#This Row],[Column13]]","v":0},{"$f":"Table375[[#This Row],[Column19]]-Table375[[#This Row],[Column14]]","v":0},{"$f":"Table375[[#This Row],[Column18]]-Table375[[#This Row],[Column15]]","v":0},{"$f":"Table375[[#This Row],[Column17]]-Table375[[#This Row],[Column16]]","v":0},null,null,{"$f":"COUNTIF(Table375[[#This Row],[Column28]:[Column23]], \">1\")","v":0}]
[6,null,null,null,null,null,null,null,null,null,null,null,null,null,null,null,null,null,{"$f":"Table375[[#This Row],[Column22]]-Table375[[#This Row],[Column9]]","v":0},{"$f":"Table375[[#This Row],[Column21]]-Table375[[#This Row],[Column12]]","v":0},{"$f":"Table375[[#This Row],[Column20]]-Table375[[#This Row],[Column13]]","v":0},{"$f":"Table375[[#This Row],[Column19]]-Table375[[#This Row],[Column14]]","v":0},{"$f":"Table375[[#This Row],[Column18]]-Table375[[#This Row],[Column15]]","v":0},{"$f":"Table375[[#This Row],[Column17]]-Table375[[#This Row],[Column16]]","v":0},null,null,{"$f":"COUNTIF(Table375[[#This Row],[Column28]:[Column23]], \">1\")","v":0}]
[7,null,null,null,null,null,null,null,null,null,null,null,null,null,null,null,null,null,{"$f":"Table375[[#This Row],[Column22]]-Table375[[#This Row],[Column9]]","v":0},{"$f":"Table375[[#This Row],[Column21]]-Table375[[#This Row],[Column12]]","v":0},{"$f":"Table375[[#This Row],[Column20]]-Table375[[#This Row],[Column13]]","v":0},{"$f":"Table375[[#This Row],[Column19]]-Table375[[#This Row],[Column14]]","v":0},{"$f":"Table375[[#This Row],[Column18]]-Table375[[#This Row],[Column15]]","v":0},{"$f":"Table375[[#This Row],[Column17]]-Table375[[#This Row],[Column16]]","v":0},null,null,{"$f":"COUNTIF(Table375[[#This Row],[Column28]:[Column23]], \">1\")","v":0}]
[8,null,null,null,null,null,null,null,null,null,null,null,null,null,null,null,null,null,{"$f":"Table375[[#This Row],[Column22]]-Table375[[#This Row],[Column9]]","v":0},{"$f":"Table375[[#This Row],[Column21]]-Table375[[#This Row],[Column12]]","v":0},{"$f":"Table375[[#This Row],[Column20]]-Table375[[#This Row],[Column13]]","v":0},{"$f":"Table375[[#This Row],[Column19]]-Table375[[#This Row],[Column14]]","v":0},{"$f":"Table375[[#This Row],[Column18]]-Table375[[#This Row],[Column15]]","v":0},{"$f":"Table375[[#This Row],[Column17]]-Table375[[#This Row],[Column16]]","v":0},null,null,{"$f":"COUNTIF(Table375[[#This Row],[Column28]:[Column23]], \">1\")","v":0}]
[9,null,null,null,null,null,null,null,null,null,null,null,null,null,null,null,null,null,{"$f":"Table375[[#This Row],[Column22]]-Table375[[#This Row],[Column9]]","v":0},{"$f":"Table375[[#This Row],[Column21]]-Table375[[#This Row],[Column12]]","v":0},{"$f":"Table375[[#This Row],[Column20]]-Table375[[#This Row],[Column13]]","v":0},{"$f":"Table375[[#This Row],[Column19]]-Table375[[#This Row],[Column14]]","v":0},{"$f":"Table375[[#This Row],[Column18]]-Table375[[#This Row],[Column15]]","v":0},{"$f":"Table375[[#This Row],[Column17]]-Table375[[#This Row],[Column16]]","v":0},null,null,{"$f":"COUNTIF(Table375[[#This Row],[Column28]:[Column23]], \">1\")","v":0}]
[10,null,null,null,null,null,null,null,null,null,null,null,null,null,null,null,null,null,{"$f":"Table375[[#This Row],[Column22]]-Table375[[#This Row],[Column9]]","v":0},{"$f":"Table375[[#This Row],[Column21]]-Table375[[#This Row],[Column12]]","v":0},{"$f":"Table375[[#This Row],[Column20]]-Table375[[#This Row],[Column13]]","v":0},{"$f":"Table375[[#This Row],[Column19]]-Table375[[#This Row],[Column14]]","v":0},{"$f":"Table375[[#This Row],[Column18]]-Table375[[#This Row],[Column15]]","v":0},{"$f":"Table375[[#This Row],[Column17]]-Table375[[#This Row],[Column16]]","v":0},null,null,{"$f":"COUNTIF(Table375[[#This Row],[Column28]:[Column23]], \">1\")","v":0}]
[11,null,null,null,null,null,null,null,null,null,null,null,null,null,null,null,null,null,{"$f":"Table375[[#This Row],[Column22]]-Table375[[#This Row],[Column9]]","v":0},{"$f":"Table375[[#This Row],[Column21]]-Table375[[#This Row],[Column12]]","v":0},{"$f":"Table375[[#This Row],[Column20]]-Table375[[#This Row],[Column13]]","v":0},{"$f":"Table375[[#This Row],[Column19]]-Table375[[#This Row],[Column14]]","v":0},{"$f":"Table375[[#This Row],[Column18]]-Table375[[#This Row],[Column15]]","v":0},{"$f":"Table375[[#This Row],[Column17]]-Table375[[#This Row],[Column16]]","v":0},null,null,{"$f":"COUNTIF(Table375[[#This Row],[Column28]:[Column23]], \">1\")","v":0}]
[12,null,null,null,null,null,null,null,null,null,null,null,null,null,null,null,null,null,{"$f":"Table375[[#This Row],[Column22]]-Table375[[#This Row],[Column9]]","v":0},{"$f":"Table375[[#This Row],[Column21]]-Table375[[#This Row],[Column12]]","v":0},{"$f":"Table375[[#This Row],[Column20]]-Table375[[#This Row],[Column13]]","v":0},{"$f":"Table375[[#This Row],[Column19]]-Table375[[#This Row],[Column14]]","v":0},{"$f":"Table375[[#This Row],[Column18]]-Table375[[#This Row],[Column15]]","v":0},{"$f":"Table375[[#This Row],[Column17]]-Table375[[#This Row],[Column16]]","v":0},null,null,{"$f":"COUNTIF(Table375[[#This Row],[Column28]:[Column23]], \">1\")","v":0}]
[13,null,null,null,null,null,null,null,null,null,null,null,null,null,null,null,null,null,{"$f":"Table375[[#This Row],[Column22]]-Table375[[#This Row],[Column9]]","v":0},{"$f":"Table375[[#This Row],[Column21]]-Table375[[#This Row],[Column12]]","v":0},{"$f":"Table375[[#This Row],[Column20]]-Table375[[#This Row],[Column13]]","v":0},{"$f":"Table375[[#This Row],[Column19]]-Table375[[#This Row],[Column14]]","v":0},{"$f":"Table375[[#This Row],[Column18]]-Table375[[#This Row],[Column15]]","v":0},{"$f":"Table375[[#This Row],[Column17]]-Table375[[#This Row],[Column16]]","v":0},null,null,{"$f":"COUNTIF(Table375[[#This Row],[Column28]:[Column23]], \">1\")","v":0}]
[14,null,null,null,null,null,null,null,null,null,null,null,null,null,null,null,null,null,{"$f":"Table375[[#This Row],[Column22]]-Table375[[#This Row],[Column9]]","v":0},{"$f":"Table375[[#This Row],[Column21]]-Table375[[#This Row],[Column12]]","v":0},{"$f":"Table375[[#This Row],[Column20]]-Table375[[#This Row],[Column13]]","v":0},{"$f":"Table375[[#This Row],[Column19]]-Table375[[#This Row],[Column14]]","v":0},{"$f":"Table375[[#This Row],[Column18]]-Table375[[#This Row],[Column15]]","v":0},{"$f":"Table375[[#This Row],[Column17]]-Table375[[#This Row],[Column16]]","v":0},null,null,{"$f":"COUNTIF(Table375[[#This Row],[Column28]:[Column23]], \">1\")","v":0}]
[15,null,null,null,null,null,null,null,null,null,null,null,null,null,null,null,null,null,{"$f":"Table375[[#This Row],[Column22]]-Table375[[#This Row],[Column9]]","v":0},{"$f":"Table375[[#This Row],[Column21]]-Table375[[#This Row],[Column12]]","v":0},{"$f":"Table375[[#This Row],[Column20]]-Table375[[#This Row],[Column13]]","v":0},{"$f":"Table375[[#This Row],[Column19]]-Table375[[#This Row],[Column14]]","v":0},{"$f":"Table375[[#This Row],[Column18]]-Table375[[#This Row],[Column15]]","v":0},{"$f":"Table375[[#This Row],[Column17]]-Table375[[#This Row],[Column16]]","v":0},null,null,{"$f":"COUNTIF(Table375[[#This Row],[Column28]:[Column23]], \">1\")","v":0}]
[16,null,null,null,null,null,null,null,null,null,null,null,null,null,null,null,null,null,{"$f":"Table375[[#This Row],[Column22]]-Table375[[#This Row],[Column9]]","v":0},{"$f":"Table375[[#This Row],[Column21]]-Table375[[#This Row],[Column12]]","v":0},{"$f":"Table375[[#This Row],[Column20]]-Table375[[#This Row],[Column13]]","v":0},{"$f":"Table375[[#This Row],[Column19]]-Table375[[#This Row],[Column14]]","v":0},{"$f":"Table375[[#This Row],[Column18]]-Table375[[#This Row],[Column15]]","v":0},{"$f":"Table375[[#This Row],[Column17]]-Table375[[#This Row],[Column16]]","v":0},null,null,{"$f":"COUNTIF(Table375[[#This Row],[Column28]:[Column23]], \">1\")","v":0}]
[17,null,null,null,null,null,null,null,null,null,null,null,null,null,null,null,null,null,{"$f":"Table375[[#This Row],[Column22]]-Table375[[#This Row],[Column9]]","v":0},{"$f":"Table375[[#This Row],[Column21]]-Table375[[#This Row],[Column12]]","v":0},{"$f":"Table375[[#This Row],[Column20]]-Table375[[#This Row],[Column13]]","v":0},{"$f":"Table375[[#This Row],[Column19]]-Table375[[#This Row],[Column14]]","v":0},{"$f":"Table375[[#This Row],[Column18]]-Table375[[#This Row],[Column15]]","v":0},{"$f":"Table375[[#This Row],[Column17]]-Table375[[#This Row],[Column16]]","v":0},null,null,{"$f":"COUNTIF(Table375[[#This Row],[Column28]:[Column23]], \">1\")","v":0}]
[18,null,null,null,null,null,null,null,null,null,null,null,null,null,null,null,null,null,{"$f":"Table375[[#This Row],[Column22]]-Table375[[#This Row],[Column9]]","v":0},{"$f":"Table375[[#This Row],[Column21]]-Table375[[#This Row],[Column12]]","v":0},{"$f":"Table375[[#This Row],[Column20]]-Table375[[#This Row],[Column13]]","v":0},{"$f":"Table375[[#This Row],[Column19]]-Table375[[#This Row],[Column14]]","v":0},{"$f":"Table375[[#This Row],[Column18]]-Table375[[#This Row],[Column15]]","v":0},{"$f":"Table375[[#This Row],[Column17]]-Table375[[#This Row],[Column16]]","v":0},null,null,{"$f":"COUNTIF(Table375[[#This Row],[Column28]:[Column23]], \">1\")","v":0}]
[19,null,null,null,null,null,null,null,null,null,null,null,null,null,null,null,null,null,{"$f":"Table375[[#This Row],[Column22]]-Table375[[#This Row],[Column9]]","v":0},{"$f":"Table375[[#This Row],[Column21]]-Table375[[#This Row],[Column12]]","v":0},{"$f":"Table375[[#This Row],[Column20]]-Table375[[#This Row],[Column13]]","v":0},{"$f":"Table375[[#This Row],[Column19]]-Table375[[#This Row],[Column14]]","v":0},{"$f":"Table375[[#This Row],[Column18]]-Table375[[#This Row],[Column15]]","v":0},{"$f":"Table375[[#This Row],[Column17]]-Table375[[#This Row],[Column16]]","v":0},null,null,{"$f":"COUNTIF(Table375[[#This Row],[Column28]:[Column23]], \">1\")","v":0}]
[20,null,null,null,null,null,null,null,null,null,null,null,null,null,null,null,null,null,{"$f":"Table375[[#This Row],[Column22]]-Table375[[#This Row],[Column9]]","v":0},{"$f":"Table375[[#This Row],[Column21]]-Table375[[#This Row],[Column12]]","v":0},{"$f":"Table375[[#This Row],[Column20]]-Table375[[#This Row],[Column13]]","v":0},{"$f":"Table375[[#This Row],[Column19]]-Table375[[#This Row],[Column14]]","v":0},{"$f":"Table375[[#This Row],[Column18]]-Table375[[#This Row],[Column15]]","v":0},{"$f":"Table375[[#This Row],[Column17]]-Table375[[#This Row],[Column16]]","v":0},null,null,{"$f":"COUNTIF(Table375[[#This Row],[Column28]:[Column23]], \">1\")","v":0}]
[21,null,null,null,null,null,null,null,null,null,null,null,null,null,null,null,null,null,{"$f":"Table375[[#This Row],[Column22]]-Table375[[#This Row],[Column9]]","v":0},{"$f":"Table375[[#This Row],[Column21]]-Table375[[#This Row],[Column12]]","v":0},{"$f":"Table375[[#This Row],[Column20]]-Table375[[#This Row],[Column13]]","v":0},{"$f":"Table375[[#This Row],[Column19]]-Table375[[#This Row],[Column14]]","v":0},{"$f":"Table375[[#This Row],[Column18]]-Table375[[#This Row],[Column15]]","v":0},{"$f":"Table375[[#This Row],[Column17]]-Table375[[#This Row],[Column16]]","v":0},null,null,{"$f":"COUNTIF(Table375[[#This Row],[Column28]:[Column23]], \">1\")","v":0}]
[22,null,null,null,null,null,null,null,null,null,null,null,null,null,null,null,null,null,{"$f":"Table375[[#This Row],[Column22]]-Table375[[#This Row],[Column9]]","v":0},{"$f":"Table375[[#This Row],[Column21]]-Table375[[#This Row],[Column12]]","v":0},{"$f":"Table375[[#This Row],[Column20]]-Table375[[#This Row],[Column13]]","v":0},{"$f":"Table375[[#This Row],[Column19]]-Table375[[#This Row],[Column14]]","v":0},{"$f":"Table375[[#This Row],[Column18]]-Table375[[#This Row],[Column15]]","v":0},{"$f":"Table375[[#This Row],[Column17]]-Table375[[#This Row],[Column16]]","v":0},null,null,{"$f":"COUNTIF(Table375[[#This Row],[Column28]:[Column23]], \">1\")","v":0}]
[23,null,null,null,null,null,null,null,null,null,null,null,null,null,null,null,null,null,{"$f":"Table375[[#This Row],[Column22]]-Table375[[#This Row],[Column9]]","v":0},{"$f":"Table375[[#This Row],[Column21]]-Table375[[#This Row],[Column12]]","v":0},{"$f":"Table375[[#This Row],[Column20]]-Table375[[#This Row],[Column13]]","v":0},{"$f":"Table375[[#This Row],[Column19]]-Table375[[#This Row],[Column14]]","v":0},{"$f":"Table375[[#This Row],[Column18]]-Table375[[#This Row],[Column15]]","v":0},{"$f":"Table375[[#This Row],[Column17]]-Table375[[#This Row],[Column16]]","v":0},null,null,{"$f":"COUNTIF(Table375[[#This Row],[Column28]:[Column23]], \">1\")","v":0}]
[24,null,null,null,null,null,null,null,null,null,null,null,null,null,null,null,null,null,{"$f":"Table375[[#This Row],[Column22]]-Table375[[#This Row],[Column9]]","v":0},{"$f":"Table375[[#This Row],[Column21]]-Table375[[#This Row],[Column12]]","v":0},{"$f":"Table375[[#This Row],[Column20]]-Table375[[#This Row],[Column13]]","v":0},{"$f":"Table375[[#This Row],[Column19]]-Table375[[#This Row],[Column14]]","v":0},{"$f":"Table375[[#This Row],[Column18]]-Table375[[#This Row],[Column15]]","v":0},{"$f":"Table375[[#This Row],[Column17]]-Table375[[#This Row],[Column16]]","v":0},null,null,{"$f":"COUNTIF(Table375[[#This Row],[Column28]:[Column23]], \">1\")","v":0}]
[25,null,null,null,null,null,null,null,null,null,null,null,null,null,null,null,null,null,{"$f":"Table375[[#This Row],[Column22]]-Table375[[#This Row],[Column9]]","v":0},{"$f":"Table375[[#This Row],[Column21]]-Table375[[#This Row],[Column12]]","v":0},{"$f":"Table375[[#This Row],[Column20]]-Table375[[#This Row],[Column13]]","v":0},{"$f":"Table375[[#This Row],[Column19]]-Table375[[#This Row],[Column14]]","v":0},{"$f":"Table375[[#This Row],[Column18]]-Table375[[#This Row],[Column15]]","v":0},{"$f":"Table375[[#This Row],[Column17]]-Table375[[#This Row],[Column16]]","v":0},null,null,{"$f":"COUNTIF(Table375[[#This Row],[Column28]:[Column23]], \">1\")","v":0}]
[26,null,null,null,null,null,null,null,null,null,null,null,null,null,null,null,null,null,{"$f":"Table375[[#This Row],[Column22]]-Table375[[#This Row],[Column9]]","v":0},{"$f":"Table375[[#This Row],[Column21]]-Table375[[#This Row],[Column12]]","v":0},{"$f":"Table375[[#This Row],[Column20]]-Table375[[#This Row],[Column13]]","v":0},{"$f":"Table375[[#This Row],[Column19]]-Table375[[#This Row],[Column14]]","v":0},{"$f":"Table375[[#This Row],[Column18]]-Table375[[#This Row],[Column15]]","v":0},{"$f":"Table375[[#This Row],[Column17]]-Table375[[#This Row],[Column16]]","v":0},null,null,{"$f":"COUNTIF(Table375[[#This Row],[Column28]:[Column23]], \">1\")","v":0}]
[27,null,null,null,null,null,null,null,null,null,null,null,null,null,null,null,null,null,{"$f":"Table375[[#This Row],[Column22]]-Table375[[#This Row],[Column9]]","v":0},{"$f":"Table375[[#This Row],[Column21]]-Table375[[#This Row],[Column12]]","v":0},{"$f":"Table375[[#This Row],[Column20]]-Table375[[#This Row],[Column13]]","v":0},{"$f":"Table375[[#This Row],[Column19]]-Table375[[#This Row],[Column14]]","v":0},{"$f":"Table375[[#This Row],[Column18]]-Table375[[#This Row],[Column15]]","v":0},{"$f":"Table375[[#This Row],[Column17]]-Table375[[#This Row],[Column16]]","v":0},null,null,{"$f":"COUNTIF(Table375[[#This Row],[Column28]:[Column23]], \">1\")","v":0}]
[28,null,null,null,null,null,null,null,null,null,null,null,null,null,null,null,null,null,{"$f":"Table375[[#This Row],[Column22]]-Table375[[#This Row],[Column9]]","v":0},{"$f":"Table375[[#This Row],[Column21]]-Table375[[#This Row],[Column12]]","v":0},{"$f":"Table375[[#This Row],[Column20]]-Table375[[#This Row],[Column13]]","v":0},{"$f":"Table375[[#This Row],[Column19]]-Table375[[#This Row],[Column14]]","v":0},{"$f":"Table375[[#This Row],[Column18]]-Table375[[#This Row],[Column15]]","v":0},{"$f":"Table375[[#This Row],[Column17]]-Table375[[#This Row],[Column16]]","v":0},null,null,{"$f":"COUNTIF(Table375[[#This Row],[Column28]:[Column23]], \">1\")","v":0}]
[29,null,null,null,null,null,null,null,null,null,null,null,null,null,null,null,null,null,{"$f":"Table375[[#This Row],[Column22]]-Table375[[#This Row],[Column9]]","v":0},{"$f":"Table375[[#This Row],[Column21]]-Table375[[#This Row],[Column12]]","v":0},{"$f":"Table375[[#This Row],[Column20]]-Table375[[#This Row],[Column13]]","v":0},{"$f":"Table375[[#This Row],[Column19]]-Table375[[#This Row],[Column14]]","v":0},{"$f":"Table375[[#This Row],[Column18]]-Table375[[#This Row],[Column15]]","v":0},{"$f":"Table375[[#This Row],[Column17]]-Table375[[#This Row],[Column16]]","v":0},null,null,{"$f":"COUNTIF(Table375[[#This Row],[Column28]:[Column23]], \">1\")","v":0}]
[30,null,null,null,null,null,null,null,null,null,null,null,null,null,null,null,null,null,{"$f":"Table375[[#This Row],[Column22]]-Table375[[#This Row],[Column9]]","v":0},{"$f":"Table375[[#This Row],[Column21]]-Table375[[#This Row],[Column12]]","v":0},{"$f":"Table375[[#This Row],[Column20]]-Table375[[#This Row],[Column13]]","v":0},{"$f":"Table375[[#This Row],[Column19]]-Table375[[#This Row],[Column14]]","v":0},{"$f":"Table375[[#This Row],[Column18]]-Table375[[#This Row],[Column15]]","v":0},{"$f":"Table375[[#This Row],[Column17]]-Table375[[#This Row],[Column16]]","v":0},null,null,{"$f":"COUNTIF(Table375[[#This Row],[Column28]:[Column23]], \">1\")","v":0}]
[31,null,null,null,null,null,null,null,null,null,null,null,null,null,null,null,null,null,{"$f":"Table375[[#This Row],[Column22]]-Table375[[#This Row],[Column9]]","v":0},{"$f":"Table375[[#This Row],[Column21]]-Table375[[#This Row],[Column12]]","v":0},{"$f":"Table375[[#This Row],[Column20]]-Table375[[#This Row],[Column13]]","v":0},{"$f":"Table375[[#This Row],[Column19]]-Table375[[#This Row],[Column14]]","v":0},{"$f":"Table375[[#This Row],[Column18]]-Table375[[#This Row],[Column15]]","v":0},{"$f":"Table375[[#This Row],[Column17]]-Table375[[#This Row],[Column16]]","v":0},null,null,{"$f":"COUNTIF(Table375[[#This Row],[Column28]:[Column23]], \">1\")","v":0}]
[32,null,null,null,null,null,null,null,null,null,null,null,null,null,null,null,null,null,{"$f":"Table375[[#This Row],[Column22]]-Table375[[#This Row],[Column9]]","v":0},{"$f":"Table375[[#This Row],[Column21]]-Table375[[#This Row],[Column12]]","v":0},{"$f":"Table375[[#This Row],[Column20]]-Table375[[#This Row],[Column13]]","v":0},{"$f":"Table375[[#This Row],[Column19]]-Table375[[#This Row],[Column14]]","v":0},{"$f":"Table375[[#This Row],[Column18]]-Table375[[#This Row],[Column15]]","v":0},{"$f":"Table375[[#This Row],[Column17]]-Table375[[#This Row],[Column16]]","v":0},null,null,{"$f":"COUNTIF(Table375[[#This Row],[Column28]:[Column23]], \">1\")","v":0}]
[33,null,null,null,null,null,null,null,null,null,null,null,null,null,null,null,null,null,{"$f":"Table375[[#This Row],[Column22]]-Table375[[#This Row],[Column9]]","v":0},{"$f":"Table375[[#This Row],[Column21]]-Table375[[#This Row],[Column12]]","v":0},{"$f":"Table375[[#This Row],[Column20]]-Table375[[#This Row],[Column13]]","v":0},{"$f":"Table375[[#This Row],[Column19]]-Table375[[#This Row],[Column14]]","v":0},{"$f":"Table375[[#This Row],[Column18]]-Table375[[#This Row],[Column15]]","v":0},{"$f":"Table375[[#This Row],[Column17]]-Table375[[#This Row],[Column16]]","v":0},null,null,{"$f":"COUNTIF(Table375[[#This Row],[Column28]:[Column23]], \">1\")","v":0}]
[34,null,null,null,null,null,null,null,null,null,null,null,null,null,null,null,null,null,{"$f":"Table375[[#This Row],[Column22]]-Table375[[#This Row],[Column9]]","v":0},{"$f":"Table375[[#This Row],[Column21]]-Table375[[#This Row],[Column12]]","v":0},{"$f":"Table375[[#This Row],[Column20]]-Table375[[#This Row],[Column13]]","v":0},{"$f":"Table375[[#This Row],[Column19]]-Table375[[#This Row],[Column14]]","v":0},{"$f":"Table375[[#This Row],[Column18]]-Table375[[#This Row],[Column15]]","v":0},{"$f":"Table375[[#This Row],[Column17]]-Table375[[#This Row],[Column16]]","v":0},null,null,{"$f":"COUNTIF(Table375[[#This Row],[Column28]:[Column23]], \">1\")","v":0}]
[35,null,null,null,null,null,null,null,null,null,null,null,null,null,null,null,null,null,{"$f":"Table375[[#This Row],[Column22]]-Table375[[#This Row],[Column9]]","v":0},{"$f":"Table375[[#This Row],[Column21]]-Table375[[#This Row],[Column12]]","v":0},{"$f":"Table375[[#This Row],[Column20]]-Table375[[#This Row],[Column13]]","v":0},{"$f":"Table375[[#This Row],[Column19]]-Table375[[#This Row],[Column14]]","v":0},{"$f":"Table375[[#This Row],[Column18]]-Table375[[#This Row],[Column15]]","v":0},{"$f":"Table375[[#This Row],[Column17]]-Table375[[#This Row],[Column16]]","v":0},null,null,{"$f":"COUNTIF(Table375[[#This Row],[Column28]:[Column23]], \">1\")","v":0}]
[36,null,null,null,null,null,null,null,null,null,null,null,null,null,null,null,null,null,{"$f":"Table375[[#This Row],[Column22]]-Table375[[#This Row],[Column9]]","v":0},{"$f":"Table375[[#This Row],[Column21]]-Table375[[#This Row],[Column12]]","v":0},{"$f":"Table375[[#This Row],[Column20]]-Table375[[#This Row],[Column13]]","v":0},{"$f":"Table375[[#This Row],[Column19]]-Table375[[#This Row],[Column14]]","v":0},{"$f":"Table375[[#This Row],[Column18]]-Table375[[#This Row],[Column15]]","v":0},{"$f":"Table375[[#This Row],[Column17]]-Table375[[#This Row],[Column16]]","v":0},null,null,{"$f":"COUNTIF(Table375[[#This Row],[Column28]:[Column23]], \">1\")","v":0}]
[37,null,null,null,null,null,null,null,null,null,null,null,null,null,null,null,null,null,{"$f":"Table375[[#This Row],[Column22]]-Table375[[#This Row],[Column9]]","v":0},{"$f":"Table375[[#This Row],[Column21]]-Table375[[#This Row],[Column12]]","v":0},{"$f":"Table375[[#This Row],[Column20]]-Table375[[#This Row],[Column13]]","v":0},{"$f":"Table375[[#This Row],[Column19]]-Table375[[#This Row],[Column14]]","v":0},{"$f":"Table375[[#This Row],[Column18]]-Table375[[#This Row],[Column15]]","v":0},{"$f":"Table375[[#This Row],[Column17]]-Table375[[#This Row],[Column16]]","v":0},null,null,{"$f":"COUNTIF(Table375[[#This Row],[Column28]:[Column23]], \">1\")","v":0}]
[38,null,null,null,null,null,null,null,null,null,null,null,null,null,null,null,null,null,{"$f":"Table375[[#This Row],[Column22]]-Table375[[#This Row],[Column9]]","v":0},{"$f":"Table375[[#This Row],[Column21]]-Table375[[#This Row],[Column12]]","v":0},{"$f":"Table375[[#This Row],[Column20]]-Table375[[#This Row],[Column13]]","v":0},{"$f":"Table375[[#This Row],[Column19]]-Table375[[#This Row],[Column14]]","v":0},{"$f":"Table375[[#This Row],[Column18]]-Table375[[#This Row],[Column15]]","v":0},{"$f":"Table375[[#This Row],[Column17]]-Table375[[#This Row],[Column16]]","v":0},null,null,{"$f":"COUNTIF(Table375[[#This Row],[Column28]:[Column23]], \">1\")","v":0}]
[39,null,null,null,null,null,null,null,null,null,null,null,null,null,null,null,null,null,{"$f":"Table375[[#This Row],[Column22]]-Table375[[#This Row],[Column9]]","v":0},{"$f":"Table375[[#This Row],[Column21]]-Table375[[#This Row],[Column12]]","v":0},{"$f":"Table375[[#This Row],[Column20]]-Table375[[#This Row],[Column13]]","v":0},{"$f":"Table375[[#This Row],[Column19]]-Table375[[#This Row],[Column14]]","v":0},{"$f":"Table375[[#This Row],[Column18]]-Table375[[#This Row],[Column15]]","v":0},{"$f":"Table375[[#This Row],[Column17]]-Table375[[#This Row],[Column16]]","v":0},null,null,{"$f":"COUNTIF(Table375[[#This Row],[Column28]:[Column23]], \">1\")","v":0}]
[40,null,null,null,null,null,null,null,null,null,null,null,null,null,null,null,null,null,{"$f":"Table375[[#This Row],[Column22]]-Table375[[#This Row],[Column9]]","v":0},{"$f":"Table375[[#This Row],[Column21]]-Table375[[#This Row],[Column12]]","v":0},{"$f":"Table375[[#This Row],[Column20]]-Table375[[#This Row],[Column13]]","v":0},{"$f":"Table375[[#This Row],[Column19]]-Table375[[#This Row],[Column14]]","v":0},{"$f":"Table375[[#This Row],[Column18]]-Table375[[#This Row],[Column15]]","v":0},{"$f":"Table375[[#This Row],[Column17]]-Table375[[#This Row],[Column16]]","v":0},null,null,{"$f":"COUNTIF(Table375[[#This Row],[Column28]:[Column23]], \">1\")","v":0}]
[41,null,null,null,null,null,null,null,null,null,null,null,null,null,null,null,null,null,{"$f":"Table375[[#This Row],[Column22]]-Table375[[#This Row],[Column9]]","v":0},{"$f":"Table375[[#This Row],[Column21]]-Table375[[#This Row],[Column12]]","v":0},{"$f":"Table375[[#This Row],[Column20]]-Table375[[#This Row],[Column13]]","v":0},{"$f":"Table375[[#This Row],[Column19]]-Table375[[#This Row],[Column14]]","v":0},{"$f":"Table375[[#This Row],[Column18]]-Table375[[#This Row],[Column15]]","v":0},{"$f":"Table375[[#This Row],[Column17]]-Table375[[#This Row],[Column16]]","v":0},null,null,{"$f":"COUNTIF(Table375[[#This Row],[Column28]:[Column23]], \">1\")","v":0}]
[42,null,null,null,null,null,null,null,null,null,null,null,null,null,null,null,null,null,{"$f":"Table375[[#This Row],[Column22]]-Table375[[#This Row],[Column9]]","v":0},{"$f":"Table375[[#This Row],[Column21]]-Table375[[#This Row],[Column12]]","v":0},{"$f":"Table375[[#This Row],[Column20]]-Table375[[#This Row],[Column13]]","v":0},{"$f":"Table375[[#This Row],[Column19]]-Table375[[#This Row],[Column14]]","v":0},{"$f":"Table375[[#This Row],[Column18]]-Table375[[#This Row],[Column15]]","v":0},{"$f":"Table375[[#This Row],[Column17]]-Table375[[#This Row],[Column16]]","v":0},null,null,{"$f":"COUNTIF(Table375[[#This Row],[Column28]:[Column23]], \">1\")","v":0}]
[43,null,null,null,null,null,null,null,null,null,null,null,null,null,null,null,null,null,{"$f":"Table375[[#This Row],[Column22]]-Table375[[#This Row],[Column9]]","v":0},{"$f":"Table375[[#This Row],[Column21]]-Table375[[#This Row],[Column12]]","v":0},{"$f":"Table375[[#This Row],[Column20]]-Table375[[#This Row],[Column13]]","v":0},{"$f":"Table375[[#This Row],[Column19]]-Table375[[#This Row],[Column14]]","v":0},{"$f":"Table375[[#This Row],[Column18]]-Table375[[#This Row],[Column15]]","v":0},{"$f":"Table375[[#This Row],[Column17]]-Table375[[#This Row],[Column16]]","v":0},null,null,{"$f":"COUNTIF(Table375[[#This Row],[Column28]:[Column23]], \">1\")","v":0}]
[44,null,null,null,null,null,null,null,null,null,null,null,null,null,null,null,null,null,{"$f":"Table375[[#This Row],[Column22]]-Table375[[#This Row],[Column9]]","v":0},{"$f":"Table375[[#This Row],[Column21]]-Table375[[#This Row],[Column12]]","v":0},{"$f":"Table375[[#This Row],[Column20]]-Table375[[#This Row],[Column13]]","v":0},{"$f":"Table375[[#This Row],[Column19]]-Table375[[#This Row],[Column14]]","v":0},{"$f":"Table375[[#This Row],[Column18]]-Table375[[#This Row],[Column15]]","v":0},{"$f":"Table375[[#This Row],[Column17]]-Table375[[#This Row],[Column16]]","v":0},null,null,{"$f":"COUNTIF(Table375[[#This Row],[Column28]:[Column23]], \">1\")","v":0}]
[45,null,null,null,null,null,null,null,null,null,null,null,null,null,null,null,null,null,{"$f":"Table375[[#This Row],[Column22]]-Table375[[#This Row],[Column9]]","v":0},{"$f":"Table375[[#This Row],[Column21]]-Table375[[#This Row],[Column12]]","v":0},{"$f":"Table375[[#This Row],[Column20]]-Table375[[#This Row],[Column13]]","v":0},{"$f":"Table375[[#This Row],[Column19]]-Table375[[#This Row],[Column14]]","v":0},{"$f":"Table375[[#This Row],[Column18]]-Table375[[#This Row],[Column15]]","v":0},{"$f":"Table375[[#This Row],[Column17]]-Table375[[#This Row],[Column16]]","v":0},null,null,{"$f":"COUNTIF(Table375[[#This Row],[Column28]:[Column23]], \">1\")","v":0}]
[46,null,null,null,null,null,null,null,null,null,null,null,null,null,null,null,null,null,{"$f":"Table375[[#This Row],[Column22]]-Table375[[#This Row],[Column9]]","v":0},{"$f":"Table375[[#This Row],[Column21]]-Table375[[#This Row],[Column12]]","v":0},{"$f":"Table375[[#This Row],[Column20]]-Table375[[#This Row],[Column13]]","v":0},{"$f":"Table375[[#This Row],[Column19]]-Table375[[#This Row],[Column14]]","v":0},{"$f":"Table375[[#This Row],[Column18]]-Table375[[#This Row],[Column15]]","v":0},{"$f":"Table375[[#This Row],[Column17]]-Table375[[#This Row],[Column16]]","v":0},null,null,{"$f":"COUNTIF(Table375[[#This Row],[Column28]:[Column23]], \">1\")","v":0}]
[47,null,null,null,null,null,null,null,null,null,null,null,null,null,null,null,null,null,{"$f":"Table375[[#This Row],[Column22]]-Table375[[#This Row],[Column9]]","v":0},{"$f":"Table375[[#This Row],[Column21]]-Table375[[#This Row],[Column12]]","v":0},{"$f":"Table375[[#This Row],[Column20]]-Table375[[#This Row],[Column13]]","v":0},{"$f":"Table375[[#This Row],[Column19]]-Table375[[#This Row],[Column14]]","v":0},{"$f":"Table375[[#This Row],[Column18]]-Table375[[#This Row],[Column15]]","v":0},{"$f":"Table375[[#This Row],[Column17]]-Table375[[#This Row],[Column16]]","v":0},null,null,{"$f":"COUNTIF(Table375[[#This Row],[Column28]:[Column23]], \">1\")","v":0}]
[48,null,null,null,null,null,null,null,null,null,null,null,null,null,null,null,null,null,{"$f":"Table375[[#This Row],[Column22]]-Table375[[#This Row],[Column9]]","v":0},{"$f":"Table375[[#This Row],[Column21]]-Table375[[#This Row],[Column12]]","v":0},{"$f":"Table375[[#This Row],[Column20]]-Table375[[#This Row],[Column13]]","v":0},{"$f":"Table375[[#This Row],[Column19]]-Table375[[#This Row],[Column14]]","v":0},{"$f":"Table375[[#This Row],[Column18]]-Table375[[#This Row],[Column15]]","v":0},{"$f":"Table375[[#This Row],[Column17]]-Table375[[#This Row],[Column16]]","v":0},null,null,{"$f":"COUNTIF(Table375[[#This Row],[Column28]:[Column23]], \">1\")","v":0}]
[49,null,null,null,null,null,null,null,null,null,null,null,null,null,null,null,null,null,{"$f":"Table375[[#This Row],[Column22]]-Table375[[#This Row],[Column9]]","v":0},{"$f":"Table375[[#This Row],[Column21]]-Table375[[#This Row],[Column12]]","v":0},{"$f":"Table375[[#This Row],[Column20]]-Table375[[#This Row],[Column13]]","v":0},{"$f":"Table375[[#This Row],[Column19]]-Table375[[#This Row],[Column14]]","v":0},{"$f":"Table375[[#This Row],[Column18]]-Table375[[#This Row],[Column15]]","v":0},{"$f":"Table375[[#This Row],[Column17]]-Table375[[#This Row],[Column16]]","v":0},null,null,{"$f":"COUNTIF(Table375[[#This Row],[Column28]:[Column23]], \">1\")","v":0}]
[50,null,null,null,null,null,null,null,null,null,null,null,null,null,null,null,null,null,{"$f":"Table375[[#This Row],[Column22]]-Table375[[#This Row],[Column9]]","v":0},{"$f":"Table375[[#This Row],[Column21]]-Table375[[#This Row],[Column12]]","v":0},{"$f":"Table375[[#This Row],[Column20]]-Table375[[#This Row],[Column13]]","v":0},{"$f":"Table375[[#This Row],[Column19]]-Table375[[#This Row],[Column14]]","v":0},{"$f":"Table375[[#This Row],[Column18]]-Table375[[#This Row],[Column15]]","v":0},{"$f":"Table375[[#This Row],[Column17]]-Table375[[#This Row],[Column16]]","v":0},null,null,{"$f":"COUNTIF(Table375[[#This Row],[Column28]:[Column23]], \">1\")","v":0}]
[51,null,null,null,null,null,null,null,null,null,null,null,null,null,null,null,null,null,{"$f":"Table375[[#This Row],[Column22]]-Table375[[#This Row],[Column9]]","v":0},{"$f":"Table375[[#This Row],[Column21]]-Table375[[#This Row],[Column12]]","v":0},{"$f":"Table375[[#This Row],[Column20]]-Table375[[#This Row],[Column13]]","v":0},{"$f":"Table375[[#This Row],[Column19]]-Table375[[#This Row],[Column14]]","v":0},{"$f":"Table375[[#This Row],[Column18]]-Table375[[#This Row],[Column15]]","v":0},{"$f":"Table375[[#This Row],[Column17]]-Table375[[#This Row],[Column16]]","v":0},null,null,{"$f":"COUNTIF(Table375[[#This Row],[Column28]:[Column23]], \">1\")","v":0}]
[52,null,null,null,null,null,null,null,null,null,null,null,null,null,null,null,null,null,{"$f":"Table375[[#This Row],[Column22]]-Table375[[#This Row],[Column9]]","v":0},{"$f":"Table375[[#This Row],[Column21]]-Table375[[#This Row],[Column12]]","v":0},{"$f":"Table375[[#This Row],[Column20]]-Table375[[#This Row],[Column13]]","v":0},{"$f":"Table375[[#This Row],[Column19]]-Table375[[#This Row],[Column14]]","v":0},{"$f":"Table375[[#This Row],[Column18]]-Table375[[#This Row],[Column15]]","v":0},{"$f":"Table375[[#This Row],[Column17]]-Table375[[#This Row],[Column16]]","v":0},null,null,{"$f":"COUNTIF(Table375[[#This Row],[Column28]:[Column23]], \">1\")","v":0}]
[53,null,null,null,null,null,null,null,null,null,null,null,null,null,null,null,null,null,{"$f":"Table375[[#This Row],[Column22]]-Table375[[#This Row],[Column9]]","v":0},{"$f":"Table375[[#This Row],[Column21]]-Table375[[#This Row],[Column12]]","v":0},{"$f":"Table375[[#This Row],[Column20]]-Table375[[#This Row],[Column13]]","v":0},{"$f":"Table375[[#This Row],[Column19]]-Table375[[#This Row],[Column14]]","v":0},{"$f":"Table375[[#This Row],[Column18]]-Table375[[#This Row],[Column15]]","v":0},{"$f":"Table375[[#This Row],[Column17]]-Table375[[#This Row],[Column16]]","v":0},null,null,{"$f":"COUNTIF(Table375[[#This Row],[Column28]:[Column23]], \">1\")","v":0}]
[54,null,null,null,null,null,null,null,null,null,null,null,null,null,null,null,null,null,{"$f":"Table375[[#This Row],[Column22]]-Table375[[#This Row],[Column9]]","v":0},{"$f":"Table375[[#This Row],[Column21]]-Table375[[#This Row],[Column12]]","v":0},{"$f":"Table375[[#This Row],[Column20]]-Table375[[#This Row],[Column13]]","v":0},{"$f":"Table375[[#This Row],[Column19]]-Table375[[#This Row],[Column14]]","v":0},{"$f":"Table375[[#This Row],[Column18]]-Table375[[#This Row],[Column15]]","v":0},{"$f":"Table375[[#This Row],[Column17]]-Table375[[#This Row],[Column16]]","v":0},null,null,{"$f":"COUNTIF(Table375[[#This Row],[Column28]:[Column23]], \">1\")","v":0}]
[55,null,null,null,null,null,null,null,null,null,null,null,null,null,null,null,null,null,{"$f":"Table375[[#This Row],[Column22]]-Table375[[#This Row],[Column9]]","v":0},{"$f":"Table375[[#This Row],[Column21]]-Table375[[#This Row],[Column12]]","v":0},{"$f":"Table375[[#This Row],[Column20]]-Table375[[#This Row],[Column13]]","v":0},{"$f":"Table375[[#This Row],[Column19]]-Table375[[#This Row],[Column14]]","v":0},{"$f":"Table375[[#This Row],[Column18]]-Table375[[#This Row],[Column15]]","v":0},{"$f":"Table375[[#This Row],[Column17]]-Table375[[#This Row],[Column16]]","v":0},null,null,{"$f":"COUNTIF(Table375[[#This Row],[Column28]:[Column23]], \">1\")","v":0}]
[56,null,null,null,null,null,null,null,null,null,null,null,null,null,null,null,null,null,{"$f":"Table375[[#This Row],[Column22]]-Table375[[#This Row],[Column9]]","v":0},{"$f":"Table375[[#This Row],[Column21]]-Table375[[#This Row],[Column12]]","v":0},{"$f":"Table375[[#This Row],[Column20]]-Table375[[#This Row],[Column13]]","v":0},{"$f":"Table375[[#This Row],[Column19]]-Table375[[#This Row],[Column14]]","v":0},{"$f":"Table375[[#This Row],[Column18]]-Table375[[#This Row],[Column15]]","v":0},{"$f":"Table375[[#This Row],[Column17]]-Table375[[#This Row],[Column16]]","v":0},null,null,{"$f":"COUNTIF(Table375[[#This Row],[Column28]:[Column23]], \">1\")","v":0}]
[57,null,null,null,null,null,null,null,null,null,null,null,null,null,null,null,null,null,{"$f":"Table375[[#This Row],[Column22]]-Table375[[#This Row],[Column9]]","v":0},{"$f":"Table375[[#This Row],[Column21]]-Table375[[#This Row],[Column12]]","v":0},{"$f":"Table375[[#This Row],[Column20]]-Table375[[#This Row],[Column13]]","v":0},{"$f":"Table375[[#This Row],[Column19]]-Table375[[#This Row],[Column14]]","v":0},{"$f":"Table375[[#This Row],[Column18]]-Table375[[#This Row],[Column15]]","v":0},{"$f":"Table375[[#This Row],[Column17]]-Table375[[#This Row],[Column16]]","v":0},null,null,{"$f":"COUNTIF(Table375[[#This Row],[Column28]:[Column23]], \">1\")","v":0}]
[58,null,null,null,null,null,null,null,null,null,null,null,null,null,null,null,null,null,{"$f":"Table375[[#This Row],[Column22]]-Table375[[#This Row],[Column9]]","v":0},{"$f":"Table375[[#This Row],[Column21]]-Table375[[#This Row],[Column12]]","v":0},{"$f":"Table375[[#This Row],[Column20]]-Table375[[#This Row],[Column13]]","v":0},{"$f":"Table375[[#This Row],[Column19]]-Table375[[#This Row],[Column14]]","v":0},{"$f":"Table375[[#This Row],[Column18]]-Table375[[#This Row],[Column15]]","v":0},{"$f":"Table375[[#This Row],[Column17]]-Table375[[#This Row],[Column16]]","v":0},null,null,{"$f":"COUNTIF(Table375[[#This Row],[Column28]:[Column23]], \">1\")","v":0}]
[59,null,null,null,null,null,null,null,null,null,null,null,null,null,null,null,null,null,{"$f":"Table375[[#This Row],[Column22]]-Table375[[#This Row],[Column9]]","v":0},{"$f":"Table375[[#This Row],[Column21]]-Table375[[#This Row],[Column12]]","v":0},{"$f":"Table375[[#This Row],[Column20]]-Table375[[#This Row],[Column13]]","v":0},{"$f":"Table375[[#This Row],[Column19]]-Table375[[#This Row],[Column14]]","v":0},{"$f":"Table375[[#This Row],[Column18]]-Table375[[#This Row],[Column15]]","v":0},{"$f":"Table375[[#This Row],[Column17]]-Table375[[#This Row],[Column16]]","v":0},null,null,{"$f":"COUNTIF(Table375[[#This Row],[Column28]:[Column23]], \">1\")","v":0}]
[60,null,null,null,null,null,null,null,null,null,null,null,null,null,null,null,null,null,{"$f":"Table375[[#This Row],[Column22]]-Table375[[#This Row],[Column9]]","v":0},{"$f":"Table375[[#This Row],[Column21]]-Table375[[#This Row],[Column12]]","v":0},{"$f":"Table375[[#This Row],[Column20]]-Table375[[#This Row],[Column13]]","v":0},{"$f":"Table375[[#This Row],[Column19]]-Table375[[#This Row],[Column14]]","v":0},{"$f":"Table375[[#This Row],[Column18]]-Table375[[#This Row],[Column15]]","v":0},{"$f":"Table375[[#This Row],[Column17]]-Table375[[#This Row],[Column16]]","v":0},null,null,{"$f":"COUNTIF(Table375[[#This Row],[Column28]:[Column23]], \">1\")","v":0}]
[61,null,null,null,null,null,null,null,null,null,null,null,null,null,null,null,null,null,{"$f":"Table375[[#This Row],[Column22]]-Table375[[#This Row],[Column9]]","v":0},{"$f":"Table375[[#This Row],[Column21]]-Table375[[#This Row],[Column12]]","v":0},{"$f":"Table375[[#This Row],[Column20]]-Table375[[#This Row],[Column13]]","v":0},{"$f":"Table375[[#This Row],[Column19]]-Table375[[#This Row],[Column14]]","v":0},{"$f":"Table375[[#This Row],[Column18]]-Table375[[#This Row],[Column15]]","v":0},{"$f":"Table375[[#This Row],[Column17]]-Table375[[#This Row],[Column16]]","v":0},null,null,{"$f":"COUNTIF(Table375[[#This Row],[Column28]:[Column23]], \">1\")","v":0}]
[62,null,null,null,null,null,null,null,null,null,null,null,null,null,null,null,null,null,{"$f":"Table375[[#This Row],[Column22]]-Table375[[#This Row],[Column9]]","v":0},{"$f":"Table375[[#This Row],[Column21]]-Table375[[#This Row],[Column12]]","v":0},{"$f":"Table375[[#This Row],[Column20]]-Table375[[#This Row],[Column13]]","v":0},{"$f":"Table375[[#This Row],[Column19]]-Table375[[#This Row],[Column14]]","v":0},{"$f":"Table375[[#This Row],[Column18]]-Table375[[#This Row],[Column15]]","v":0},{"$f":"Table375[[#This Row],[Column17]]-Table375[[#This Row],[Column16]]","v":0},null,null,{"$f":"COUNTIF(Table375[[#This Row],[Column28]:[Column23]], \">1\")","v":0}]
[63,null,null,null,null,null,null,null,null,null,null,null,null,null,null,null,null,null,{"$f":"Table375[[#This Row],[Column22]]-Table375[[#This Row],[Column9]]","v":0},{"$f":"Table375[[#This Row],[Column21]]-Table375[[#This Row],[Column12]]","v":0},{"$f":"Table375[[#This Row],[Column20]]-Table375[[#This Row],[Column13]]","v":0},{"$f":"Table375[[#This Row],[Column19]]-Table375[[#This Row],[Column14]]","v":0},{"$f":"Table375[[#This Row],[Column18]]-Table375[[#This Row],[Column15]]","v":0},{"$f":"Table375[[#This Row],[Column17]]-Table375[[#This Row],[Column16]]","v":0},null,null,{"$f":"COUNTIF(Table375[[#This Row],[Column28]:[Column23]], \">1\")","v":0}]
[64,null,null,null,null,null,null,null,null,null,null,null,null,null,null,null,null,null,{"$f":"Table375[[#This Row],[Column22]]-Table375[[#This Row],[Column9]]","v":0},{"$f":"Table375[[#This Row],[Column21]]-Table375[[#This Row],[Column12]]","v":0},{"$f":"Table375[[#This Row],[Column20]]-Table375[[#This Row],[Column13]]","v":0},{"$f":"Table375[[#This Row],[Column19]]-Table375[[#This Row],[Column14]]","v":0},{"$f":"Table375[[#This Row],[Column18]]-Table375[[#This Row],[Column15]]","v":0},{"$f":"Table375[[#This Row],[Column17]]-Table375[[#This Row],[Column16]]","v":0},null,null,{"$f":"COUNTIF(Table375[[#This Row],[Column28]:[Column23]], \">1\")","v":0}]
[65,null,null,null,null,null,null,null,null,null,null,null,null,null,null,null,null,null,{"$f":"Table375[[#This Row],[Column22]]-Table375[[#This Row],[Column9]]","v":0},{"$f":"Table375[[#This Row],[Column21]]-Table375[[#This Row],[Column12]]","v":0},{"$f":"Table375[[#This Row],[Column20]]-Table375[[#This Row],[Column13]]","v":0},{"$f":"Table375[[#This Row],[Column19]]-Table375[[#This Row],[Column14]]","v":0},{"$f":"Table375[[#This Row],[Column18]]-Table375[[#This Row],[Column15]]","v":0},{"$f":"Table375[[#This Row],[Column17]]-Table375[[#This Row],[Column16]]","v":0},null,null,{"$f":"COUNTIF(Table375[[#This Row],[Column28]:[Column23]], \">1\")","v":0}]
[66,null,null,null,null,null,null,null,null,null,null,null,null,null,null,null,null,null,{"$f":"Table375[[#This Row],[Column22]]-Table375[[#This Row],[Column9]]","v":0},{"$f":"Table375[[#This Row],[Column21]]-Table375[[#This Row],[Column12]]","v":0},{"$f":"Table375[[#This Row],[Column20]]-Table375[[#This Row],[Column13]]","v":0},{"$f":"Table375[[#This Row],[Column19]]-Table375[[#This Row],[Column14]]","v":0},{"$f":"Table375[[#This Row],[Column18]]-Table375[[#This Row],[Column15]]","v":0},{"$f":"Table375[[#This Row],[Column17]]-Table375[[#This Row],[Column16]]","v":0},null,null,{"$f":"COUNTIF(Table375[[#This Row],[Column28]:[Column23]], \">1\")","v":0}]
[67,null,null,null,null,null,null,null,null,null,null,null,null,null,null,null,null,null,{"$f":"Table375[[#This Row],[Column22]]-Table375[[#This Row],[Column9]]","v":0},{"$f":"Table375[[#This Row],[Column21]]-Table375[[#This Row],[Column12]]","v":0},{"$f":"Table375[[#This Row],[Column20]]-Table375[[#This Row],[Column13]]","v":0},{"$f":"Table375[[#This Row],[Column19]]-Table375[[#This Row],[Column14]]","v":0},{"$f":"Table375[[#This Row],[Column18]]-Table375[[#This Row],[Column15]]","v":0},{"$f":"Table375[[#This Row],[Column17]]-Table375[[#This Row],[Column16]]","v":0},null,null,{"$f":"COUNTIF(Table375[[#This Row],[Column28]:[Column23]], \">1\")","v":0}]
[68,null,null,null,null,null,null,null,null,null,null,null,null,null,null,null,null,null,{"$f":"Table375[[#This Row],[Column22]]-Table375[[#This Row],[Column9]]","v":0},{"$f":"Table375[[#This Row],[Column21]]-Table375[[#This Row],[Column12]]","v":0},{"$f":"Table375[[#This Row],[Column20]]-Table375[[#This Row],[Column13]]","v":0},{"$f":"Table375[[#This Row],[Column19]]-Table375[[#This Row],[Column14]]","v":0},{"$f":"Table375[[#This Row],[Column18]]-Table375[[#This Row],[Column15]]","v":0},{"$f":"Table375[[#This Row],[Column17]]-Table375[[#This Row],[Column16]]","v":0},null,null,{"$f":"COUNTIF(Table375[[#This Row],[Column28]:[Column23]], \">1\")","v":0}]
[69,null,null,null,null,null,null,null,null,null,null,null,null,null,null,null,null,null,{"$f":"Table375[[#This Row],[Column22]]-Table375[[#This Row],[Column9]]","v":0},{"$f":"Table375[[#This Row],[Column21]]-Table375[[#This Row],[Column12]]","v":0},{"$f":"Table375[[#This Row],[Column20]]-Table375[[#This Row],[Column13]]","v":0},{"$f":"Table375[[#This Row],[Column19]]-Table375[[#This Row],[Column14]]","v":0},{"$f":"Table375[[#This Row],[Column18]]-Table375[[#This Row],[Column15]]","v":0},{"$f":"Table375[[#This Row],[Column17]]-Table375[[#This Row],[Column16]]","v":0},null,null,{"$f":"COUNTIF(Table375[[#This Row],[Column28]:[Column23]], \">1\")","v":0}]
[70,null,null,null,null,null,null,null,null,null,null,null,null,null,null,null,null,null,{"$f":"Table375[[#This Row],[Column22]]-Table375[[#This Row],[Column9]]","v":0},{"$f":"Table375[[#This Row],[Column21]]-Table375[[#This Row],[Column12]]","v":0},{"$f":"Table375[[#This Row],[Column20]]-Table375[[#This Row],[Column13]]","v":0},{"$f":"Table375[[#This Row],[Column19]]-Table375[[#This Row],[Column14]]","v":0},{"$f":"Table375[[#This Row],[Column18]]-Table375[[#This Row],[Column15]]","v":0},{"$f":"Table375[[#This Row],[Column17]]-Table375[[#This Row],[Column16]]","v":0},null,null,{"$f":"COUNTIF(Table375[[#This Row],[Column28]:[Column23]], \">1\")","v":0}]
[71,null,null,null,null,null,null,null,null,null,null,null,null,null,null,null,null,null,{"$f":"Table375[[#This Row],[Column22]]-Table375[[#This Row],[Column9]]","v":0},{"$f":"Table375[[#This Row],[Column21]]-Table375[[#This Row],[Column12]]","v":0},{"$f":"Table375[[#This Row],[Column20]]-Table375[[#This Row],[Column13]]","v":0},{"$f":"Table375[[#This Row],[Column19]]-Table375[[#This Row],[Column14]]","v":0},{"$f":"Table375[[#This Row],[Column18]]-Table375[[#This Row],[Column15]]","v":0},{"$f":"Table375[[#This Row],[Column17]]-Table375[[#This Row],[Column16]]","v":0},null,null,{"$f":"COUNTIF(Table375[[#This Row],[Column28]:[Column23]], \">1\")","v":0}]
[72,null,null,null,null,null,null,null,null,null,null,null,null,null,null,null,null,null,{"$f":"Table375[[#This Row],[Column22]]-Table375[[#This Row],[Column9]]","v":0},{"$f":"Table375[[#This Row],[Column21]]-Table375[[#This Row],[Column12]]","v":0},{"$f":"Table375[[#This Row],[Column20]]-Table375[[#This Row],[Column13]]","v":0},{"$f":"Table375[[#This Row],[Column19]]-Table375[[#This Row],[Column14]]","v":0},{"$f":"Table375[[#This Row],[Column18]]-Table375[[#This Row],[Column15]]","v":0},{"$f":"Table375[[#This Row],[Column17]]-Table375[[#This Row],[Column16]]","v":0},null,null,{"$f":"COUNTIF(Table375[[#This Row],[Column28]:[Column23]], \">1\")","v":0}]
[73,null,null,null,null,null,null,null,null,null,null,null,null,null,null,null,null,null,{"$f":"Table375[[#This Row],[Column22]]-Table375[[#This Row],[Column9]]","v":0},{"$f":"Table375[[#This Row],[Column21]]-Table375[[#This Row],[Column12]]","v":0},{"$f":"Table375[[#This Row],[Column20]]-Table375[[#This Row],[Column13]]","v":0},{"$f":"Table375[[#This Row],[Column19]]-Table375[[#This Row],[Column14]]","v":0},{"$f":"Table375[[#This Row],[Column18]]-Table375[[#This Row],[Column15]]","v":0},{"$f":"Table375[[#This Row],[Column17]]-Table375[[#This Row],[Column16]]","v":0},null,null,{"$f":"COUNTIF(Table375[[#This Row],[Column28]:[Column23]], \">1\")","v":0}]
[74,null,null,null,null,null,null,null,null,null,null,null,null,null,null,null,null,null,{"$f":"Table375[[#This Row],[Column22]]-Table375[[#This Row],[Column9]]","v":0},{"$f":"Table375[[#This Row],[Column21]]-Table375[[#This Row],[Column12]]","v":0},{"$f":"Table375[[#This Row],[Column20]]-Table375[[#This Row],[Column13]]","v":0},{"$f":"Table375[[#This Row],[Column19]]-Table375[[#This Row],[Column14]]","v":0},{"$f":"Table375[[#This Row],[Column18]]-Table375[[#This Row],[Column15]]","v":0},{"$f":"Table375[[#This Row],[Column17]]-Table375[[#This Row],[Column16]]","v":0},null,null,{"$f":"COUNTIF(Table375[[#This Row],[Column28]:[Column23]], \">1\")","v":0}]
[75,null,null,null,null,null,null,null,null,null,null,null,null,null,null,null,null,null,{"$f":"Table375[[#This Row],[Column22]]-Table375[[#This Row],[Column9]]","v":0},{"$f":"Table375[[#This Row],[Column21]]-Table375[[#This Row],[Column12]]","v":0},{"$f":"Table375[[#This Row],[Column20]]-Table375[[#This Row],[Column13]]","v":0},{"$f":"Table375[[#This Row],[Column19]]-Table375[[#This Row],[Column14]]","v":0},{"$f":"Table375[[#This Row],[Column18]]-Table375[[#This Row],[Column15]]","v":0},{"$f":"Table375[[#This Row],[Column17]]-Table375[[#This Row],[Column16]]","v":0},null,null,{"$f":"COUNTIF(Table375[[#This Row],[Column28]:[Column23]], \">1\")","v":0}]
[76,null,null,null,null,null,null,null,null,null,null,null,null,null,null,null,null,null,{"$f":"Table375[[#This Row],[Column22]]-Table375[[#This Row],[Column9]]","v":0},{"$f":"Table375[[#This Row],[Column21]]-Table375[[#This Row],[Column12]]","v":0},{"$f":"Table375[[#This Row],[Column20]]-Table375[[#This Row],[Column13]]","v":0},{"$f":"Table375[[#This Row],[Column19]]-Table375[[#This Row],[Column14]]","v":0},{"$f":"Table375[[#This Row],[Column18]]-Table375[[#This Row],[Column15]]","v":0},{"$f":"Table375[[#This Row],[Column17]]-Table375[[#This Row],[Column16]]","v":0},null,null,{"$f":"COUNTIF(Table375[[#This Row],[Column28]:[Column23]], \">1\")","v":0}]
[77,null,null,null,null,null,null,null,null,null,null,null,null,null,null,null,null,null,{"$f":"Table375[[#This Row],[Column22]]-Table375[[#This Row],[Column9]]","v":0},{"$f":"Table375[[#This Row],[Column21]]-Table375[[#This Row],[Column12]]","v":0},{"$f":"Table375[[#This Row],[Column20]]-Table375[[#This Row],[Column13]]","v":0},{"$f":"Table375[[#This Row],[Column19]]-Table375[[#This Row],[Column14]]","v":0},{"$f":"Table375[[#This Row],[Column18]]-Table375[[#This Row],[Column15]]","v":0},{"$f":"Table375[[#This Row],[Column17]]-Table375[[#This Row],[Column16]]","v":0},null,null,{"$f":"COUNTIF(Table375[[#This Row],[Column28]:[Column23]], \">1\")","v":0}]
[78,null,null,null,null,null,null,null,null,null,null,null,null,null,null,null,null,null,{"$f":"Table375[[#This Row],[Column22]]-Table375[[#This Row],[Column9]]","v":0},{"$f":"Table375[[#This Row],[Column21]]-Table375[[#This Row],[Column12]]","v":0},{"$f":"Table375[[#This Row],[Column20]]-Table375[[#This Row],[Column13]]","v":0},{"$f":"Table375[[#This Row],[Column19]]-Table375[[#This Row],[Column14]]","v":0},{"$f":"Table375[[#This Row],[Column18]]-Table375[[#This Row],[Column15]]","v":0},{"$f":"Table375[[#This Row],[Column17]]-Table375[[#This Row],[Column16]]","v":0},null,null,{"$f":"COUNTIF(Table375[[#This Row],[Column28]:[Column23]], \">1\")","v":0}]
[79,null,null,null,null,null,null,null,null,null,null,null,null,null,null,null,null,null,{"$f":"Table375[[#This Row],[Column22]]-Table375[[#This Row],[Column9]]","v":0},{"$f":"Table375[[#This Row],[Column21]]-Table375[[#This Row],[Column12]]","v":0},{"$f":"Table375[[#This Row],[Column20]]-Table375[[#This Row],[Column13]]","v":0},{"$f":"Table375[[#This Row],[Column19]]-Table375[[#This Row],[Column14]]","v":0},{"$f":"Table375[[#This Row],[Column18]]-Table375[[#This Row],[Column15]]","v":0},{"$f":"Table375[[#This Row],[Column17]]-Table375[[#This Row],[Column16]]","v":0},null,null,{"$f":"COUNTIF(Table375[[#This Row],[Column28]:[Column23]], \">1\")","v":0}]
[80,null,null,null,null,null,null,null,null,null,null,null,null,null,null,null,null,null,{"$f":"Table375[[#This Row],[Column22]]-Table375[[#This Row],[Column9]]","v":0},{"$f":"Table375[[#This Row],[Column21]]-Table375[[#This Row],[Column12]]","v":0},{"$f":"Table375[[#This Row],[Column20]]-Table375[[#This Row],[Column13]]","v":0},{"$f":"Table375[[#This Row],[Column19]]-Table375[[#This Row],[Column14]]","v":0},{"$f":"Table375[[#This Row],[Column18]]-Table375[[#This Row],[Column15]]","v":0},{"$f":"Table375[[#This Row],[Column17]]-Table375[[#This Row],[Column16]]","v":0},null,null,{"$f":"COUNTIF(Table375[[#This Row],[Column28]:[Column23]], \">1\")","v":0}]
[81,null,null,null,null,null,null,null,null,null,null,null,null,null,null,null,null,null,{"$f":"Table375[[#This Row],[Column22]]-Table375[[#This Row],[Column9]]","v":0},{"$f":"Table375[[#This Row],[Column21]]-Table375[[#This Row],[Column12]]","v":0},{"$f":"Table375[[#This Row],[Column20]]-Table375[[#This Row],[Column13]]","v":0},{"$f":"Table375[[#This Row],[Column19]]-Table375[[#This Row],[Column14]]","v":0},{"$f":"Table375[[#This Row],[Column18]]-Table375[[#This Row],[Column15]]","v":0},{"$f":"Table375[[#This Row],[Column17]]-Table375[[#This Row],[Column16]]","v":0},null,null,{"$f":"COUNTIF(Table375[[#This Row],[Column28]:[Column23]], \">1\")","v":0}]
[82,null,null,null,null,null,null,null,null,null,null,null,null,null,null,null,null,null,{"$f":"Table375[[#This Row],[Column22]]-Table375[[#This Row],[Column9]]","v":0},{"$f":"Table375[[#This Row],[Column21]]-Table375[[#This Row],[Column12]]","v":0},{"$f":"Table375[[#This Row],[Column20]]-Table375[[#This Row],[Column13]]","v":0},{"$f":"Table375[[#This Row],[Column19]]-Table375[[#This Row],[Column14]]","v":0},{"$f":"Table375[[#This Row],[Column18]]-Table375[[#This Row],[Column15]]","v":0},{"$f":"Table375[[#This Row],[Column17]]-Table375[[#This Row],[Column16]]","v":0},null,null,{"$f":"COUNTIF(Table375[[#This Row],[Column28]:[Column23]], \">1\")","v":0}]
[83,null,null,null,null,null,null,null,null,null,null,null,null,null,null,null,null,null,{"$f":"Table375[[#This Row],[Column22]]-Table375[[#This Row],[Column9]]","v":0},{"$f":"Table375[[#This Row],[Column21]]-Table375[[#This Row],[Column12]]","v":0},{"$f":"Table375[[#This Row],[Column20]]-Table375[[#This Row],[Column13]]","v":0},{"$f":"Table375[[#This Row],[Column19]]-Table375[[#This Row],[Column14]]","v":0},{"$f":"Table375[[#This Row],[Column18]]-Table375[[#This Row],[Column15]]","v":0},{"$f":"Table375[[#This Row],[Column17]]-Table375[[#This Row],[Column16]]","v":0},null,null,{"$f":"COUNTIF(Table375[[#This Row],[Column28]:[Column23]], \">1\")","v":0}]
[84,null,null,null,null,null,null,null,null,null,null,null,null,null,null,null,null,null,{"$f":"Table375[[#This Row],[Column22]]-Table375[[#This Row],[Column9]]","v":0},{"$f":"Table375[[#This Row],[Column21]]-Table375[[#This Row],[Column12]]","v":0},{"$f":"Table375[[#This Row],[Column20]]-Table375[[#This Row],[Column13]]","v":0},{"$f":"Table375[[#This Row],[Column19]]-Table375[[#This Row],[Column14]]","v":0},{"$f":"Table375[[#This Row],[Column18]]-Table375[[#This Row],[Column15]]","v":0},{"$f":"Table375[[#This Row],[Column17]]-Table375[[#This Row],[Column16]]","v":0},null,null,{"$f":"COUNTIF(Table375[[#This Row],[Column28]:[Column23]], \">1\")","v":0}]
[85,null,null,null,null,null,null,null,null,null,null,null,null,null,null,null,null,null,{"$f":"Table375[[#This Row],[Column22]]-Table375[[#This Row],[Column9]]","v":0},{"$f":"Table375[[#This Row],[Column21]]-Table375[[#This Row],[Column12]]","v":0},{"$f":"Table375[[#This Row],[Column20]]-Table375[[#This Row],[Column13]]","v":0},{"$f":"Table375[[#This Row],[Column19]]-Table375[[#This Row],[Column14]]","v":0},{"$f":"Table375[[#This Row],[Column18]]-Table375[[#This Row],[Column15]]","v":0},{"$f":"Table375[[#This Row],[Column17]]-Table375[[#This Row],[Column16]]","v":0},null,null,{"$f":"COUNTIF(Table375[[#This Row],[Column28]:[Column23]], \">1\")","v":0}]
[86,null,null,null,null,null,null,null,null,null,null,null,null,null,null,null,null,null,{"$f":"Table375[[#This Row],[Column22]]-Table375[[#This Row],[Column9]]","v":0},{"$f":"Table375[[#This Row],[Column21]]-Table375[[#This Row],[Column12]]","v":0},{"$f":"Table375[[#This Row],[Column20]]-Table375[[#This Row],[Column13]]","v":0},{"$f":"Table375[[#This Row],[Column19]]-Table375[[#This Row],[Column14]]","v":0},{"$f":"Table375[[#This Row],[Column18]]-Table375[[#This Row],[Column15]]","v":0},{"$f":"Table375[[#This Row],[Column17]]-Table375[[#This Row],[Column16]]","v":0},null,null,{"$f":"COUNTIF(Table375[[#This Row],[Column28]:[Column23]], \">1\")","v":0}]
[87,null,null,null,null,null,null,null,null,null,null,null,null,null,null,null,null,null,{"$f":"Table375[[#This Row],[Column22]]-Table375[[#This Row],[Column9]]","v":0},{"$f":"Table375[[#This Row],[Column21]]-Table375[[#This Row],[Column12]]","v":0},{"$f":"Table375[[#This Row],[Column20]]-Table375[[#This Row],[Column13]]","v":0},{"$f":"Table375[[#This Row],[Column19]]-Table375[[#This Row],[Column14]]","v":0},{"$f":"Table375[[#This Row],[Column18]]-Table375[[#This Row],[Column15]]","v":0},{"$f":"Table375[[#This Row],[Column17]]-Table375[[#This Row],[Column16]]","v":0},null,null,{"$f":"COUNTIF(Table375[[#This Row],[Column28]:[Column23]], \">1\")","v":0}]
[88,null,null,null,null,null,null,null,null,null,null,null,null,null,null,null,null,null,{"$f":"Table375[[#This Row],[Column22]]-Table375[[#This Row],[Column9]]","v":0},{"$f":"Table375[[#This Row],[Column21]]-Table375[[#This Row],[Column12]]","v":0},{"$f":"Table375[[#This Row],[Column20]]-Table375[[#This Row],[Column13]]","v":0},{"$f":"Table375[[#This Row],[Column19]]-Table375[[#This Row],[Column14]]","v":0},{"$f":"Table375[[#This Row],[Column18]]-Table375[[#This Row],[Column15]]","v":0},{"$f":"Table375[[#This Row],[Column17]]-Table375[[#This Row],[Column16]]","v":0},null,null,{"$f":"COUNTIF(Table375[[#This Row],[Column28]:[Column23]], \">1\")","v":0}]
[89,null,null,null,null,null,null,null,null,null,null,null,null,null,null,null,null,null,{"$f":"Table375[[#This Row],[Column22]]-Table375[[#This Row],[Column9]]","v":0},{"$f":"Table375[[#This Row],[Column21]]-Table375[[#This Row],[Column12]]","v":0},{"$f":"Table375[[#This Row],[Column20]]-Table375[[#This Row],[Column13]]","v":0},{"$f":"Table375[[#This Row],[Column19]]-Table375[[#This Row],[Column14]]","v":0},{"$f":"Table375[[#This Row],[Column18]]-Table375[[#This Row],[Column15]]","v":0},{"$f":"Table375[[#This Row],[Column17]]-Table375[[#This Row],[Column16]]","v":0},null,null,{"$f":"COUNTIF(Table375[[#This Row],[Column28]:[Column23]], \">1\")","v":0}]
[90,null,null,null,null,null,null,null,null,null,null,null,null,null,null,null,null,null,{"$f":"Table375[[#This Row],[Column22]]-Table375[[#This Row],[Column9]]","v":0},{"$f":"Table375[[#This Row],[Column21]]-Table375[[#This Row],[Column12]]","v":0},{"$f":"Table375[[#This Row],[Column20]]-Table375[[#This Row],[Column13]]","v":0},{"$f":"Table375[[#This Row],[Column19]]-Table375[[#This Row],[Column14]]","v":0},{"$f":"Table375[[#This Row],[Column18]]-Table375[[#This Row],[Column15]]","v":0},{"$f":"Table375[[#This Row],[Column17]]-Table375[[#This Row],[Column16]]","v":0},null,null,{"$f":"COUNTIF(Table375[[#This Row],[Column28]:[Column23]], \">1\")","v":0}]
[91,null,null,null,null,null,null,null,null,null,null,null,null,null,null,null,null,null,{"$f":"Table375[[#This Row],[Column22]]-Table375[[#This Row],[Column9]]","v":0},{"$f":"Table375[[#This Row],[Column21]]-Table375[[#This Row],[Column12]]","v":0},{"$f":"Table375[[#This Row],[Column20]]-Table375[[#This Row],[Column13]]","v":0},{"$f":"Table375[[#This Row],[Column19]]-Table375[[#This Row],[Column14]]","v":0},{"$f":"Table375[[#This Row],[Column18]]-Table375[[#This Row],[Column15]]","v":0},{"$f":"Table375[[#This Row],[Column17]]-Table375[[#This Row],[Column16]]","v":0},null,null,{"$f":"COUNTIF(Table375[[#This Row],[Column28]:[Column23]], \">1\")","v":0}]
[92,null,null,null,null,null,null,null,null,null,null,null,null,null,null,null,null,null,{"$f":"Table375[[#This Row],[Column22]]-Table375[[#This Row],[Column9]]","v":0},{"$f":"Table375[[#This Row],[Column21]]-Table375[[#This Row],[Column12]]","v":0},{"$f":"Table375[[#This Row],[Column20]]-Table375[[#This Row],[Column13]]","v":0},{"$f":"Table375[[#This Row],[Column19]]-Table375[[#This Row],[Column14]]","v":0},{"$f":"Table375[[#This Row],[Column18]]-Table375[[#This Row],[Column15]]","v":0},{"$f":"Table375[[#This Row],[Column17]]-Table375[[#This Row],[Column16]]","v":0},null,null,{"$f":"COUNTIF(Table375[[#This Row],[Column28]:[Column23]], \">1\")","v":0}]
[93,null,null,null,null,null,null,null,null,null,null,null,null,null,null,null,null,null,{"$f":"Table375[[#This Row],[Column22]]-Table375[[#This Row],[Column9]]","v":0},{"$f":"Table375[[#This Row],[Column21]]-Table375[[#This Row],[Column12]]","v":0},{"$f":"Table375[[#This Row],[Column20]]-Table375[[#This Row],[Column13]]","v":0},{"$f":"Table375[[#This Row],[Column19]]-Table375[[#This Row],[Column14]]","v":0},{"$f":"Table375[[#This Row],[Column18]]-Table375[[#This Row],[Column15]]","v":0},{"$f":"Table375[[#This Row],[Column17]]-Table375[[#This Row],[Column16]]","v":0},null,null,{"$f":"COUNTIF(Table375[[#This Row],[Column28]:[Column23]], \">1\")","v":0}]
[94,null,null,null,null,null,null,null,null,null,null,null,null,null,null,null,null,null,{"$f":"Table375[[#This Row],[Column22]]-Table375[[#This Row],[Column9]]","v":0},{"$f":"Table375[[#This Row],[Column21]]-Table375[[#This Row],[Column12]]","v":0},{"$f":"Table375[[#This Row],[Column20]]-Table375[[#This Row],[Column13]]","v":0},{"$f":"Table375[[#This Row],[Column19]]-Table375[[#This Row],[Column14]]","v":0},{"$f":"Table375[[#This Row],[Column18]]-Table375[[#This Row],[Column15]]","v":0},{"$f":"Table375[[#This Row],[Column17]]-Table375[[#This Row],[Column16]]","v":0},null,null,{"$f":"COUNTIF(Table375[[#This Row],[Column28]:[Column23]], \">1\")","v":0}]
[95,null,null,null,null,null,null,null,null,null,null,null,null,null,null,null,null,null,{"$f":"Table375[[#This Row],[Column22]]-Table375[[#This Row],[Column9]]","v":0},{"$f":"Table375[[#This Row],[Column21]]-Table375[[#This Row],[Column12]]","v":0},{"$f":"Table375[[#This Row],[Column20]]-Table375[[#This Row],[Column13]]","v":0},{"$f":"Table375[[#This Row],[Column19]]-Table375[[#This Row],[Column14]]","v":0},{"$f":"Table375[[#This Row],[Column18]]-Table375[[#This Row],[Column15]]","v":0},{"$f":"Table375[[#This Row],[Column17]]-Table375[[#This Row],[Column16]]","v":0},null,null,{"$f":"COUNTIF(Table375[[#This Row],[Column28]:[Column23]], \">1\")","v":0}]
[96,null,null,null,null,null,null,null,null,null,null,null,null,null,null,null,null,null,{"$f":"Table375[[#This Row],[Column22]]-Table375[[#This Row],[Column9]]","v":0},{"$f":"Table375[[#This Row],[Column21]]-Table375[[#This Row],[Column12]]","v":0},{"$f":"Table375[[#This Row],[Column20]]-Table375[[#This Row],[Column13]]","v":0},{"$f":"Table375[[#This Row],[Column19]]-Table375[[#This Row],[Column14]]","v":0},{"$f":"Table375[[#This Row],[Column18]]-Table375[[#This Row],[Column15]]","v":0},{"$f":"Table375[[#This Row],[Column17]]-Table375[[#This Row],[Column16]]","v":0},null,null,{"$f":"COUNTIF(Table375[[#This Row],[Column28]:[Column23]], \">1\")","v":0}]
[97,null,null,null,null,null,null,null,null,null,null,null,null,null,null,null,null,null,{"$f":"Table375[[#This Row],[Column22]]-Table375[[#This Row],[Column9]]","v":0},{"$f":"Table375[[#This Row],[Column21]]-Table375[[#This Row],[Column12]]","v":0},{"$f":"Table375[[#This Row],[Column20]]-Table375[[#This Row],[Column13]]","v":0},{"$f":"Table375[[#This Row],[Column19]]-Table375[[#This Row],[Column14]]","v":0},{"$f":"Table375[[#This Row],[Column18]]-Table375[[#This Row],[Column15]]","v":0},{"$f":"Table375[[#This Row],[Column17]]-Table375[[#This Row],[Column16]]","v":0},null,null,{"$f":"COUNTIF(Table375[[#This Row],[Column28]:[Column23]], \">1\")","v":0}]
[98,null,null,null,null,null,null,null,null,null,null,null,null,null,null,null,null,null,{"$f":"Table375[[#This Row],[Column22]]-Table375[[#This Row],[Column9]]","v":0},{"$f":"Table375[[#This Row],[Column21]]-Table375[[#This Row],[Column12]]","v":0},{"$f":"Table375[[#This Row],[Column20]]-Table375[[#This Row],[Column13]]","v":0},{"$f":"Table375[[#This Row],[Column19]]-Table375[[#This Row],[Column14]]","v":0},{"$f":"Table375[[#This Row],[Column18]]-Table375[[#This Row],[Column15]]","v":0},{"$f":"Table375[[#This Row],[Column17]]-Table375[[#This Row],[Column16]]","v":0},null,null,{"$f":"COUNTIF(Table375[[#This Row],[Column28]:[Column23]], \">1\")","v":0}]
[99,null,null,null,null,null,null,null,null,null,null,null,null,null,null,null,null,null,{"$f":"Table375[[#This Row],[Column22]]-Table375[[#This Row],[Column9]]","v":0},{"$f":"Table375[[#This Row],[Column21]]-Table375[[#This Row],[Column12]]","v":0},{"$f":"Table375[[#This Row],[Column20]]-Table375[[#This Row],[Column13]]","v":0},{"$f":"Table375[[#This Row],[Column19]]-Table375[[#This Row],[Column14]]","v":0},{"$f":"Table375[[#This Row],[Column18]]-Table375[[#This Row],[Column15]]","v":0},{"$f":"Table375[[#This Row],[Column17]]-Table375[[#This Row],[Column16]]","v":0},null,null,{"$f":"COUNTIF(Table375[[#This Row],[Column28]:[Column23]], \">1\")","v":0}]
[100,null,null,null,null,null,null,null,null,null,null,null,null,null,null,null,null,null,{"$f":"Table375[[#This Row],[Column22]]-Table375[[#This Row],[Column9]]","v":0},{"$f":"Table375[[#This Row],[Column21]]-Table375[[#This Row],[Column12]]","v":0},{"$f":"Table375[[#This Row],[Column20]]-Table375[[#This Row],[Column13]]","v":0},{"$f":"Table375[[#This Row],[Column19]]-Table375[[#This Row],[Column14]]","v":0},{"$f":"Table375[[#This Row],[Column18]]-Table375[[#This Row],[Column15]]","v":0},{"$f":"Table375[[#This Row],[Column17]]-Table375[[#This Row],[Column16]]","v":0},null,null,{"$f":"COUNTIF(Table375[[#This Row],[Column28]:[Column23]], \">1\")","v":0}]
[101,null,null,null,null,null,null,null,null,null,null,null,null,null,null,null,null,null,{"$f":"Table375[[#This Row],[Column22]]-Table375[[#This Row],[Column9]]","v":0},{"$f":"Table375[[#This Row],[Column21]]-Table375[[#This Row],[Column12]]","v":0},{"$f":"Table375[[#This Row],[Column20]]-Table375[[#This Row],[Column13]]","v":0},{"$f":"Table375[[#This Row],[Column19]]-Table375[[#This Row],[Column14]]","v":0},{"$f":"Table375[[#This Row],[Column18]]-Table375[[#This Row],[Column15]]","v":0},{"$f":"Table375[[#This Row],[Column17]]-Table375[[#This Row],[Column16]]","v":0},null,null,{"$f":"COUNTIF(Table375[[#This Row],[Column28]:[Column23]], \">1\")","v":0}]
[102,null,null,null,null,null,null,null,null,null,null,null,null,null,null,null,null,null,{"$f":"Table375[[#This Row],[Column22]]-Table375[[#This Row],[Column9]]","v":0},{"$f":"Table375[[#This Row],[Column21]]-Table375[[#This Row],[Column12]]","v":0},{"$f":"Table375[[#This Row],[Column20]]-Table375[[#This Row],[Column13]]","v":0},{"$f":"Table375[[#This Row],[Column19]]-Table375[[#This Row],[Column14]]","v":0},{"$f":"Table375[[#This Row],[Column18]]-Table375[[#This Row],[Column15]]","v":0},{"$f":"Table375[[#This Row],[Column17]]-Table375[[#This Row],[Column16]]","v":0},null,null,{"$f":"COUNTIF(Table375[[#This Row],[Column28]:[Column23]], \">1\")","v":0}]
[103,null,null,null,null,null,null,null,null,null,null,null,null,null,null,null,null,null,{"$f":"Table375[[#This Row],[Column22]]-Table375[[#This Row],[Column9]]","v":0},{"$f":"Table375[[#This Row],[Column21]]-Table375[[#This Row],[Column12]]","v":0},{"$f":"Table375[[#This Row],[Column20]]-Table375[[#This Row],[Column13]]","v":0},{"$f":"Table375[[#This Row],[Column19]]-Table375[[#This Row],[Column14]]","v":0},{"$f":"Table375[[#This Row],[Column18]]-Table375[[#This Row],[Column15]]","v":0},{"$f":"Table375[[#This Row],[Column17]]-Table375[[#This Row],[Column16]]","v":0},null,null,{"$f":"COUNTIF(Table375[[#This Row],[Column28]:[Column23]], \">1\")","v":0}]
[104,null,null,null,null,null,null,null,null,null,null,null,null,null,null,null,null,null,{"$f":"Table375[[#This Row],[Column22]]-Table375[[#This Row],[Column9]]","v":0},{"$f":"Table375[[#This Row],[Column21]]-Table375[[#This Row],[Column12]]","v":0},{"$f":"Table375[[#This Row],[Column20]]-Table375[[#This Row],[Column13]]","v":0},{"$f":"Table375[[#This Row],[Column19]]-Table375[[#This Row],[Column14]]","v":0},{"$f":"Table375[[#This Row],[Column18]]-Table375[[#This Row],[Column15]]","v":0},{"$f":"Table375[[#This Row],[Column17]]-Table375[[#This Row],[Column16]]","v":0},null,null,{"$f":"COUNTIF(Table375[[#This Row],[Column28]:[Column23]], \">1\")","v":0}]
[105,null,null,null,null,null,null,null,null,null,null,null,null,null,null,null,null,null,{"$f":"Table375[[#This Row],[Column22]]-Table375[[#This Row],[Column9]]","v":0},{"$f":"Table375[[#This Row],[Column21]]-Table375[[#This Row],[Column12]]","v":0},{"$f":"Table375[[#This Row],[Column20]]-Table375[[#This Row],[Column13]]","v":0},{"$f":"Table375[[#This Row],[Column19]]-Table375[[#This Row],[Column14]]","v":0},{"$f":"Table375[[#This Row],[Column18]]-Table375[[#This Row],[Column15]]","v":0},{"$f":"Table375[[#This Row],[Column17]]-Table375[[#This Row],[Column16]]","v":0},null,null,{"$f":"COUNTIF(Table375[[#This Row],[Column28]:[Column23]], \">1\")","v":0}]
[106,null,null,null,null,null,null,null,null,null,null,null,null,null,null,null,null,null,{"$f":"Table375[[#This Row],[Column22]]-Table375[[#This Row],[Column9]]","v":0},{"$f":"Table375[[#This Row],[Column21]]-Table375[[#This Row],[Column12]]","v":0},{"$f":"Table375[[#This Row],[Column20]]-Table375[[#This Row],[Column13]]","v":0},{"$f":"Table375[[#This Row],[Column19]]-Table375[[#This Row],[Column14]]","v":0},{"$f":"Table375[[#This Row],[Column18]]-Table375[[#This Row],[Column15]]","v":0},{"$f":"Table375[[#This Row],[Column17]]-Table375[[#This Row],[Column16]]","v":0},null,null,{"$f":"COUNTIF(Table375[[#This Row],[Column28]:[Column23]], \">1\")","v":0}]
[107,null,null,null,null,null,null,null,null,null,null,null,null,null,null,null,null,null,{"$f":"Table375[[#This Row],[Column22]]-Table375[[#This Row],[Column9]]","v":0},{"$f":"Table375[[#This Row],[Column21]]-Table375[[#This Row],[Column12]]","v":0},{"$f":"Table375[[#This Row],[Column20]]-Table375[[#This Row],[Column13]]","v":0},{"$f":"Table375[[#This Row],[Column19]]-Table375[[#This Row],[Column14]]","v":0},{"$f":"Table375[[#This Row],[Column18]]-Table375[[#This Row],[Column15]]","v":0},{"$f":"Table375[[#This Row],[Column17]]-Table375[[#This Row],[Column16]]","v":0},null,null,{"$f":"COUNTIF(Table375[[#This Row],[Column28]:[Column23]], \">1\")","v":0}]
[108,null,null,null,null,null,null,null,null,null,null,null,null,null,null,null,null,null,{"$f":"Table375[[#This Row],[Column22]]-Table375[[#This Row],[Column9]]","v":0},{"$f":"Table375[[#This Row],[Column21]]-Table375[[#This Row],[Column12]]","v":0},{"$f":"Table375[[#This Row],[Column20]]-Table375[[#This Row],[Column13]]","v":0},{"$f":"Table375[[#This Row],[Column19]]-Table375[[#This Row],[Column14]]","v":0},{"$f":"Table375[[#This Row],[Column18]]-Table375[[#This Row],[Column15]]","v":0},{"$f":"Table375[[#This Row],[Column17]]-Table375[[#This Row],[Column16]]","v":0},null,null,{"$f":"COUNTIF(Table375[[#This Row],[Column28]:[Column23]], \">1\")","v":0}]
[109,null,null,null,null,null,null,null,null,null,null,null,null,null,null,null,null,null,{"$f":"Table375[[#This Row],[Column22]]-Table375[[#This Row],[Column9]]","v":0},{"$f":"Table375[[#This Row],[Column21]]-Table375[[#This Row],[Column12]]","v":0},{"$f":"Table375[[#This Row],[Column20]]-Table375[[#This Row],[Column13]]","v":0},{"$f":"Table375[[#This Row],[Column19]]-Table375[[#This Row],[Column14]]","v":0},{"$f":"Table375[[#This Row],[Column18]]-Table375[[#This Row],[Column15]]","v":0},{"$f":"Table375[[#This Row],[Column17]]-Table375[[#This Row],[Column16]]","v":0},null,null,{"$f":"COUNTIF(Table375[[#This Row],[Column28]:[Column23]], \">1\")","v":0}]
[110,null,null,null,null,null,null,null,null,null,null,null,null,null,null,null,null,null,{"$f":"Table375[[#This Row],[Column22]]-Table375[[#This Row],[Column9]]","v":0},{"$f":"Table375[[#This Row],[Column21]]-Table375[[#This Row],[Column12]]","v":0},{"$f":"Table375[[#This Row],[Column20]]-Table375[[#This Row],[Column13]]","v":0},{"$f":"Table375[[#This Row],[Column19]]-Table375[[#This Row],[Column14]]","v":0},{"$f":"Table375[[#This Row],[Column18]]-Table375[[#This Row],[Column15]]","v":0},{"$f":"Table375[[#This Row],[Column17]]-Table375[[#This Row],[Column16]]","v":0},null,null,{"$f":"COUNTIF(Table375[[#This Row],[Column28]:[Column23]], \">1\")","v":0}]
[111,null,null,null,null,null,null,null,null,null,null,null,null,null,null,null,null,null,{"$f":"Table375[[#This Row],[Column22]]-Table375[[#This Row],[Column9]]","v":0},{"$f":"Table375[[#This Row],[Column21]]-Table375[[#This Row],[Column12]]","v":0},{"$f":"Table375[[#This Row],[Column20]]-Table375[[#This Row],[Column13]]","v":0},{"$f":"Table375[[#This Row],[Column19]]-Table375[[#This Row],[Column14]]","v":0},{"$f":"Table375[[#This Row],[Column18]]-Table375[[#This Row],[Column15]]","v":0},{"$f":"Table375[[#This Row],[Column17]]-Table375[[#This Row],[Column16]]","v":0},null,null,{"$f":"COUNTIF(Table375[[#This Row],[Column28]:[Column23]], \">1\")","v":0}]
[112,null,null,null,null,null,null,null,null,null,null,null,null,null,null,null,null,null,{"$f":"Table375[[#This Row],[Column22]]-Table375[[#This Row],[Column9]]","v":0},{"$f":"Table375[[#This Row],[Column21]]-Table375[[#This Row],[Column12]]","v":0},{"$f":"Table375[[#This Row],[Column20]]-Table375[[#This Row],[Column13]]","v":0},{"$f":"Table375[[#This Row],[Column19]]-Table375[[#This Row],[Column14]]","v":0},{"$f":"Table375[[#This Row],[Column18]]-Table375[[#This Row],[Column15]]","v":0},{"$f":"Table375[[#This Row],[Column17]]-Table375[[#This Row],[Column16]]","v":0},null,null,{"$f":"COUNTIF(Table375[[#This Row],[Column28]:[Column23]], \">1\")","v":0}]
[113,null,null,null,null,null,null,null,null,null,null,null,null,null,null,null,null,null,{"$f":"Table375[[#This Row],[Column22]]-Table375[[#This Row],[Column9]]","v":0},{"$f":"Table375[[#This Row],[Column21]]-Table375[[#This Row],[Column12]]","v":0},{"$f":"Table375[[#This Row],[Column20]]-Table375[[#This Row],[Column13]]","v":0},{"$f":"Table375[[#This Row],[Column19]]-Table375[[#This Row],[Column14]]","v":0},{"$f":"Table375[[#This Row],[Column18]]-Table375[[#This Row],[Column15]]","v":0},{"$f":"Table375[[#This Row],[Column17]]-Table375[[#This Row],[Column16]]","v":0},null,null,{"$f":"COUNTIF(Table375[[#This Row],[Column28]:[Column23]], \">1\")","v":0}]
[114,null,null,null,null,null,null,null,null,null,null,null,null,null,null,null,null,null,{"$f":"Table375[[#This Row],[Column22]]-Table375[[#This Row],[Column9]]","v":0},{"$f":"Table375[[#This Row],[Column21]]-Table375[[#This Row],[Column12]]","v":0},{"$f":"Table375[[#This Row],[Column20]]-Table375[[#This Row],[Column13]]","v":0},{"$f":"Table375[[#This Row],[Column19]]-Table375[[#This Row],[Column14]]","v":0},{"$f":"Table375[[#This Row],[Column18]]-Table375[[#This Row],[Column15]]","v":0},{"$f":"Table375[[#This Row],[Column17]]-Table375[[#This Row],[Column16]]","v":0},null,null,{"$f":"COUNTIF(Table375[[#This Row],[Column28]:[Column23]], \">1\")","v":0}]
[115,null,null,null,null,null,null,null,null,null,null,null,null,null,null,null,null,null,{"$f":"Table375[[#This Row],[Column22]]-Table375[[#This Row],[Column9]]","v":0},{"$f":"Table375[[#This Row],[Column21]]-Table375[[#This Row],[Column12]]","v":0},{"$f":"Table375[[#This Row],[Column20]]-Table375[[#This Row],[Column13]]","v":0},{"$f":"Table375[[#This Row],[Column19]]-Table375[[#This Row],[Column14]]","v":0},{"$f":"Table375[[#This Row],[Column18]]-Table375[[#This Row],[Column15]]","v":0},{"$f":"Table375[[#This Row],[Column17]]-Table375[[#This Row],[Column16]]","v":0},null,null,{"$f":"COUNTIF(Table375[[#This Row],[Column28]:[Column23]], \">1\")","v":0}]
[116,null,null,null,null,null,null,null,null,null,null,null,null,null,null,null,null,null,{"$f":"Table375[[#This Row],[Column22]]-Table375[[#This Row],[Column9]]","v":0},{"$f":"Table375[[#This Row],[Column21]]-Table375[[#This Row],[Column12]]","v":0},{"$f":"Table375[[#This Row],[Column20]]-Table375[[#This Row],[Column13]]","v":0},{"$f":"Table375[[#This Row],[Column19]]-Table375[[#This Row],[Column14]]","v":0},{"$f":"Table375[[#This Row],[Column18]]-Table375[[#This Row],[Column15]]","v":0},{"$f":"Table375[[#This Row],[Column17]]-Table375[[#This Row],[Column16]]","v":0},null,null,{"$f":"COUNTIF(Table375[[#This Row],[Column28]:[Column23]], \">1\")","v":0}]
[117,null,null,null,null,null,null,null,null,null,null,null,null,null,null,null,null,null,{"$f":"Table375[[#This Row],[Column22]]-Table375[[#This Row],[Column9]]","v":0},{"$f":"Table375[[#This Row],[Column21]]-Table375[[#This Row],[Column12]]","v":0},{"$f":"Table375[[#This Row],[Column20]]-Table375[[#This Row],[Column13]]","v":0},{"$f":"Table375[[#This Row],[Column19]]-Table375[[#This Row],[Column14]]","v":0},{"$f":"Table375[[#This Row],[Column18]]-Table375[[#This Row],[Column15]]","v":0},{"$f":"Table375[[#This Row],[Column17]]-Table375[[#This Row],[Column16]]","v":0},null,null,{"$f":"COUNTIF(Table375[[#This Row],[Column28]:[Column23]], \">1\")","v":0}]
[118,null,null,null,null,null,null,null,null,null,null,null,null,null,null,null,null,null,{"$f":"Table375[[#This Row],[Column22]]-Table375[[#This Row],[Column9]]","v":0},{"$f":"Table375[[#This Row],[Column21]]-Table375[[#This Row],[Column12]]","v":0},{"$f":"Table375[[#This Row],[Column20]]-Table375[[#This Row],[Column13]]","v":0},{"$f":"Table375[[#This Row],[Column19]]-Table375[[#This Row],[Column14]]","v":0},{"$f":"Table375[[#This Row],[Column18]]-Table375[[#This Row],[Column15]]","v":0},{"$f":"Table375[[#This Row],[Column17]]-Table375[[#This Row],[Column16]]","v":0},null,null,{"$f":"COUNTIF(Table375[[#This Row],[Column28]:[Column23]], \">1\")","v":0}]
[119,null,null,null,null,null,null,null,null,null,null,null,null,null,null,null,null,null,{"$f":"Table375[[#This Row],[Column22]]-Table375[[#This Row],[Column9]]","v":0},{"$f":"Table375[[#This Row],[Column21]]-Table375[[#This Row],[Column12]]","v":0},{"$f":"Table375[[#This Row],[Column20]]-Table375[[#This Row],[Column13]]","v":0},{"$f":"Table375[[#This Row],[Column19]]-Table375[[#This Row],[Column14]]","v":0},{"$f":"Table375[[#This Row],[Column18]]-Table375[[#This Row],[Column15]]","v":0},{"$f":"Table375[[#This Row],[Column17]]-Table375[[#This Row],[Column16]]","v":0},null,null,{"$f":"COUNTIF(Table375[[#This Row],[Column28]:[Column23]], \">1\")","v":0}]
[120,null,null,null,null,null,null,null,null,null,null,null,null,null,null,null,null,null,{"$f":"Table375[[#This Row],[Column22]]-Table375[[#This Row],[Column9]]","v":0},{"$f":"Table375[[#This Row],[Column21]]-Table375[[#This Row],[Column12]]","v":0},{"$f":"Table375[[#This Row],[Column20]]-Table375[[#This Row],[Column13]]","v":0},{"$f":"Table375[[#This Row],[Column19]]-Table375[[#This Row],[Column14]]","v":0},{"$f":"Table375[[#This Row],[Column18]]-Table375[[#This Row],[Column15]]","v":0},{"$f":"Table375[[#This Row],[Column17]]-Table375[[#This Row],[Column16]]","v":0},null,null,{"$f":"COUNTIF(Table375[[#This Row],[Column28]:[Column23]], \">1\")","v":0}]
[121,null,null,null,null,null,null,null,null,null,null,null,null,null,null,null,null,null,{"$f":"Table375[[#This Row],[Column22]]-Table375[[#This Row],[Column9]]","v":0},{"$f":"Table375[[#This Row],[Column21]]-Table375[[#This Row],[Column12]]","v":0},{"$f":"Table375[[#This Row],[Column20]]-Table375[[#This Row],[Column13]]","v":0},{"$f":"Table375[[#This Row],[Column19]]-Table375[[#This Row],[Column14]]","v":0},{"$f":"Table375[[#This Row],[Column18]]-Table375[[#This Row],[Column15]]","v":0},{"$f":"Table375[[#This Row],[Column17]]-Table375[[#This Row],[Column16]]","v":0},null,null,{"$f":"COUNTIF(Table375[[#This Row],[Column28]:[Column23]], \">1\")","v":0}]
[122,null,null,null,null,null,null,null,null,null,null,null,null,null,null,null,null,null,{"$f":"Table375[[#This Row],[Column22]]-Table375[[#This Row],[Column9]]","v":0},{"$f":"Table375[[#This Row],[Column21]]-Table375[[#This Row],[Column12]]","v":0},{"$f":"Table375[[#This Row],[Column20]]-Table375[[#This Row],[Column13]]","v":0},{"$f":"Table375[[#This Row],[Column19]]-Table375[[#This Row],[Column14]]","v":0},{"$f":"Table375[[#This Row],[Column18]]-Table375[[#This Row],[Column15]]","v":0},{"$f":"Table375[[#This Row],[Column17]]-Table375[[#This Row],[Column16]]","v":0},null,null,{"$f":"COUNTIF(Table375[[#This Row],[Column28]:[Column23]], \">1\")","v":0}]
[123,null,null,null,null,null,null,null,null,null,null,null,null,null,null,null,null,null,{"$f":"Table375[[#This Row],[Column22]]-Table375[[#This Row],[Column9]]","v":0},{"$f":"Table375[[#This Row],[Column21]]-Table375[[#This Row],[Column12]]","v":0},{"$f":"Table375[[#This Row],[Column20]]-Table375[[#This Row],[Column13]]","v":0},{"$f":"Table375[[#This Row],[Column19]]-Table375[[#This Row],[Column14]]","v":0},{"$f":"Table375[[#This Row],[Column18]]-Table375[[#This Row],[Column15]]","v":0},{"$f":"Table375[[#This Row],[Column17]]-Table375[[#This Row],[Column16]]","v":0},null,null,{"$f":"COUNTIF(Table375[[#This Row],[Column28]:[Column23]], \">1\")","v":0}]
[124,null,null,null,null,null,null,null,null,null,null,null,null,null,null,null,null,null,{"$f":"Table375[[#This Row],[Column22]]-Table375[[#This Row],[Column9]]","v":0},{"$f":"Table375[[#This Row],[Column21]]-Table375[[#This Row],[Column12]]","v":0},{"$f":"Table375[[#This Row],[Column20]]-Table375[[#This Row],[Column13]]","v":0},{"$f":"Table375[[#This Row],[Column19]]-Table375[[#This Row],[Column14]]","v":0},{"$f":"Table375[[#This Row],[Column18]]-Table375[[#This Row],[Column15]]","v":0},{"$f":"Table375[[#This Row],[Column17]]-Table375[[#This Row],[Column16]]","v":0},null,null,{"$f":"COUNTIF(Table375[[#This Row],[Column28]:[Column23]], \">1\")","v":0}]
[125,null,null,null,null,null,null,null,null,null,null,null,null,null,null,null,null,null,{"$f":"Table375[[#This Row],[Column22]]-Table375[[#This Row],[Column9]]","v":0},{"$f":"Table375[[#This Row],[Column21]]-Table375[[#This Row],[Column12]]","v":0},{"$f":"Table375[[#This Row],[Column20]]-Table375[[#This Row],[Column13]]","v":0},{"$f":"Table375[[#This Row],[Column19]]-Table375[[#This Row],[Column14]]","v":0},{"$f":"Table375[[#This Row],[Column18]]-Table375[[#This Row],[Column15]]","v":0},{"$f":"Table375[[#This Row],[Column17]]-Table375[[#This Row],[Column16]]","v":0},null,null,{"$f":"COUNTIF(Table375[[#This Row],[Column28]:[Column23]], \">1\")","v":0}]
[126,null,null,null,null,null,null,null,null,null,null,null,null,null,null,null,null,null,{"$f":"Table375[[#This Row],[Column22]]-Table375[[#This Row],[Column9]]","v":0},{"$f":"Table375[[#This Row],[Column21]]-Table375[[#This Row],[Column12]]","v":0},{"$f":"Table375[[#This Row],[Column20]]-Table375[[#This Row],[Column13]]","v":0},{"$f":"Table375[[#This Row],[Column19]]-Table375[[#This Row],[Column14]]","v":0},{"$f":"Table375[[#This Row],[Column18]]-Table375[[#This Row],[Column15]]","v":0},{"$f":"Table375[[#This Row],[Column17]]-Table375[[#This Row],[Column16]]","v":0},null,null,{"$f":"COUNTIF(Table375[[#This Row],[Column28]:[Column23]], \">1\")","v":0}]
[127,null,null,null,null,null,null,null,null,null,null,null,null,null,null,null,null,null,{"$f":"Table375[[#This Row],[Column22]]-Table375[[#This Row],[Column9]]","v":0},{"$f":"Table375[[#This Row],[Column21]]-Table375[[#This Row],[Column12]]","v":0},{"$f":"Table375[[#This Row],[Column20]]-Table375[[#This Row],[Column13]]","v":0},{"$f":"Table375[[#This Row],[Column19]]-Table375[[#This Row],[Column14]]","v":0},{"$f":"Table375[[#This Row],[Column18]]-Table375[[#This Row],[Column15]]","v":0},{"$f":"Table375[[#This Row],[Column17]]-Table375[[#This Row],[Column16]]","v":0},null,null,{"$f":"COUNTIF(Table375[[#This Row],[Column28]:[Column23]], \">1\")","v":0}]
[128,null,null,null,null,null,null,null,null,null,null,null,null,null,null,null,null,null,{"$f":"Table375[[#This Row],[Column22]]-Table375[[#This Row],[Column9]]","v":0},{"$f":"Table375[[#This Row],[Column21]]-Table375[[#This Row],[Column12]]","v":0},{"$f":"Table375[[#This Row],[Column20]]-Table375[[#This Row],[Column13]]","v":0},{"$f":"Table375[[#This Row],[Column19]]-Table375[[#This Row],[Column14]]","v":0},{"$f":"Table375[[#This Row],[Column18]]-Table375[[#This Row],[Column15]]","v":0},{"$f":"Table375[[#This Row],[Column17]]-Table375[[#This Row],[Column16]]","v":0},null,null,{"$f":"COUNTIF(Table375[[#This Row],[Column28]:[Column23]], \">1\")","v":0}]
[129,null,null,null,null,null,null,null,null,null,null,null,null,null,null,null,null,null,{"$f":"Table375[[#This Row],[Column22]]-Table375[[#This Row],[Column9]]","v":0},{"$f":"Table375[[#This Row],[Column21]]-Table375[[#This Row],[Column12]]","v":0},{"$f":"Table375[[#This Row],[Column20]]-Table375[[#This Row],[Column13]]","v":0},{"$f":"Table375[[#This Row],[Column19]]-Table375[[#This Row],[Column14]]","v":0},{"$f":"Table375[[#This Row],[Column18]]-Table375[[#This Row],[Column15]]","v":0},{"$f":"Table375[[#This Row],[Column17]]-Table375[[#This Row],[Column16]]","v":0},null,null,{"$f":"COUNTIF(Table375[[#This Row],[Column28]:[Column23]], \">1\")","v":0}]
[130,null,null,null,null,null,null,null,null,null,null,null,null,null,null,null,null,null,{"$f":"Table375[[#This Row],[Column22]]-Table375[[#This Row],[Column9]]","v":0},{"$f":"Table375[[#This Row],[Column21]]-Table375[[#This Row],[Column12]]","v":0},{"$f":"Table375[[#This Row],[Column20]]-Table375[[#This Row],[Column13]]","v":0},{"$f":"Table375[[#This Row],[Column19]]-Table375[[#This Row],[Column14]]","v":0},{"$f":"Table375[[#This Row],[Column18]]-Table375[[#This Row],[Column15]]","v":0},{"$f":"Table375[[#This Row],[Column17]]-Table375[[#This Row],[Column16]]","v":0},null,null,{"$f":"COUNTIF(Table375[[#This Row],[Column28]:[Column23]], \">1\")","v":0}]
[131,null,null,null,null,null,null,null,null,null,null,null,null,null,null,null,null,null,{"$f":"Table375[[#This Row],[Column22]]-Table375[[#This Row],[Column9]]","v":0},{"$f":"Table375[[#This Row],[Column21]]-Table375[[#This Row],[Column12]]","v":0},{"$f":"Table375[[#This Row],[Column20]]-Table375[[#This Row],[Column13]]","v":0},{"$f":"Table375[[#This Row],[Column19]]-Table375[[#This Row],[Column14]]","v":0},{"$f":"Table375[[#This Row],[Column18]]-Table375[[#This Row],[Column15]]","v":0},{"$f":"Table375[[#This Row],[Column17]]-Table375[[#This Row],[Column16]]","v":0},null,null,{"$f":"COUNTIF(Table375[[#This Row],[Column28]:[Column23]], \">1\")","v":0}]
[132,null,null,null,null,null,null,null,null,null,null,null,null,null,null,null,null,null,{"$f":"Table375[[#This Row],[Column22]]-Table375[[#This Row],[Column9]]","v":0},{"$f":"Table375[[#This Row],[Column21]]-Table375[[#This Row],[Column12]]","v":0},{"$f":"Table375[[#This Row],[Column20]]-Table375[[#This Row],[Column13]]","v":0},{"$f":"Table375[[#This Row],[Column19]]-Table375[[#This Row],[Column14]]","v":0},{"$f":"Table375[[#This Row],[Column18]]-Table375[[#This Row],[Column15]]","v":0},{"$f":"Table375[[#This Row],[Column17]]-Table375[[#This Row],[Column16]]","v":0},null,null,{"$f":"COUNTIF(Table375[[#This Row],[Column28]:[Column23]], \">1\")","v":0}]
[133,null,null,null,null,null,null,null,null,null,null,null,null,null,null,null,null,null,{"$f":"Table375[[#This Row],[Column22]]-Table375[[#This Row],[Column9]]","v":0},{"$f":"Table375[[#This Row],[Column21]]-Table375[[#This Row],[Column12]]","v":0},{"$f":"Table375[[#This Row],[Column20]]-Table375[[#This Row],[Column13]]","v":0},{"$f":"Table375[[#This Row],[Column19]]-Table375[[#This Row],[Column14]]","v":0},{"$f":"Table375[[#This Row],[Column18]]-Table375[[#This Row],[Column15]]","v":0},{"$f":"Table375[[#This Row],[Column17]]-Table375[[#This Row],[Column16]]","v":0},null,null,{"$f":"COUNTIF(Table375[[#This Row],[Column28]:[Column23]], \">1\")","v":0}]
[134,null,null,null,null,null,null,null,null,null,null,null,null,null,null,null,null,null,{"$f":"Table375[[#This Row],[Column22]]-Table375[[#This Row],[Column9]]","v":0},{"$f":"Table375[[#This Row],[Column21]]-Table375[[#This Row],[Column12]]","v":0},{"$f":"Table375[[#This Row],[Column20]]-Table375[[#This Row],[Column13]]","v":0},{"$f":"Table375[[#This Row],[Column19]]-Table375[[#This Row],[Column14]]","v":0},{"$f":"Table375[[#This Row],[Column18]]-Table375[[#This Row],[Column15]]","v":0},{"$f":"Table375[[#This Row],[Column17]]-Table375[[#This Row],[Column16]]","v":0},null,null,{"$f":"COUNTIF(Table375[[#This Row],[Column28]:[Column23]], \">1\")","v":0}]
[135,null,null,null,null,null,null,null,null,null,null,null,null,null,null,null,null,null,{"$f":"Table375[[#This Row],[Column22]]-Table375[[#This Row],[Column9]]","v":0},{"$f":"Table375[[#This Row],[Column21]]-Table375[[#This Row],[Column12]]","v":0},{"$f":"Table375[[#This Row],[Column20]]-Table375[[#This Row],[Column13]]","v":0},{"$f":"Table375[[#This Row],[Column19]]-Table375[[#This Row],[Column14]]","v":0},{"$f":"Table375[[#This Row],[Column18]]-Table375[[#This Row],[Column15]]","v":0},{"$f":"Table375[[#This Row],[Column17]]-Table375[[#This Row],[Column16]]","v":0},null,null,{"$f":"COUNTIF(Table375[[#This Row],[Column28]:[Column23]], \">1\")","v":0}]
[136,null,null,null,null,null,null,null,null,null,null,null,null,null,null,null,null,null,{"$f":"Table375[[#This Row],[Column22]]-Table375[[#This Row],[Column9]]","v":0},{"$f":"Table375[[#This Row],[Column21]]-Table375[[#This Row],[Column12]]","v":0},{"$f":"Table375[[#This Row],[Column20]]-Table375[[#This Row],[Column13]]","v":0},{"$f":"Table375[[#This Row],[Column19]]-Table375[[#This Row],[Column14]]","v":0},{"$f":"Table375[[#This Row],[Column18]]-Table375[[#This Row],[Column15]]","v":0},{"$f":"Table375[[#This Row],[Column17]]-Table375[[#This Row],[Column16]]","v":0},null,null,{"$f":"COUNTIF(Table375[[#This Row],[Column28]:[Column23]], \">1\")","v":0}]
[137,null,null,null,null,null,null,null,null,null,null,null,null,null,null,null,null,null,{"$f":"Table375[[#This Row],[Column22]]-Table375[[#This Row],[Column9]]","v":0},{"$f":"Table375[[#This Row],[Column21]]-Table375[[#This Row],[Column12]]","v":0},{"$f":"Table375[[#This Row],[Column20]]-Table375[[#This Row],[Column13]]","v":0},{"$f":"Table375[[#This Row],[Column19]]-Table375[[#This Row],[Column14]]","v":0},{"$f":"Table375[[#This Row],[Column18]]-Table375[[#This Row],[Column15]]","v":0},{"$f":"Table375[[#This Row],[Column17]]-Table375[[#This Row],[Column16]]","v":0},null,null,{"$f":"COUNTIF(Table375[[#This Row],[Column28]:[Column23]], \">1\")","v":0}]
[138,null,null,null,null,null,null,null,null,null,null,null,null,null,null,null,null,null,{"$f":"Table375[[#This Row],[Column22]]-Table375[[#This Row],[Column9]]","v":0},{"$f":"Table375[[#This Row],[Column21]]-Table375[[#This Row],[Column12]]","v":0},{"$f":"Table375[[#This Row],[Column20]]-Table375[[#This Row],[Column13]]","v":0},{"$f":"Table375[[#This Row],[Column19]]-Table375[[#This Row],[Column14]]","v":0},{"$f":"Table375[[#This Row],[Column18]]-Table375[[#This Row],[Column15]]","v":0},{"$f":"Table375[[#This Row],[Column17]]-Table375[[#This Row],[Column16]]","v":0},null,null,{"$f":"COUNTIF(Table375[[#This Row],[Column28]:[Column23]], \">1\")","v":0}]
[139,null,null,null,null,null,null,null,null,null,null,null,null,null,null,null,null,null,{"$f":"Table375[[#This Row],[Column22]]-Table375[[#This Row],[Column9]]","v":0},{"$f":"Table375[[#This Row],[Column21]]-Table375[[#This Row],[Column12]]","v":0},{"$f":"Table375[[#This Row],[Column20]]-Table375[[#This Row],[Column13]]","v":0},{"$f":"Table375[[#This Row],[Column19]]-Table375[[#This Row],[Column14]]","v":0},{"$f":"Table375[[#This Row],[Column18]]-Table375[[#This Row],[Column15]]","v":0},{"$f":"Table375[[#This Row],[Column17]]-Table375[[#This Row],[Column16]]","v":0},null,null,{"$f":"COUNTIF(Table375[[#This Row],[Column28]:[Column23]], \">1\")","v":0}]
[140,null,null,null,null,null,null,null,null,null,null,null,null,null,null,null,null,null,{"$f":"Table375[[#This Row],[Column22]]-Table375[[#This Row],[Column9]]","v":0},{"$f":"Table375[[#This Row],[Column21]]-Table375[[#This Row],[Column12]]","v":0},{"$f":"Table375[[#This Row],[Column20]]-Table375[[#This Row],[Column13]]","v":0},{"$f":"Table375[[#This Row],[Column19]]-Table375[[#This Row],[Column14]]","v":0},{"$f":"Table375[[#This Row],[Column18]]-Table375[[#This Row],[Column15]]","v":0},{"$f":"Table375[[#This Row],[Column17]]-Table375[[#This Row],[Column16]]","v":0},null,null,{"$f":"COUNTIF(Table375[[#This Row],[Column28]:[Column23]], \">1\")","v":0}]
[141,null,null,null,null,null,null,null,null,null,null,null,null,null,null,null,null,null,{"$f":"Table375[[#This Row],[Column22]]-Table375[[#This Row],[Column9]]","v":0},{"$f":"Table375[[#This Row],[Column21]]-Table375[[#This Row],[Column12]]","v":0},{"$f":"Table375[[#This Row],[Column20]]-Table375[[#This Row],[Column13]]","v":0},{"$f":"Table375[[#This Row],[Column19]]-Table375[[#This Row],[Column14]]","v":0},{"$f":"Table375[[#This Row],[Column18]]-Table375[[#This Row],[Column15]]","v":0},{"$f":"Table375[[#This Row],[Column17]]-Table375[[#This Row],[Column16]]","v":0},null,null,{"$f":"COUNTIF(Table375[[#This Row],[Column28]:[Column23]], \">1\")","v":0}]
[142,null,null,null,null,null,null,null,null,null,null,null,null,null,null,null,null,null,{"$f":"Table375[[#This Row],[Column22]]-Table375[[#This Row],[Column9]]","v":0},{"$f":"Table375[[#This Row],[Column21]]-Table375[[#This Row],[Column12]]","v":0},{"$f":"Table375[[#This Row],[Column20]]-Table375[[#This Row],[Column13]]","v":0},{"$f":"Table375[[#This Row],[Column19]]-Table375[[#This Row],[Column14]]","v":0},{"$f":"Table375[[#This Row],[Column18]]-Table375[[#This Row],[Column15]]","v":0},{"$f":"Table375[[#This Row],[Column17]]-Table375[[#This Row],[Column16]]","v":0},null,null,{"$f":"COUNTIF(Table375[[#This Row],[Column28]:[Column23]], \">1\")","v":0}]
[143,null,null,null,null,null,null,null,null,null,null,null,null,null,null,null,null,null,{"$f":"Table375[[#This Row],[Column22]]-Table375[[#This Row],[Column9]]","v":0},{"$f":"Table375[[#This Row],[Column21]]-Table375[[#This Row],[Column12]]","v":0},{"$f":"Table375[[#This Row],[Column20]]-Table375[[#This Row],[Column13]]","v":0},{"$f":"Table375[[#This Row],[Column19]]-Table375[[#This Row],[Column14]]","v":0},{"$f":"Table375[[#This Row],[Column18]]-Table375[[#This Row],[Column15]]","v":0},{"$f":"Table375[[#This Row],[Column17]]-Table375[[#This Row],[Column16]]","v":0},null,null,{"$f":"COUNTIF(Table375[[#This Row],[Column28]:[Column23]], \">1\")","v":0}]
[144,null,null,null,null,null,null,null,null,null,null,null,null,null,null,null,null,null,{"$f":"Table375[[#This Row],[Column22]]-Table375[[#This Row],[Column9]]","v":0},{"$f":"Table375[[#This Row],[Column21]]-Table375[[#This Row],[Column12]]","v":0},{"$f":"Table375[[#This Row],[Column20]]-Table375[[#This Row],[Column13]]","v":0},{"$f":"Table375[[#This Row],[Column19]]-Table375[[#This Row],[Column14]]","v":0},{"$f":"Table375[[#This Row],[Column18]]-Table375[[#This Row],[Column15]]","v":0},{"$f":"Table375[[#This Row],[Column17]]-Table375[[#This Row],[Column16]]","v":0},null,null,{"$f":"COUNTIF(Table375[[#This Row],[Column28]:[Column23]], \">1\")","v":0}]
[145,null,null,null,null,null,null,null,null,null,null,null,null,null,null,null,null,null,{"$f":"Table375[[#This Row],[Column22]]-Table375[[#This Row],[Column9]]","v":0},{"$f":"Table375[[#This Row],[Column21]]-Table375[[#This Row],[Column12]]","v":0},{"$f":"Table375[[#This Row],[Column20]]-Table375[[#This Row],[Column13]]","v":0},{"$f":"Table375[[#This Row],[Column19]]-Table375[[#This Row],[Column14]]","v":0},{"$f":"Table375[[#This Row],[Column18]]-Table375[[#This Row],[Column15]]","v":0},{"$f":"Table375[[#This Row],[Column17]]-Table375[[#This Row],[Column16]]","v":0},null,null,{"$f":"COUNTIF(Table375[[#This Row],[Column28]:[Column23]], \">1\")","v":0}]
[146,null,null,null,null,null,null,null,null,null,null,null,null,null,null,null,null,null,{"$f":"Table375[[#This Row],[Column22]]-Table375[[#This Row],[Column9]]","v":0},{"$f":"Table375[[#This Row],[Column21]]-Table375[[#This Row],[Column12]]","v":0},{"$f":"Table375[[#This Row],[Column20]]-Table375[[#This Row],[Column13]]","v":0},{"$f":"Table375[[#This Row],[Column19]]-Table375[[#This Row],[Column14]]","v":0},{"$f":"Table375[[#This Row],[Column18]]-Table375[[#This Row],[Column15]]","v":0},{"$f":"Table375[[#This Row],[Column17]]-Table375[[#This Row],[Column16]]","v":0},null,null,{"$f":"COUNTIF(Table375[[#This Row],[Column28]:[Column23]], \">1\")","v":0}]
[147,null,null,null,null,null,null,null,null,null,null,null,null,null,null,null,null,null,{"$f":"Table375[[#This Row],[Column22]]-Table375[[#This Row],[Column9]]","v":0},{"$f":"Table375[[#This Row],[Column21]]-Table375[[#This Row],[Column12]]","v":0},{"$f":"Table375[[#This Row],[Column20]]-Table375[[#This Row],[Column13]]","v":0},{"$f":"Table375[[#This Row],[Column19]]-Table375[[#This Row],[Column14]]","v":0},{"$f":"Table375[[#This Row],[Column18]]-Table375[[#This Row],[Column15]]","v":0},{"$f":"Table375[[#This Row],[Column17]]-Table375[[#This Row],[Column16]]","v":0},null,null,{"$f":"COUNTIF(Table375[[#This Row],[Column28]:[Column23]], \">1\")","v":0}]
[148,null,null,null,null,null,null,null,null,null,null,null,null,null,null,null,null,null,{"$f":"Table375[[#This Row],[Column22]]-Table375[[#This Row],[Column9]]","v":0},{"$f":"Table375[[#This Row],[Column21]]-Table375[[#This Row],[Column12]]","v":0},{"$f":"Table375[[#This Row],[Column20]]-Table375[[#This Row],[Column13]]","v":0},{"$f":"Table375[[#This Row],[Column19]]-Table375[[#This Row],[Column14]]","v":0},{"$f":"Table375[[#This Row],[Column18]]-Table375[[#This Row],[Column15]]","v":0},{"$f":"Table375[[#This Row],[Column17]]-Table375[[#This Row],[Column16]]","v":0},null,null,{"$f":"COUNTIF(Table375[[#This Row],[Column28]:[Column23]], \">1\")","v":0}]
[149,null,null,null,null,null,null,null,null,null,null,null,null,null,null,null,null,null,{"$f":"Table375[[#This Row],[Column22]]-Table375[[#This Row],[Column9]]","v":0},{"$f":"Table375[[#This Row],[Column21]]-Table375[[#This Row],[Column12]]","v":0},{"$f":"Table375[[#This Row],[Column20]]-Table375[[#This Row],[Column13]]","v":0},{"$f":"Table375[[#This Row],[Column19]]-Table375[[#This Row],[Column14]]","v":0},{"$f":"Table375[[#This Row],[Column18]]-Table375[[#This Row],[Column15]]","v":0},{"$f":"Table375[[#This Row],[Column17]]-Table375[[#This Row],[Column16]]","v":0},null,null,{"$f":"COUNTIF(Table375[[#This Row],[Column28]:[Column23]], \">1\")","v":0}]
[150,null,null,null,null,null,null,null,null,null,null,null,null,null,null,null,null,null,{"$f":"Table375[[#This Row],[Column22]]-Table375[[#This Row],[Column9]]","v":0},{"$f":"Table375[[#This Row],[Column21]]-Table375[[#This Row],[Column12]]","v":0},{"$f":"Table375[[#This Row],[Column20]]-Table375[[#This Row],[Column13]]","v":0},{"$f":"Table375[[#This Row],[Column19]]-Table375[[#This Row],[Column14]]","v":0},{"$f":"Table375[[#This Row],[Column18]]-Table375[[#This Row],[Column15]]","v":0},{"$f":"Table375[[#This Row],[Column17]]-Table375[[#This Row],[Column16]]","v":0},null,null,{"$f":"COUNTIF(Table375[[#This Row],[Column28]:[Column23]], \">1\")","v":0}]

{"sheet":"Volunteers - Nov","index":3,"n_rows":157,"n_cols":22,"rows_kept":157,"cut":false,"hidden":false,"merged":[[0,0,4,0],[2,1,4,1],[2,2,4,2],[3,3,3,6],[3,7,3,19],[1,6,1,7],[1,2,1,5],[1,8,1,12],[0,13,1,19]]}
["Keystone SMILES AmeriCorps","Volunteers and Service-Learning Students Roster",null,null,null,null,null,null,null,null,null,null,null,"Rosters are due via Email on November 15th, Feburary 15th, May 15th, and at the end of the Member's term.  This Roster, plus the reporting form, great story and photographs, together, comprise the member's complete Quarterly Report.  All Members are expected to recruit and report  volunteers or service learning participants and corresponding service hours."]
[null,"Member Name:",null,null,null,null,"Host Site:"]
[null,"Volunteer or Student Name","Reported as \"New\" in Nov, Feb, May or Final"]
[null,null,null,"Type of Volunteer",null,null,null,"AUGUST - OCTOBER, Service Hours and Dates:",null,null,null,null,null,null,null,null,null,null,null,null,null," "]
[null,null,null,"Youth","College Student","Baby Boomer","Other","Date:","Hrs.","Date","Hrs.","Date:","Hrs.","Date:","Hrs.","Date:","Hrs.","Date","Hrs.","TOTAL:"]
["TOTALS:",{"$f":"COUNTA(B8:B157)","v":0},null,{"$f":"COUNTA(D8:D157)","v":0},{"$f":"COUNTA(E8:E157)","v":0},0,0,null,null,null,null,null,null,null,null,null,null,null,null,{"$f":"SUM(T8:T157)","v":0}]
["For Example","Caroline Hastings","November","x",null,null,null,"2010-08-31",3,"2010-12-15",2,"2010-01-11",8,"2010-02-10",4,"2010-03-08",3,"2010-04-12",4,{"$f":"SUM(I7,K7,M7,O7,Q7,S7)","v":24}]
[1,null,null,null,null,null,null,null,null,null,null,null,null,null,null,null,null,null,null,0]
[2,null,null,null,null,null,null,null,null,null,null,null,null,null,null,null,null,null,null,0]
[3,null,null,null,null,null,null,null,null,null,null,null,null,null,null,null,null,null,null,0]
[4,null,null,null,null,null,null,null,null,null,null,null,null,null,null,null,null,null,null,0]
[5,null,null,null,null,null,null,null,null,null,null,null,null,null,null,null,null,null,null,0]
[6,null,null,null,null,null,null,null,null,null,null,null,null,null,null,null,null,null,null,0]
[7,null,null,null,null,null,null,null,null,null,null,null,null,null,null,null,null,null,null,0]
[8,null,null,null,null,null,null,null,null,null,null,null,null,null,null,null,null,null,null,0]
[9,null,null,null,null,null,null,null,null,null,null,null,null,null,null,null,null,null,null,0]
[10,null,null,null,null,null,null,null,null,null,null,null,null,null,null,null,null,null,null,0]
[11,null,null,null,null,null,null,null,null,null,null,null,null,null,null,null,null,null,null,0]
[12,null,null,null,null,null,null,null,null,null,null,null,null,null,null,null,null,null,null,0]
[13,null,null,null,null,null,null,null,null,null,null,null,null,null,null,null,null,null,null,0]
[14,null,null,null,null,null,null,null,null,null,null,null,null,null,null,null,null,null,null,0]
[15,null,null,null,null,null,null,null,null,null,null,null,null,null,null,null,null,null,null,0]
[16,null,null,null,null,null,null,null,null,null,null,null,null,null,null,null,null,null,null,0]
[17,null,null,null,null,null,null,null,null,null,null,null,null,null,null,null,null,null,null,0]
[18,null,null,null,null,null,null,null,null,null,null,null,null,null,null,null,null,null,null,0]
[19,null,null,null,null,null,null,null,null,null,null,null,null,null,null,null,null,null,null,0]
[20,null,null,null,null,null,null,null,null,null,null,null,null,null,null,null,null,null,null,0]
[21,null,null,null,null,null,null,null,null,null,null,null,null,null,null,null,null,null,null,0]
[22,null,null,null,null,null,null,null,null,null,null,null,null,null,null,null,null,null,null,0]
[23,null,null,null,null,null,null,null,null,null,null,null,null,null,null,null,null,null,null,0]
[24,null,null,null,null,null,null,null,null,null,null,null,null,null,null,null,null,null,null,0]
[25,null,null,null,null,null,null,null,null,null,null,null,null,null,null,null,null,null,null,0]
[26,null,null,null,null,null,null,null,null,null,null,null,null,null,null,null,null,null,null,0]
[27,null,null,null,null,null,null,null,null,null,null,null,null,null,null,null,null,null,null,0]
[28,null,null,null,null,null,null,null,null,null,null,null,null,null,null,null,null,null,null,0]
[29,null,null,null,null,null,null,null,null,null,null,null,null,null,null,null,null,null,null,0]
[30,null,null,null,null,null,null,null,null,null,null,null,null,null,null,null,null,null,null,0]
[31,null,null,null,null,null,null,null,null,null,null,null,null,null,null,null,null,null,null,0]
[32,null,null,null,null,null,null,null,null,null,null,null,null,null,null,null,null,null,null,{"$f":"SUM(I39,K39,M39,O39,Q39,S39)","v":0}]
[33,null,null,null,null,null,null,null,null,null,null,null,null,null,null,null,null,null,null,0]
[34,null,null,null,null,null,null,null,null,null,null,null,null,null,null,null,null,null,null,0]
[35,null,null,null,null,null,null,null,null,null,null,null,null,null,null,null,null,null,null,0]
[36,null,null,null,null,null,null,null,null,null,null,null,null,null,null,null,null,null,null,0]
[37,null,null,null,null,null,null,null,null,null,null,null,null,null,null,null,null,null,null,0]
[38,null,null,null,null,null,null,null,null,null,null,null,null,null,null,null,null,null,null,0]
[39,null,null,null,null,null,null,null,null,null,null,null,null,null,null,null,null,null,null,0]
[40,null,null,null,null,null,null,null,null,null,null,null,null,null,null,null,null,null,null,0]
[41,null,null,null,null,null,null,null,null,null,null,null,null,null,null,null,null,null,null,0]
[42,null,null,null,null,null,null,null,null,null,null,null,null,null,null,null,null,null,null,0]
[43,null,null,null,null,null,null,null,null,null,null,null,null,null,null,null,null,null,null,0]
[44,null,null,null,null,null,null,null,null,null,null,null,null,null,null,null,null,null,null,0]
[45,null,null,null,null,null,null,null,null,null,null,null,null,null,null,null,null,null,null,0]
[46,null,null,null,null,null,null,null,null,null,null,null,null,null,null,null,null,null,null,0]
[47,null,null,null,null,null,null,null,null,null,null,null,null,null,null,null,null,null,null,0]
[48,null,null,null,null,null,null,null,null,null,null,null,null,null,null,null,null,null,null,0]
[49,null,null,null,null,null,null,null,null,null,null,null,null,null,null,null,null,null,null,0]
[50,null,null,null,null,null,null,null,null,null,null,null,null,null,null,null,null,null,null,0]
[51,null,null,null,null,null,null,null,null,null,null,null,null,null,null,null,null,null,null,0]
[52,null,null,null,null,null,null,null,null,null,null,null,null,null,null,null,null,null,null,0]
[53,null,null,null,null,null,null,null,null,null,null,null,null,null,null,null,null,null,null,0]
[54,null,null,null,null,null,null,null,null,null,null,null,null,null,null,null,null,null,null,0]
[55,null,null,null,null,null,null,null,null,null,null,null,null,null,null,null,null,null,null,0]
[56,null,null,null,null,null,null,null,null,null,null,null,null,null,null,null,null,null,null,0]
[57,null,null,null,null,null,null,null,null,null,null,null,null,null,null,null,null,null,null,0]
[58,null,null,null,null,null,null,null,null,null,null,null,null,null,null,null,null,null,null,0]
[59,null,null,null,null,null,null,null,null,null,null,null,null,null,null,null,null,null,null,0]
[60,null,null,null,null,null,null,null,null,null,null,null,null,null,null,null,null,null,null,0]
[61,null,null,null,null,null,null,null,null,null,null,null,null,null,null,null,null,null,null,0]
[62,null,null,null,null,null,null,null,null,null,null,null,null,null,null,null,null,null,null,0]
[63,null,null,null,null,null,null,null,null,null,null,null,null,null,null,null,null,null,null,0]
[64,null,null,null,null,null,null,null,null,null,null,null,null,null,null,null,null,null,null,{"$f":"SUM(I71,K71,M71,O71,Q71,S71)","v":0}]
[65,null,null,null,null,null,null,null,null,null,null,null,null,null,null,null,null,null,null,0]
[66,null,null,null,null,null,null,null,null,null,null,null,null,null,null,null,null,null,null,0]
[67,null,null,null,null,null,null,null,null,null,null,null,null,null,null,null,null,null,null,0]
[68,null,null,null,null,null,null,null,null,null,null,null,null,null,null,null,null,null,null,0]
[69,null,null,null,null,null,null,null,null,null,null,null,null,null,null,null,null,null,null,0]
[70,null,null,null,null,null,null,null,null,null,null,null,null,null,null,null,null,null,null,0]
[71,null,null,null,null,null,null,null,null,null,null,null,null,null,null,null,null,null,null,0]
[72,null,null,null,null,null,null,null,null,null,null,null,null,null,null,null,null,null,null,0]
[73,null,null,null,null,null,null,null,null,null,null,null,null,null,null,null,null,null,null,0]
[74,null,null,null,null,null,null,null,null,null,null,null,null,null,null,null,null,null,null,0]
[75,null,null,null,null,null,null,null,null,null,null,null,null,null,null,null,null,null,null,0]
[76,null,null,null,null,null,null,null,null,null,null,null,null,null,null,null,null,null,null,0]
[77,null,null,null,null,null,null,null,null,null,null,null,null,null,null,null,null,null,null,0]
[78,null,null,null,null,null,null,null,null,null,null,null,null,null,null,null,null,null,null,0]
[79,null,null,null,null,null,null,null,null,null,null,null,null,null,null,null,null,null,null,0]
[80,null,null,null,null,null,null,null,null,null,null,null,null,null,null,null,null,null,null,0]
[81,null,null,null,null,null,null,null,null,null,null,null,null,null,null,null,null,null,null,0]
[82,null,null,null,null,null,null,null,null,null,null,null,null,null,null,null,null,null,null,0]
[83,null,null,null,null,null,null,null,null,null,null,null,null,null,null,null,null,null,null,0]
[84,null,null,null,null,null,null,null,null,null,null,null,null,null,null,null,null,null,null,0]
[85,null,null,null,null,null,null,null,null,null,null,null,null,null,null,null,null,null,null,0]
[86,null,null,null,null,null,null,null,null,null,null,null,null,null,null,null,null,null,null,0]
[87,null,null,null,null,null,null,null,null,null,null,null,null,null,null,null,null,null,null,0]
[88,null,null,null,null,null,null,null,null,null,null,null,null,null,null,null,null,null,null,0]
[89,null,null,null,null,null,null,null,null,null,null,null,null,null,null,null,null,null,null,0]
[90,null,null,null,null,null,null,null,null,null,null,null,null,null,null,null,null,null,null,0]
[91,null,null,null,null,null,null,null,null,null,null,null,null,null,null,null,null,null,null,0]
[92,null,null,null,null,null,null,null,null,null,null,null,null,null,null,null,null,null,null,0]
[93,null,null,null,null,null,null,null,null,null,null,null,null,null,null,null,null,null,null,0]
[94,null,null,null,null,null,null,null,null,null,null,null,null,null,null,null,null,null,null,0]
[95,null,null,null,null,null,null,null,null,null,null,null,null,null,null,null,null,null,null,0]
[96,null,null,null,null,null,null,null,null,null,null,null,null,null,null,null,null,null,null,{"$f":"SUM(I103,K103,M103,O103,Q103,S103)","v":0}]
[97,null,null,null,null,null,null,null,null,null,null,null,null,null,null,null,null,null,null,0]
[98,null,null,null,null,null,null,null,null,null,null,null,null,null,null,null,null,null,null,0]
[99,null,null,null,null,null,null,null,null,null,null,null,null,null,null,null,null,null,null,0]
[100,null,null,null,null,null,null,null,null,null,null,null,null,null,null,null,null,null,null,0]
[101,null,null,null,null,null,null,null,null,null,null,null,null,null,null,null,null,null,null,0]
[102,null,null,null,null,null,null,null,null,null,null,null,null,null,null,null,null,null,null,0]
[103,null,null,null,null,null,null,null,null,null,null,null,null,null,null,null,null,null,null,0]
[104,null,null,null,null,null,null,null,null,null,null,null,null,null,null,null,null,null,null,0]
[105,null,null,null,null,null,null,null,null,null,null,null,null,null,null,null,null,null,null,0]
[106,null,null,null,null,null,null,null,null,null,null,null,null,null,null,null,null,null,null,0]
[107,null,null,null,null,null,null,null,null,null,null,null,null,null,null,null,null,null,null,0]
[108,null,null,null,null,null,null,null,null,null,null,null,null,null,null,null,null,null,null,0]
[109,null,null,null,null,null,null,null,null,null,null,null,null,null,null,null,null,null,null,0]
[110,null,null,null,null,null,null,null,null,null,null,null,null,null,null,null,null,null,null,0]
[111,null,null,null,null,null,null,null,null,null,null,null,null,null,null,null,null,null,null,0]
[112,null,null,null,null,null,null,null,null,null,null,null,null,null,null,null,null,null,null,0]
[113,null,null,null,null,null,null,null,null,null,null,null,null,null,null,null,null,null,null,0]
[114,null,null,null,null,null,null,null,null,null,null,null,null,null,null,null,null,null,null,0]
[115,null,null,null,null,null,null,null,null,null,null,null,null,null,null,null,null,null,null,0]
[116,null,null,null,null,null,null,null,null,null,null,null,null,null,null,null,null,null,null,0]
[117,null,null,null,null,null,null,null,null,null,null,null,null,null,null,null,null,null,null,0]
[118,null,null,null,null,null,null,null,null,null,null,null,null,null,null,null,null,null,null,0]
[119,null,null,null,null,null,null,null,null,null,null,null,null,null,null,null,null,null,null,0]
[120,null,null,null,null,null,null,null,null,null,null,null,null,null,null,null,null,null,null,0]
[121,null,null,null,null,null,null,null,null,null,null,null,null,null,null,null,null,null,null,0]
[122,null,null,null,null,null,null,null,null,null,null,null,null,null,null,null,null,null,null,0]
[123,null,null,null,null,null,null,null,null,null,null,null,null,null,null,null,null,null,null,0]
[124,null,null,null,null,null,null,null,null,null,null,null,null,null,null,null,null,null,null,0]
[125,null,null,null,null,null,null,null,null,null,null,null,null,null,null,null,null,null,null,0]
[126,null,null,null,null,null,null,null,null,null,null,null,null,null,null,null,null,null,null,0]
[127,null,null,null,null,null,null,null,null,null,null,null,null,null,null,null,null,null,null,0]
[128,null,null,null,null,null,null,null,null,null,null,null,null,null,null,null,null,null,null,{"$f":"SUM(I135,K135,M135,O135,Q135,S135)","v":0}]
[129,null,null,null,null,null,null,null,null,null,null,null,null,null,null,null,null,null,null,0]
[130,null,null,null,null,null,null,null,null,null,null,null,null,null,null,null,null,null,null,0]
[131,null,null,null,null,null,null,null,null,null,null,null,null,null,null,null,null,null,null,0]
[132,null,null,null,null,null,null,null,null,null,null,null,null,null,null,null,null,null,null,0]
[133,null,null,null,null,null,null,null,null,null,null,null,null,null,null,null,null,null,null,0]
[134,null,null,null,null,null,null,null,null,null,null,null,null,null,null,null,null,null,null,0]
[135,null,null,null,null,null,null,null,null,null,null,null,null,null,null,null,null,null,null,0]
[136,null,null,null,null,null,null,null,null,null,null,null,null,null,null,null,null,null,null,0]
[137,null,null,null,null,null,null,null,null,null,null,null,null,null,null,null,null,null,null,0]
[138,null,null,null,null,null,null,null,null,null,null,null,null,null,null,null,null,null,null,0]
[139,null,null,null,null,null,null,null,null,null,null,null,null,null,null,null,null,null,null,0]
[140,null,null,null,null,null,null,null,null,null,null,null,null,null,null,null,null,null,null,0]
[141,null,null,null,null,null,null,null,null,null,null,null,null,null,null,null,null,null,null,0]
[142,null,null,null,null,null,null,null,null,null,null,null,null,null,null,null,null,null,null,0]
[143,null,null,null,null,null,null,null,null,null,null,null,null,null,null,null,null,null,null,0]
[144,null,null,null,null,null,null,null,null,null,null,null,null,null,null,null,null,null,null,0]
[145,null,null,null,null,null,null,null,null,null,null,null,null,null,null,null,null,null,null,0]
[146,null,null,null,null,null,null,null,null,null,null,null,null,null,null,null,null,null,null,0]
[147,null,null,null,null,null,null,null,null,null,null,null,null,null,null,null,null,null,null,0]
[148,null,null,null,null,null,null,null,null,null,null,null,null,null,null,null,null,null,null,0]
[149,null,null,null,null,null,null,null,null,null,null,null,null,null,null,null,null,null,null,0]
[150,null,null,null,null,null,null,null,null,null,null,null,null,null,null,null,null,null,null,0]

{"sheet":"Volunteers - Feb","index":4,"n_rows":157,"n_cols":22,"rows_kept":157,"cut":false,"hidden":false,"merged":[[0,0,4,0],[0,13,1,19],[1,2,1,5],[1,6,1,7],[1,8,1,12],[2,1,4,1],[2,2,4,2],[3,3,3,6],[3,7,3,19]]}
["Keystone SMILES AmeriCorps","Volunteers and Service-Learning Students Roster",null,null,null,null,null,null,null,null,null,null,null,"Rosters are due via Email on November 15th, Feburary 15th, May 15th, and at the end of the Member's term.  This Roster, plus the reporting form, great story and photographs, together, comprise the member's complete Quarterly Report.  All Members are expected to recruit and report  volunteers or service learning participants and corresponding service hours."]
[null,"Member Name:",null,null,null,null,"Host Site:"]
[null,"Volunteer or Student Name","Reported as \"New\" in Nov, Feb, May or Final"]
[null,null,null,"Type of Volunteer",null,null,null,"NOVEMBER - JANUARY,  Service Hours and Dates:",null,null,null,null,null,null,null,null,null,null,null,null,null," "]
[null,null,null,"Youth","College Student","Baby Boomer","Other","Date:","Hrs.","Date","Hrs.","Date:","Hrs.","Date:","Hrs.","Date:","Hrs.","Date","Hrs.","TOTAL:"]
["TOTALS:",{"$f":"COUNTA(B8:B157)","v":0},null,{"$f":"COUNTA(D8:D157)","v":0},{"$f":"COUNTA(E8:E157)","v":0},0,0,null,null,null,null,null,null,null,null,null,null,null,null,{"$f":"SUM(T8:T157)","v":0}]
["For Example","Caroline Hastings","November","x",null,null,null,"2010-08-31",3,"2010-12-15",2,"2010-01-11",8,"2010-02-10",4,"2010-03-08",3,"2010-04-12",4,{"$f":"SUM(I7,K7,M7,O7,Q7,S7)","v":24}]
[1,null,null,null,null,null,null,null,null,null,null,null,null,null,null,null,null,null,null,0]
[2,null,null,null,null,null,null,null,null,null,null,null,null,null,null,null,null,null,null,0]
[3,null,null,null,null,null,null,null,null,null,null,null,null,null,null,null,null,null,null,0]
[4,null,null,null,null,null,null,null,null,null,null,null,null,null,null,null,null,null,null,0]
[5,null,null,null,null,null,null,null,null,null,null,null,null,null,null,null,null,null,null,0]
[6,null,null,null,null,null,null,null,null,null,null,null,null,null,null,null,null,null,null,0]
[7,null,null,null,null,null,null,null,null,null,null,null,null,null,null,null,null,null,null,0]
[8,null,null,null,null,null,null,null,null,null,null,null,null,null,null,null,null,null,null,0]
[9,null,null,null,null,null,null,null,null,null,null,null,null,null,null,null,null,null,null,0]
[10,null,null,null,null,null,null,null,null,null,null,null,null,null,null,null,null,null,null,0]
[11,null,null,null,null,null,null,null,null,null,null,null,null,null,null,null,null,null,null,0]
[12,null,null,null,null,null,null,null,null,null,null,null,null,null,null,null,null,null,null,0]
[13,null,null,null,null,null,null,null,null,null,null,null,null,null,null,null,null,null,null,0]
[14,null,null,null,null,null,null,null,null,null,null,null,null,null,null,null,null,null,null,0]
[15,null,null,null,null,null,null,null,null,null,null,null,null,null,null,null,null,null,null,0]
[16,null,null,null,null,null,null,null,null,null,null,null,null,null,null,null,null,null,null,0]
[17,null,null,null,null,null,null,null,null,null,null,null,null,null,null,null,null,null,null,0]
[18,null,null,null,null,null,null,null,null,null,null,null,null,null,null,null,null,null,null,0]
[19,null,null,null,null,null,null,null,null,null,null,null,null,null,null,null,null,null,null,0]
[20,null,null,null,null,null,null,null,null,null,null,null,null,null,null,null,null,null,null,0]
[21,null,null,null,null,null,null,null,null,null,null,null,null,null,null,null,null,null,null,0]
[22,null,null,null,null,null,null,null,null,null,null,null,null,null,null,null,null,null,null,0]
[23,null,null,null,null,null,null,null,null,null,null,null,null,null,null,null,null,null,null,0]
[24,null,null,null,null,null,null,null,null,null,null,null,null,null,null,null,null,null,null,0]
[25,null,null,null,null,null,null,null,null,null,null,null,null,null,null,null,null,null,null,0]
[26,null,null,null,null,null,null,null,null,null,null,null,null,null,null,null,null,null,null,0]
[27,null,null,null,null,null,null,null,null,null,null,null,null,null,null,null,null,null,null,0]
[28,null,null,null,null,null,null,null,null,null,null,null,null,null,null,null,null,null,null,0]
[29,null,null,null,null,null,null,null,null,null,null,null,null,null,null,null,null,null,null,0]
[30,null,null,null,null,null,null,null,null,null,null,null,null,null,null,null,null,null,null,0]
[31,null,null,null,null,null,null,null,null,null,null,null,null,null,null,null,null,null,null,0]
[32,null,null,null,null,null,null,null,null,null,null,null,null,null,null,null,null,null,null,{"$f":"SUM(I39,K39,M39,O39,Q39,S39)","v":0}]
[33,null,null,null,null,null,null,null,null,null,null,null,null,null,null,null,null,null,null,0]
[34,null,null,null,null,null,null,null,null,null,null,null,null,null,null,null,null,null,null,0]
[35,null,null,null,null,null,null,null,null,null,null,null,null,null,null,null,null,null,null,0]
[36,null,null,null,null,null,null,null,null,null,null,null,null,null,null,null,null,null,null,0]
[37,null,null,null,null,null,null,null,null,null,null,null,null,null,null,null,null,null,null,0]
[38,null,null,null,null,null,null,null,null,null,null,null,null,null,null,null,null,null,null,0]
[39,null,null,null,null,null,null,null,null,null,null,null,null,null,null,null,null,null,null,0]
[40,null,null,null,null,null,null,null,null,null,null,null,null,null,null,null,null,null,null,0]
[41,null,null,null,null,null,null,null,null,null,null,null,null,null,null,null,null,null,null,0]
[42,null,null,null,null,null,null,null,null,null,null,null,null,null,null,null,null,null,null,0]
[43,null,null,null,null,null,null,null,null,null,null,null,null,null,null,null,null,null,null,0]
[44,null,null,null,null,null,null,null,null,null,null,null,null,null,null,null,null,null,null,0]
[45,null,null,null,null,null,null,null,null,null,null,null,null,null,null,null,null,null,null,0]
[46,null,null,null,null,null,null,null,null,null,null,null,null,null,null,null,null,null,null,0]
[47,null,null,null,null,null,null,null,null,null,null,null,null,null,null,null,null,null,null,0]
[48,null,null,null,null,null,null,null,null,null,null,null,null,null,null,null,null,null,null,0]
[49,null,null,null,null,null,null,null,null,null,null,null,null,null,null,null,null,null,null,0]
[50,null,null,null,null,null,null,null,null,null,null,null,null,null,null,null,null,null,null,0]
[51,null,null,null,null,null,null,null,null,null,null,null,null,null,null,null,null,null,null,0]
[52,null,null,null,null,null,null,null,null,null,null,null,null,null,null,null,null,null,null,0]
[53,null,null,null,null,null,null,null,null,null,null,null,null,null,null,null,null,null,null,0]
[54,null,null,null,null,null,null,null,null,null,null,null,null,null,null,null,null,null,null,0]
[55,null,null,null,null,null,null,null,null,null,null,null,null,null,null,null,null,null,null,0]
[56,null,null,null,null,null,null,null,null,null,null,null,null,null,null,null,null,null,null,0]
[57,null,null,null,null,null,null,null,null,null,null,null,null,null,null,null,null,null,null,0]
[58,null,null,null,null,null,null,null,null,null,null,null,null,null,null,null,null,null,null,0]
[59,null,null,null,null,null,null,null,null,null,null,null,null,null,null,null,null,null,null,0]
[60,null,null,null,null,null,null,null,null,null,null,null,null,null,null,null,null,null,null,0]
[61,null,null,null,null,null,null,null,null,null,null,null,null,null,null,null,null,null,null,0]
[62,null,null,null,null,null,null,null,null,null,null,null,null,null,null,null,null,null,null,0]
[63,null,null,null,null,null,null,null,null,null,null,null,null,null,null,null,null,null,null,0]
[64,null,null,null,null,null,null,null,null,null,null,null,null,null,null,null,null,null,null,{"$f":"SUM(I71,K71,M71,O71,Q71,S71)","v":0}]
[65,null,null,null,null,null,null,null,null,null,null,null,null,null,null,null,null,null,null,0]
[66,null,null,null,null,null,null,null,null,null,null,null,null,null,null,null,null,null,null,0]
[67,null,null,null,null,null,null,null,null,null,null,null,null,null,null,null,null,null,null,0]
[68,null,null,null,null,null,null,null,null,null,null,null,null,null,null,null,null,null,null,0]
[69,null,null,null,null,null,null,null,null,null,null,null,null,null,null,null,null,null,null,0]
[70,null,null,null,null,null,null,null,null,null,null,null,null,null,null,null,null,null,null,0]
[71,null,null,null,null,null,null,null,null,null,null,null,null,null,null,null,null,null,null,0]
[72,null,null,null,null,null,null,null,null,null,null,null,null,null,null,null,null,null,null,0]
[73,null,null,null,null,null,null,null,null,null,null,null,null,null,null,null,null,null,null,0]
[74,null,null,null,null,null,null,null,null,null,null,null,null,null,null,null,null,null,null,0]
[75,null,null,null,null,null,null,null,null,null,null,null,null,null,null,null,null,null,null,0]
[76,null,null,null,null,null,null,null,null,null,null,null,null,null,null,null,null,null,null,0]
[77,null,null,null,null,null,null,null,null,null,null,null,null,null,null,null,null,null,null,0]
[78,null,null,null,null,null,null,null,null,null,null,null,null,null,null,null,null,null,null,0]
[79,null,null,null,null,null,null,null,null,null,null,null,null,null,null,null,null,null,null,0]
[80,null,null,null,null,null,null,null,null,null,null,null,null,null,null,null,null,null,null,0]
[81,null,null,null,null,null,null,null,null,null,null,null,null,null,null,null,null,null,null,0]
[82,null,null,null,null,null,null,null,null,null,null,null,null,null,null,null,null,null,null,0]
[83,null,null,null,null,null,null,null,null,null,null,null,null,null,null,null,null,null,null,0]
[84,null,null,null,null,null,null,null,null,null,null,null,null,null,null,null,null,null,null,0]
[85,null,null,null,null,null,null,null,null,null,null,null,null,null,null,null,null,null,null,0]
[86,null,null,null,null,null,null,null,null,null,null,null,null,null,null,null,null,null,null,0]
[87,null,null,null,null,null,null,null,null,null,null,null,null,null,null,null,null,null,null,0]
[88,null,null,null,null,null,null,null,null,null,null,null,null,null,null,null,null,null,null,0]
[89,null,null,null,null,null,null,null,null,null,null,null,null,null,null,null,null,null,null,0]
[90,null,null,null,null,null,null,null,null,null,null,null,null,null,null,null,null,null,null,0]
[91,null,null,null,null,null,null,null,null,null,null,null,null,null,null,null,null,null,null,0]
[92,null,null,null,null,null,null,null,null,null,null,null,null,null,null,null,null,null,null,0]
[93,null,null,null,null,null,null,null,null,null,null,null,null,null,null,null,null,null,null,0]
[94,null,null,null,null,null,null,null,null,null,null,null,null,null,null,null,null,null,null,0]
[95,null,null,null,null,null,null,null,null,null,null,null,null,null,null,null,null,null,null,0]
[96,null,null,null,null,null,null,null,null,null,null,null,null,null,null,null,null,null,null,{"$f":"SUM(I103,K103,M103,O103,Q103,S103)","v":0}]
[97,null,null,null,null,null,null,null,null,null,null,null,null,null,null,null,null,null,null,0]
[98,null,null,null,null,null,null,null,null,null,null,null,null,null,null,null,null,null,null,0]
[99,null,null,null,null,null,null,null,null,null,null,null,null,null,null,null,null,null,null,0]
[100,null,null,null,null,null,null,null,null,null,null,null,null,null,null,null,null,null,null,0]
[101,null,null,null,null,null,null,null,null,null,null,null,null,null,null,null,null,null,null,0]
[102,null,null,null,null,null,null,null,null,null,null,null,null,null,null,null,null,null,null,0]
[103,null,null,null,null,null,null,null,null,null,null,null,null,null,null,null,null,null,null,0]
[104,null,null,null,null,null,null,null,null,null,null,null,null,null,null,null,null,null,null,0]
[105,null,null,null,null,null,null,null,null,null,null,null,null,null,null,null,null,null,null,0]
[106,null,null,null,null,null,null,null,null,null,null,null,null,null,null,null,null,null,null,0]
[107,null,null,null,null,null,null,null,null,null,null,null,null,null,null,null,null,null,null,0]
[108,null,null,null,null,null,null,null,null,null,null,null,null,null,null,null,null,null,null,0]
[109,null,null,null,null,null,null,null,null,null,null,null,null,null,null,null,null,null,null,0]
[110,null,null,null,null,null,null,null,null,null,null,null,null,null,null,null,null,null,null,0]
[111,null,null,null,null,null,null,null,null,null,null,null,null,null,null,null,null,null,null,0]
[112,null,null,null,null,null,null,null,null,null,null,null,null,null,null,null,null,null,null,0]
[113,null,null,null,null,null,null,null,null,null,null,null,null,null,null,null,null,null,null,0]
[114,null,null,null,null,null,null,null,null,null,null,null,null,null,null,null,null,null,null,0]
[115,null,null,null,null,null,null,null,null,null,null,null,null,null,null,null,null,null,null,0]
[116,null,null,null,null,null,null,null,null,null,null,null,null,null,null,null,null,null,null,0]
[117,null,null,null,null,null,null,null,null,null,null,null,null,null,null,null,null,null,null,0]
[118,null,null,null,null,null,null,null,null,null,null,null,null,null,null,null,null,null,null,0]
[119,null,null,null,null,null,null,null,null,null,null,null,null,null,null,null,null,null,null,0]
[120,null,null,null,null,null,null,null,null,null,null,null,null,null,null,null,null,null,null,0]
[121,null,null,null,null,null,null,null,null,null,null,null,null,null,null,null,null,null,null,0]
[122,null,null,null,null,null,null,null,null,null,null,null,null,null,null,null,null,null,null,0]
[123,null,null,null,null,null,null,null,null,null,null,null,null,null,null,null,null,null,null,0]
[124,null,null,null,null,null,null,null,null,null,null,null,null,null,null,null,null,null,null,0]
[125,null,null,null,null,null,null,null,null,null,null,null,null,null,null,null,null,null,null,0]
[126,null,null,null,null,null,null,null,null,null,null,null,null,null,null,null,null,null,null,0]
[127,null,null,null,null,null,null,null,null,null,null,null,null,null,null,null,null,null,null,0]
[128,null,null,null,null,null,null,null,null,null,null,null,null,null,null,null,null,null,null,{"$f":"SUM(I135,K135,M135,O135,Q135,S135)","v":0}]
[129,null,null,null,null,null,null,null,null,null,null,null,null,null,null,null,null,null,null,0]
[130,null,null,null,null,null,null,null,null,null,null,null,null,null,null,null,null,null,null,0]
[131,null,null,null,null,null,null,null,null,null,null,null,null,null,null,null,null,null,null,0]
[132,null,null,null,null,null,null,null,null,null,null,null,null,null,null,null,null,null,null,0]
[133,null,null,null,null,null,null,null,null,null,null,null,null,null,null,null,null,null,null,0]
[134,null,null,null,null,null,null,null,null,null,null,null,null,null,null,null,null,null,null,0]
[135,null,null,null,null,null,null,null,null,null,null,null,null,null,null,null,null,null,null,0]
[136,null,null,null,null,null,null,null,null,null,null,null,null,null,null,null,null,null,null,0]
[137,null,null,null,null,null,null,null,null,null,null,null,null,null,null,null,null,null,null,0]
[138,null,null,null,null,null,null,null,null,null,null,null,null,null,null,null,null,null,null,0]
[139,null,null,null,null,null,null,null,null,null,null,null,null,null,null,null,null,null,null,0]
[140,null,null,null,null,null,null,null,null,null,null,null,null,null,null,null,null,null,null,0]
[141,null,null,null,null,null,null,null,null,null,null,null,null,null,null,null,null,null,null,0]
[142,null,null,null,null,null,null,null,null,null,null,null,null,null,null,null,null,null,null,0]
[143,null,null,null,null,null,null,null,null,null,null,null,null,null,null,null,null,null,null,0]
[144,null,null,null,null,null,null,null,null,null,null,null,null,null,null,null,null,null,null,0]
[145,null,null,null,null,null,null,null,null,null,null,null,null,null,null,null,null,null,null,0]
[146,null,null,null,null,null,null,null,null,null,null,null,null,null,null,null,null,null,null,0]
[147,null,null,null,null,null,null,null,null,null,null,null,null,null,null,null,null,null,null,0]
[148,null,null,null,null,null,null,null,null,null,null,null,null,null,null,null,null,null,null,0]
[149,null,null,null,null,null,null,null,null,null,null,null,null,null,null,null,null,null,null,0]
[150,null,null,null,null,null,null,null,null,null,null,null,null,null,null,null,null,null,null,0]

{"sheet":"Volunteers - May","index":5,"n_rows":157,"n_cols":22,"rows_kept":157,"cut":false,"hidden":false,"merged":[[0,0,4,0],[0,13,1,19],[1,2,1,5],[1,6,1,7],[1,8,1,12],[2,1,4,1],[2,2,4,2],[3,3,3,6],[3,7,3,19]]}
["Keystone SMILES AmeriCorps","Volunteers and Service-Learning Students Roster",null,null,null,null,null,null,null,null,null,null,null,"Rosters are due via Email on November 15th, Feburary 15th, May 15th, and at the end of the Member's term.  This Roster, plus the reporting form, great story and photographs, together, comprise the member's complete Quarterly Report.  All Members are expected to recruit and report  volunteers or service learning participants and corresponding service hours."]
[null,"Member Name:",null,null,null,null,"Host Site:"]
[null,"Volunteer or Student Name","Reported as \"New\" in Nov, Feb, May or Final"]
[null,null,null,"Type of Volunteer",null,null,null,"FEBRUARY - APRIL,  Service Hours and Dates:",null,null,null,null,null,null,null,null,null,null,null,null,null," "]
[null,null,null,"Youth","College Student","Baby Boomer","Other","Date:","Hrs.","Date","Hrs.","Date:","Hrs.","Date:","Hrs.","Date:","Hrs.","Date","Hrs.","TOTAL:"]
["TOTALS:",{"$f":"COUNTA(B8:B157)","v":0},null,{"$f":"COUNTA(D8:D157)","v":0},{"$f":"COUNTA(E8:E157)","v":0},0,0,null,null,null,null,null,null,null,null,null,null,null,null,{"$f":"SUM(T8:T157)","v":0}]
["For Example","Caroline Hastings","November","x",null,null,null,"2010-08-31",3,"2010-12-15",2,"2010-01-11",8,"2010-02-10",4,"2010-03-08",3,"2010-04-12",4,{"$f":"SUM(I7,K7,M7,O7,Q7,S7)","v":24}]
[1,null,null,null,null,null,null,null,null,null,null,null,null,null,null,null,null,null,null,0]
[2,null,null,null,null,null,null,null,null,null,null,null,null,null,null,null,null,null,null,0]
[3,null,null,null,null,null,null,null,null,null,null,null,null,null,null,null,null,null,null,0]
[4,null,null,null,null,null,null,null,null,null,null,null,null,null,null,null,null,null,null,0]
[5,null,null,null,null,null,null,null,null,null,null,null,null,null,null,null,null,null,null,0]
[6,null,null,null,null,null,null,null,null,null,null,null,null,null,null,null,null,null,null,0]
[7,null,null,null,null,null,null,null,null,null,null,null,null,null,null,null,null,null,null,0]
[8,null,null,null,null,null,null,null,null,null,null,null,null,null,null,null,null,null,null,0]
[9,null,null,null,null,null,null,null,null,null,null,null,null,null,null,null,null,null,null,0]
[10,null,null,null,null,null,null,null,null,null,null,null,null,null,null,null,null,null,null,0]
[11,null,null,null,null,null,null,null,null,null,null,null,null,null,null,null,null,null,null,0]
[12,null,null,null,null,null,null,null,null,null,null,null,null,null,null,null,null,null,null,0]
[13,null,null,null,null,null,null,null,null,null,null,null,null,null,null,null,null,null,null,0]
[14,null,null,null,null,null,null,null,null,null,null,null,null,null,null,null,null,null,null,0]
[15,null,null,null,null,null,null,null,null,null,null,null,null,null,null,null,null,null,null,0]
[16,null,null,null,null,null,null,null,null,null,null,null,null,null,null,null,null,null,null,0]
[17,null,null,null,null,null,null,null,null,null,null,null,null,null,null,null,null,null,null,0]
[18,null,null,null,null,null,null,null,null,null,null,null,null,null,null,null,null,null,null,0]
[19,null,null,null,null,null,null,null,null,null,null,null,null,null,null,null,null,null,null,0]
[20,null,null,null,null,null,null,null,null,null,null,null,null,null,null,null,null,null,null,0]
[21,null,null,null,null,null,null,null,null,null,null,null,null,null,null,null,null,null,null,0]
[22,null,null,null,null,null,null,null,null,null,null,null,null,null,null,null,null,null,null,0]
[23,null,null,null,null,null,null,null,null,null,null,null,null,null,null,null,null,null,null,0]
[24,null,null,null,null,null,null,null,null,null,null,null,null,null,null,null,null,null,null,0]
[25,null,null,null,null,null,null,null,null,null,null,null,null,null,null,null,null,null,null,0]
[26,null,null,null,null,null,null,null,null,null,null,null,null,null,null,null,null,null,null,0]
[27,null,null,null,null,null,null,null,null,null,null,null,null,null,null,null,null,null,null,0]
[28,null,null,null,null,null,null,null,null,null,null,null,null,null,null,null,null,null,null,0]
[29,null,null,null,null,null,null,null,null,null,null,null,null,null,null,null,null,null,null,0]
[30,null,null,null,null,null,null,null,null,null,null,null,null,null,null,null,null,null,null,0]
[31,null,null,null,null,null,null,null,null,null,null,null,null,null,null,null,null,null,null,0]
[32,null,null,null,null,null,null,null,null,null,null,null,null,null,null,null,null,null,null,{"$f":"SUM(I39,K39,M39,O39,Q39,S39)","v":0}]
[33,null,null,null,null,null,null,null,null,null,null,null,null,null,null,null,null,null,null,0]
[34,null,null,null,null,null,null,null,null,null,null,null,null,null,null,null,null,null,null,0]
[35,null,null,null,null,null,null,null,null,null,null,null,null,null,null,null,null,null,null,0]
[36,null,null,null,null,null,null,null,null,null,null,null,null,null,null,null,null,null,null,0]
[37,null,null,null,null,null,null,null,null,null,null,null,null,null,null,null,null,null,null,0]
[38,null,null,null,null,null,null,null,null,null,null,null,null,null,null,null,null,null,null,0]
[39,null,null,null,null,null,null,null,null,null,null,null,null,null,null,null,null,null,null,0]
[40,null,null,null,null,null,null,null,null,null,null,null,null,null,null,null,null,null,null,0]
[41,null,null,null,null,null,null,null,null,null,null,null,null,null,null,null,null,null,null,0]
[42,null,null,null,null,null,null,null,null,null,null,null,null,null,null,null,null,null,null,0]
[43,null,null,null,null,null,null,null,null,null,null,null,null,null,null,null,null,null,null,0]
[44,null,null,null,null,null,null,null,null,null,null,null,null,null,null,null,null,null,null,0]
[45,null,null,null,null,null,null,null,null,null,null,null,null,null,null,null,null,null,null,0]
[46,null,null,null,null,null,null,null,null,null,null,null,null,null,null,null,null,null,null,0]
[47,null,null,null,null,null,null,null,null,null,null,null,null,null,null,null,null,null,null,0]
[48,null,null,null,null,null,null,null,null,null,null,null,null,null,null,null,null,null,null,0]
[49,null,null,null,null,null,null,null,null,null,null,null,null,null,null,null,null,null,null,0]
[50,null,null,null,null,null,null,null,null,null,null,null,null,null,null,null,null,null,null,0]
[51,null,null,null,null,null,null,null,null,null,null,null,null,null,null,null,null,null,null,0]
[52,null,null,null,null,null,null,null,null,null,null,null,null,null,null,null,null,null,null,0]
[53,null,null,null,null,null,null,null,null,null,null,null,null,null,null,null,null,null,null,0]
[54,null,null,null,null,null,null,null,null,null,null,null,null,null,null,null,null,null,null,0]
[55,null,null,null,null,null,null,null,null,null,null,null,null,null,null,null,null,null,null,0]
[56,null,null,null,null,null,null,null,null,null,null,null,null,null,null,null,null,null,null,0]
[57,null,null,null,null,null,null,null,null,null,null,null,null,null,null,null,null,null,null,0]
[58,null,null,null,null,null,null,null,null,null,null,null,null,null,null,null,null,null,null,0]
[59,null,null,null,null,null,null,null,null,null,null,null,null,null,null,null,null,null,null,0]
[60,null,null,null,null,null,null,null,null,null,null,null,null,null,null,null,null,null,null,0]
[61,null,null,null,null,null,null,null,null,null,null,null,null,null,null,null,null,null,null,0]
[62,null,null,null,null,null,null,null,null,null,null,null,null,null,null,null,null,null,null,0]
[63,null,null,null,null,null,null,null,null,null,null,null,null,null,null,null,null,null,null,0]
[64,null,null,null,null,null,null,null,null,null,null,null,null,null,null,null,null,null,null,{"$f":"SUM(I71,K71,M71,O71,Q71,S71)","v":0}]
[65,null,null,null,null,null,null,null,null,null,null,null,null,null,null,null,null,null,null,0]
[66,null,null,null,null,null,null,null,null,null,null,null,null,null,null,null,null,null,null,0]
[67,null,null,null,null,null,null,null,null,null,null,null,null,null,null,null,null,null,null,0]
[68,null,null,null,null,null,null,null,null,null,null,null,null,null,null,null,null,null,null,0]
[69,null,null,null,null,null,null,null,null,null,null,null,null,null,null,null,null,null,null,0]
[70,null,null,null,null,null,null,null,null,null,null,null,null,null,null,null,null,null,null,0]
[71,null,null,null,null,null,null,null,null,null,null,null,null,null,null,null,null,null,null,0]
[72,null,null,null,null,null,null,null,null,null,null,null,null,null,null,null,null,null,null,0]
[73,null,null,null,null,null,null,null,null,null,null,null,null,null,null,null,null,null,null,0]
[74,null,null,null,null,null,null,null,null,null,null,null,null,null,null,null,null,null,null,0]
[75,null,null,null,null,null,null,null,null,null,null,null,null,null,null,null,null,null,null,0]
[76,null,null,null,null,null,null,null,null,null,null,null,null,null,null,null,null,null,null,0]
[77,null,null,null,null,null,null,null,null,null,null,null,null,null,null,null,null,null,null,0]
[78,null,null,null,null,null,null,null,null,null,null,null,null,null,null,null,null,null,null,0]
[79,null,null,null,null,null,null,null,null,null,null,null,null,null,null,null,null,null,null,0]
[80,null,null,null,null,null,null,null,null,null,null,null,null,null,null,null,null,null,null,0]
[81,null,null,null,null,null,null,null,null,null,null,null,null,null,null,null,null,null,null,0]
[82,null,null,null,null,null,null,null,null,null,null,null,null,null,null,null,null,null,null,0]
[83,null,null,null,null,null,null,null,null,null,null,null,null,null,null,null,null,null,null,0]
[84,null,null,null,null,null,null,null,null,null,null,null,null,null,null,null,null,null,null,0]
[85,null,null,null,null,null,null,null,null,null,null,null,null,null,null,null,null,null,null,0]
[86,null,null,null,null,null,null,null,null,null,null,null,null,null,null,null,null,null,null,0]
[87,null,null,null,null,null,null,null,null,null,null,null,null,null,null,null,null,null,null,0]
[88,null,null,null,null,null,null,null,null,null,null,null,null,null,null,null,null,null,null,0]
[89,null,null,null,null,null,null,null,null,null,null,null,null,null,null,null,null,null,null,0]
[90,null,null,null,null,null,null,null,null,null,null,null,null,null,null,null,null,null,null,0]
[91,null,null,null,null,null,null,null,null,null,null,null,null,null,null,null,null,null,null,0]
[92,null,null,null,null,null,null,null,null,null,null,null,null,null,null,null,null,null,null,0]
[93,null,null,null,null,null,null,null,null,null,null,null,null,null,null,null,null,null,null,0]
[94,null,null,null,null,null,null,null,null,null,null,null,null,null,null,null,null,null,null,0]
[95,null,null,null,null,null,null,null,null,null,null,null,null,null,null,null,null,null,null,0]
[96,null,null,null,null,null,null,null,null,null,null,null,null,null,null,null,null,null,null,{"$f":"SUM(I103,K103,M103,O103,Q103,S103)","v":0}]
[97,null,null,null,null,null,null,null,null,null,null,null,null,null,null,null,null,null,null,0]
[98,null,null,null,null,null,null,null,null,null,null,null,null,null,null,null,null,null,null,0]
[99,null,null,null,null,null,null,null,null,null,null,null,null,null,null,null,null,null,null,0]
[100,null,null,null,null,null,null,null,null,null,null,null,null,null,null,null,null,null,null,0]
[101,null,null,null,null,null,null,null,null,null,null,null,null,null,null,null,null,null,null,0]
[102,null,null,null,null,null,null,null,null,null,null,null,null,null,null,null,null,null,null,0]
[103,null,null,null,null,null,null,null,null,null,null,null,null,null,null,null,null,null,null,0]
[104,null,null,null,null,null,null,null,null,null,null,null,null,null,null,null,null,null,null,0]
[105,null,null,null,null,null,null,null,null,null,null,null,null,null,null,null,null,null,null,0]
[106,null,null,null,null,null,null,null,null,null,null,null,null,null,null,null,null,null,null,0]
[107,null,null,null,null,null,null,null,null,null,null,null,null,null,null,null,null,null,null,0]
[108,null,null,null,null,null,null,null,null,null,null,null,null,null,null,null,null,null,null,0]
[109,null,null,null,null,null,null,null,null,null,null,null,null,null,null,null,null,null,null,0]
[110,null,null,null,null,null,null,null,null,null,null,null,null,null,null,null,null,null,null,0]
[111,null,null,null,null,null,null,null,null,null,null,null,null,null,null,null,null,null,null,0]
[112,null,null,null,null,null,null,null,null,null,null,null,null,null,null,null,null,null,null,0]
[113,null,null,null,null,null,null,null,null,null,null,null,null,null,null,null,null,null,null,0]
[114,null,null,null,null,null,null,null,null,null,null,null,null,null,null,null,null,null,null,0]
[115,null,null,null,null,null,null,null,null,null,null,null,null,null,null,null,null,null,null,0]
[116,null,null,null,null,null,null,null,null,null,null,null,null,null,null,null,null,null,null,0]
[117,null,null,null,null,null,null,null,null,null,null,null,null,null,null,null,null,null,null,0]
[118,null,null,null,null,null,null,null,null,null,null,null,null,null,null,null,null,null,null,0]
[119,null,null,null,null,null,null,null,null,null,null,null,null,null,null,null,null,null,null,0]
[120,null,null,null,null,null,null,null,null,null,null,null,null,null,null,null,null,null,null,0]
[121,null,null,null,null,null,null,null,null,null,null,null,null,null,null,null,null,null,null,0]
[122,null,null,null,null,null,null,null,null,null,null,null,null,null,null,null,null,null,null,0]
[123,null,null,null,null,null,null,null,null,null,null,null,null,null,null,null,null,null,null,0]
[124,null,null,null,null,null,null,null,null,null,null,null,null,null,null,null,null,null,null,0]
[125,null,null,null,null,null,null,null,null,null,null,null,null,null,null,null,null,null,null,0]
[126,null,null,null,null,null,null,null,null,null,null,null,null,null,null,null,null,null,null,0]
[127,null,null,null,null,null,null,null,null,null,null,null,null,null,null,null,null,null,null,0]
[128,null,null,null,null,null,null,null,null,null,null,null,null,null,null,null,null,null,null,{"$f":"SUM(I135,K135,M135,O135,Q135,S135)","v":0}]
[129,null,null,null,null,null,null,null,null,null,null,null,null,null,null,null,null,null,null,0]
[130,null,null,null,null,null,null,null,null,null,null,null,null,null,null,null,null,null,null,0]
[131,null,null,null,null,null,null,null,null,null,null,null,null,null,null,null,null,null,null,0]
[132,null,null,null,null,null,null,null,null,null,null,null,null,null,null,null,null,null,null,0]
[133,null,null,null,null,null,null,null,null,null,null,null,null,null,null,null,null,null,null,0]
[134,null,null,null,null,null,null,null,null,null,null,null,null,null,null,null,null,null,null,0]
[135,null,null,null,null,null,null,null,null,null,null,null,null,null,null,null,null,null,null,0]
[136,null,null,null,null,null,null,null,null,null,null,null,null,null,null,null,null,null,null,0]
[137,null,null,null,null,null,null,null,null,null,null,null,null,null,null,null,null,null,null,0]
[138,null,null,null,null,null,null,null,null,null,null,null,null,null,null,null,null,null,null,0]
[139,null,null,null,null,null,null,null,null,null,null,null,null,null,null,null,null,null,null,0]
[140,null,null,null,null,null,null,null,null,null,null,null,null,null,null,null,null,null,null,0]
[141,null,null,null,null,null,null,null,null,null,null,null,null,null,null,null,null,null,null,0]
[142,null,null,null,null,null,null,null,null,null,null,null,null,null,null,null,null,null,null,0]
[143,null,null,null,null,null,null,null,null,null,null,null,null,null,null,null,null,null,null,0]
[144,null,null,null,null,null,null,null,null,null,null,null,null,null,null,null,null,null,null,0]
[145,null,null,null,null,null,null,null,null,null,null,null,null,null,null,null,null,null,null,0]
[146,null,null,null,null,null,null,null,null,null,null,null,null,null,null,null,null,null,null,0]
[147,null,null,null,null,null,null,null,null,null,null,null,null,null,null,null,null,null,null,0]
[148,null,null,null,null,null,null,null,null,null,null,null,null,null,null,null,null,null,null,0]
[149,null,null,null,null,null,null,null,null,null,null,null,null,null,null,null,null,null,null,0]
[150,null,null,null,null,null,null,null,null,null,null,null,null,null,null,null,null,null,null,0]

{"sheet":"Volunteers - Final","index":6,"n_rows":157,"n_cols":22,"rows_kept":157,"cut":false,"hidden":false,"merged":[[0,0,4,0],[0,13,1,19],[1,2,1,5],[1,6,1,7],[1,8,1,12],[2,1,4,1],[2,2,4,2],[3,3,3,6],[3,7,3,19]]}
["Keystone SMILES AmeriCorps","Volunteers and Service-Learning Students Roster",null,null,null,null,null,null,null,null,null,null,null,"Rosters are due via Email on November 15th, Feburary 15th, May 15th, and at the end of the Member's term.  This Roster, plus the reporting form, great story and photographs, together, comprise the member's complete Quarterly Report.  All Members are expected to recruit and report  volunteers or service learning participants and corresponding service hours."]
[null,"Member Name:",null,null,null,null,"Host Site:"]
[null,"Volunteer or Student Name","Reported as \"New\" in Nov, Feb, May or Final"]
[null,null,null,"Type of Volunteer",null,null,null,"MAY - AUGUST,  Service Hours and Dates:",null,null,null,null,null,null,null,null,null,null,null,null,null," "]
[null,null,null,"Youth","College Student","Baby Boomer","Other","Date:","Hrs.","Date","Hrs.","Date:","Hrs.","Date:","Hrs.","Date:","Hrs.","Date","Hrs.","TOTAL:"]
["TOTALS:",{"$f":"COUNTA(B8:B157)","v":0},null,{"$f":"COUNTA(D8:D157)","v":0},{"$f":"COUNTA(E8:E157)","v":0},0,0,null,null,null,null,null,null,null,null,null,null,null,null,{"$f":"SUM(T8:T157)","v":0}]
["For Example","Caroline Hastings","November","x",null,null,null,"2010-08-31",3,"2010-12-15",2,"2010-01-11",8,"2010-02-10",4,"2010-03-08",3,"2010-04-12",4,{"$f":"SUM(I7,K7,M7,O7,Q7,S7)","v":24}]
[1,null,null,null,null,null,null,null,null,null,null,null,null,null,null,null,null,null,null,0]
[2,null,null,null,null,null,null,null,null,null,null,null,null,null,null,null,null,null,null,0]
[3,null,null,null,null,null,null,null,null,null,null,null,null,null,null,null,null,null,null,0]
[4,null,null,null,null,null,null,null,null,null,null,null,null,null,null,null,null,null,null,0]
[5,null,null,null,null,null,null,null,null,null,null,null,null,null,null,null,null,null,null,0]
[6,null,null,null,null,null,null,null,null,null,null,null,null,null,null,null,null,null,null,0]
[7,null,null,null,null,null,null,null,null,null,null,null,null,null,null,null,null,null,null,0]
[8,null,null,null,null,null,null,null,null,null,null,null,null,null,null,null,null,null,null,0]
[9,null,null,null,null,null,null,null,null,null,null,null,null,null,null,null,null,null,null,0]
[10,null,null,null,null,null,null,null,null,null,null,null,null,null,null,null,null,null,null,0]
[11,null,null,null,null,null,null,null,null,null,null,null,null,null,null,null,null,null,null,0]
[12,null,null,null,null,null,null,null,null,null,null,null,null,null,null,null,null,null,null,0]
[13,null,null,null,null,null,null,null,null,null,null,null,null,null,null,null,null,null,null,0]
[14,null,null,null,null,null,null,null,null,null,null,null,null,null,null,null,null,null,null,0]
[15,null,null,null,null,null,null,null,null,null,null,null,null,null,null,null,null,null,null,0]
[16,null,null,null,null,null,null,null,null,null,null,null,null,null,null,null,null,null,null,0]
[17,null,null,null,null,null,null,null,null,null,null,null,null,null,null,null,null,null,null,0]
[18,null,null,null,null,null,null,null,null,null,null,null,null,null,null,null,null,null,null,0]
[19,null,null,null,null,null,null,null,null,null,null,null,null,null,null,null,null,null,null,0]
[20,null,null,null,null,null,null,null,null,null,null,null,null,null,null,null,null,null,null,0]
[21,null,null,null,null,null,null,null,null,null,null,null,null,null,null,null,null,null,null,0]
[22,null,null,null,null,null,null,null,null,null,null,null,null,null,null,null,null,null,null,0]
[23,null,null,null,null,null,null,null,null,null,null,null,null,null,null,null,null,null,null,0]
[24,null,null,null,null,null,null,null,null,null,null,null,null,null,null,null,null,null,null,0]
[25,null,null,null,null,null,null,null,null,null,null,null,null,null,null,null,null,null,null,0]
[26,null,null,null,null,null,null,null,null,null,null,null,null,null,null,null,null,null,null,0]
[27,null,null,null,null,null,null,null,null,null,null,null,null,null,null,null,null,null,null,0]
[28,null,null,null,null,null,null,null,null,null,null,null,null,null,null,null,null,null,null,0]
[29,null,null,null,null,null,null,null,null,null,null,null,null,null,null,null,null,null,null,0]
[30,null,null,null,null,null,null,null,null,null,null,null,null,null,null,null,null,null,null,0]
[31,null,null,null,null,null,null,null,null,null,null,null,null,null,null,null,null,null,null,0]
[32,null,null,null,null,null,null,null,null,null,null,null,null,null,null,null,null,null,null,{"$f":"SUM(I39,K39,M39,O39,Q39,S39)","v":0}]
[33,null,null,null,null,null,null,null,null,null,null,null,null,null,null,null,null,null,null,0]
[34,null,null,null,null,null,null,null,null,null,null,null,null,null,null,null,null,null,null,0]
[35,null,null,null,null,null,null,null,null,null,null,null,null,null,null,null,null,null,null,0]
[36,null,null,null,null,null,null,null,null,null,null,null,null,null,null,null,null,null,null,0]
[37,null,null,null,null,null,null,null,null,null,null,null,null,null,null,null,null,null,null,0]
[38,null,null,null,null,null,null,null,null,null,null,null,null,null,null,null,null,null,null,0]
[39,null,null,null,null,null,null,null,null,null,null,null,null,null,null,null,null,null,null,0]
[40,null,null,null,null,null,null,null,null,null,null,null,null,null,null,null,null,null,null,0]
[41,null,null,null,null,null,null,null,null,null,null,null,null,null,null,null,null,null,null,0]
[42,null,null,null,null,null,null,null,null,null,null,null,null,null,null,null,null,null,null,0]
[43,null,null,null,null,null,null,null,null,null,null,null,null,null,null,null,null,null,null,0]
[44,null,null,null,null,null,null,null,null,null,null,null,null,null,null,null,null,null,null,0]
[45,null,null,null,null,null,null,null,null,null,null,null,null,null,null,null,null,null,null,0]
[46,null,null,null,null,null,null,null,null,null,null,null,null,null,null,null,null,null,null,0]
[47,null,null,null,null,null,null,null,null,null,null,null,null,null,null,null,null,null,null,0]
[48,null,null,null,null,null,null,null,null,null,null,null,null,null,null,null,null,null,null,0]
[49,null,null,null,null,null,null,null,null,null,null,null,null,null,null,null,null,null,null,0]
[50,null,null,null,null,null,null,null,null,null,null,null,null,null,null,null,null,null,null,0]
[51,null,null,null,null,null,null,null,null,null,null,null,null,null,null,null,null,null,null,0]
[52,null,null,null,null,null,null,null,null,null,null,null,null,null,null,null,null,null,null,0]
[53,null,null,null,null,null,null,null,null,null,null,null,null,null,null,null,null,null,null,0]
[54,null,null,null,null,null,null,null,null,null,null,null,null,null,null,null,null,null,null,0]
[55,null,null,null,null,null,null,null,null,null,null,null,null,null,null,null,null,null,null,0]
[56,null,null,null,null,null,null,null,null,null,null,null,null,null,null,null,null,null,null,0]
[57,null,null,null,null,null,null,null,null,null,null,null,null,null,null,null,null,null,null,0]
[58,null,null,null,null,null,null,null,null,null,null,null,null,null,null,null,null,null,null,0]
[59,null,null,null,null,null,null,null,null,null,null,null,null,null,null,null,null,null,null,0]
[60,null,null,null,null,null,null,null,null,null,null,null,null,null,null,null,null,null,null,0]
[61,null,null,null,null,null,null,null,null,null,null,null,null,null,null,null,null,null,null,0]
[62,null,null,null,null,null,null,null,null,null,null,null,null,null,null,null,null,null,null,0]
[63,null,null,null,null,null,null,null,null,null,null,null,null,null,null,null,null,null,null,0]
[64,null,null,null,null,null,null,null,null,null,null,null,null,null,null,null,null,null,null,{"$f":"SUM(I71,K71,M71,O71,Q71,S71)","v":0}]
[65,null,null,null,null,null,null,null,null,null,null,null,null,null,null,null,null,null,null,0]
[66,null,null,null,null,null,null,null,null,null,null,null,null,null,null,null,null,null,null,0]
[67,null,null,null,null,null,null,null,null,null,null,null,null,null,null,null,null,null,null,0]
[68,null,null,null,null,null,null,null,null,null,null,null,null,null,null,null,null,null,null,0]
[69,null,null,null,null,null,null,null,null,null,null,null,null,null,null,null,null,null,null,0]
[70,null,null,null,null,null,null,null,null,null,null,null,null,null,null,null,null,null,null,0]
[71,null,null,null,null,null,null,null,null,null,null,null,null,null,null,null,null,null,null,0]
[72,null,null,null,null,null,null,null,null,null,null,null,null,null,null,null,null,null,null,0]
[73,null,null,null,null,null,null,null,null,null,null,null,null,null,null,null,null,null,null,0]
[74,null,null,null,null,null,null,null,null,null,null,null,null,null,null,null,null,null,null,0]
[75,null,null,null,null,null,null,null,null,null,null,null,null,null,null,null,null,null,null,0]
[76,null,null,null,null,null,null,null,null,null,null,null,null,null,null,null,null,null,null,0]
[77,null,null,null,null,null,null,null,null,null,null,null,null,null,null,null,null,null,null,0]
[78,null,null,null,null,null,null,null,null,null,null,null,null,null,null,null,null,null,null,0]
[79,null,null,null,null,null,null,null,null,null,null,null,null,null,null,null,null,null,null,0]
[80,null,null,null,null,null,null,null,null,null,null,null,null,null,null,null,null,null,null,0]
[81,null,null,null,null,null,null,null,null,null,null,null,null,null,null,null,null,null,null,0]
[82,null,null,null,null,null,null,null,null,null,null,null,null,null,null,null,null,null,null,0]
[83,null,null,null,null,null,null,null,null,null,null,null,null,null,null,null,null,null,null,0]
[84,null,null,null,null,null,null,null,null,null,null,null,null,null,null,null,null,null,null,0]
[85,null,null,null,null,null,null,null,null,null,null,null,null,null,null,null,null,null,null,0]
[86,null,null,null,null,null,null,null,null,null,null,null,null,null,null,null,null,null,null,0]
[87,null,null,null,null,null,null,null,null,null,null,null,null,null,null,null,null,null,null,0]
[88,null,null,null,null,null,null,null,null,null,null,null,null,null,null,null,null,null,null,0]
[89,null,null,null,null,null,null,null,null,null,null,null,null,null,null,null,null,null,null,0]
[90,null,null,null,null,null,null,null,null,null,null,null,null,null,null,null,null,null,null,0]
[91,null,null,null,null,null,null,null,null,null,null,null,null,null,null,null,null,null,null,0]
[92,null,null,null,null,null,null,null,null,null,null,null,null,null,null,null,null,null,null,0]
[93,null,null,null,null,null,null,null,null,null,null,null,null,null,null,null,null,null,null,0]
[94,null,null,null,null,null,null,null,null,null,null,null,null,null,null,null,null,null,null,0]
[95,null,null,null,null,null,null,null,null,null,null,null,null,null,null,null,null,null,null,0]
[96,null,null,null,null,null,null,null,null,null,null,null,null,null,null,null,null,null,null,{"$f":"SUM(I103,K103,M103,O103,Q103,S103)","v":0}]
[97,null,null,null,null,null,null,null,null,null,null,null,null,null,null,null,null,null,null,0]
[98,null,null,null,null,null,null,null,null,null,null,null,null,null,null,null,null,null,null,0]
[99,null,null,null,null,null,null,null,null,null,null,null,null,null,null,null,null,null,null,0]
[100,null,null,null,null,null,null,null,null,null,null,null,null,null,null,null,null,null,null,0]
[101,null,null,null,null,null,null,null,null,null,null,null,null,null,null,null,null,null,null,0]
[102,null,null,null,null,null,null,null,null,null,null,null,null,null,null,null,null,null,null,0]
[103,null,null,null,null,null,null,null,null,null,null,null,null,null,null,null,null,null,null,0]
[104,null,null,null,null,null,null,null,null,null,null,null,null,null,null,null,null,null,null,0]
[105,null,null,null,null,null,null,null,null,null,null,null,null,null,null,null,null,null,null,0]
[106,null,null,null,null,null,null,null,null,null,null,null,null,null,null,null,null,null,null,0]
[107,null,null,null,null,null,null,null,null,null,null,null,null,null,null,null,null,null,null,0]
[108,null,null,null,null,null,null,null,null,null,null,null,null,null,null,null,null,null,null,0]
[109,null,null,null,null,null,null,null,null,null,null,null,null,null,null,null,null,null,null,0]
[110,null,null,null,null,null,null,null,null,null,null,null,null,null,null,null,null,null,null,0]
[111,null,null,null,null,null,null,null,null,null,null,null,null,null,null,null,null,null,null,0]
[112,null,null,null,null,null,null,null,null,null,null,null,null,null,null,null,null,null,null,0]
[113,null,null,null,null,null,null,null,null,null,null,null,null,null,null,null,null,null,null,0]
[114,null,null,null,null,null,null,null,null,null,null,null,null,null,null,null,null,null,null,0]
[115,null,null,null,null,null,null,null,null,null,null,null,null,null,null,null,null,null,null,0]
[116,null,null,null,null,null,null,null,null,null,null,null,null,null,null,null,null,null,null,0]
[117,null,null,null,null,null,null,null,null,null,null,null,null,null,null,null,null,null,null,0]
[118,null,null,null,null,null,null,null,null,null,null,null,null,null,null,null,null,null,null,0]
[119,null,null,null,null,null,null,null,null,null,null,null,null,null,null,null,null,null,null,0]
[120,null,null,null,null,null,null,null,null,null,null,null,null,null,null,null,null,null,null,0]
[121,null,null,null,null,null,null,null,null,null,null,null,null,null,null,null,null,null,null,0]
[122,null,null,null,null,null,null,null,null,null,null,null,null,null,null,null,null,null,null,0]
[123,null,null,null,null,null,null,null,null,null,null,null,null,null,null,null,null,null,null,0]
[124,null,null,null,null,null,null,null,null,null,null,null,null,null,null,null,null,null,null,0]
[125,null,null,null,null,null,null,null,null,null,null,null,null,null,null,null,null,null,null,0]
[126,null,null,null,null,null,null,null,null,null,null,null,null,null,null,null,null,null,null,0]
[127,null,null,null,null,null,null,null,null,null,null,null,null,null,null,null,null,null,null,0]
[128,null,null,null,null,null,null,null,null,null,null,null,null,null,null,null,null,null,null,{"$f":"SUM(I135,K135,M135,O135,Q135,S135)","v":0}]
[129,null,null,null,null,null,null,null,null,null,null,null,null,null,null,null,null,null,null,0]
[130,null,null,null,null,null,null,null,null,null,null,null,null,null,null,null,null,null,null,0]
[131,null,null,null,null,null,null,null,null,null,null,null,null,null,null,null,null,null,null,0]
[132,null,null,null,null,null,null,null,null,null,null,null,null,null,null,null,null,null,null,0]
[133,null,null,null,null,null,null,null,null,null,null,null,null,null,null,null,null,null,null,0]
[134,null,null,null,null,null,null,null,null,null,null,null,null,null,null,null,null,null,null,0]
[135,null,null,null,null,null,null,null,null,null,null,null,null,null,null,null,null,null,null,0]
[136,null,null,null,null,null,null,null,null,null,null,null,null,null,null,null,null,null,null,0]
[137,null,null,null,null,null,null,null,null,null,null,null,null,null,null,null,null,null,null,0]
[138,null,null,null,null,null,null,null,null,null,null,null,null,null,null,null,null,null,null,0]
[139,null,null,null,null,null,null,null,null,null,null,null,null,null,null,null,null,null,null,0]
[140,null,null,null,null,null,null,null,null,null,null,null,null,null,null,null,null,null,null,0]
[141,null,null,null,null,null,null,null,null,null,null,null,null,null,null,null,null,null,null,0]
[142,null,null,null,null,null,null,null,null,null,null,null,null,null,null,null,null,null,null,0]
[143,null,null,null,null,null,null,null,null,null,null,null,null,null,null,null,null,null,null,0]
[144,null,null,null,null,null,null,null,null,null,null,null,null,null,null,null,null,null,null,0]
[145,null,null,null,null,null,null,null,null,null,null,null,null,null,null,null,null,null,null,0]
[146,null,null,null,null,null,null,null,null,null,null,null,null,null,null,null,null,null,null,0]
[147,null,null,null,null,null,null,null,null,null,null,null,null,null,null,null,null,null,null,0]
[148,null,null,null,null,null,null,null,null,null,null,null,null,null,null,null,null,null,null,0]
[149,null,null,null,null,null,null,null,null,null,null,null,null,null,null,null,null,null,null,0]
[150,null,null,null,null,null,null,null,null,null,null,null,null,null,null,null,null,null,null,0]

{"sheet":"Sheet3","index":7,"n_rows":0,"n_cols":0,"rows_kept":0,"cut":false,"hidden":false,"merged":[]}